﻿Directorate,Service,Division,Responsible Unit,Expense Type,Payment Date,Trans No,Net Amount,Supplier Name
Children & Culture,Cultural and Related Services,Open Spaces,Mile End Park,Repairs and Maintenance - Responsive - Buildings,02/10/2019,5293348,"4,650.00",JC Coster (Metalworks) Ltd
Children & Culture,Children's Social Care,Children Looked After,S23-Resi-P&V/OLA-Sec Acc-Wel,Childrens Act Section 23 - Placement Fee,02/10/2019,5293363,"33,945.00",Peterborough City Council
Children & Culture,Cultural and Related Services,Open Spaces,Victoria Park,Refuse Collection,02/10/2019,5294897,400.00,IOD Skip Hire Ltd
Children & Culture,Children's Social Care,Family Support Services,Short Breaks and Family Support,Third Party Payments - Voluntary Associations,02/10/2019,5294919,"132,500.00",QALB Centre Short Break Services
Children & Culture,Children's Social Care,Children's and Young People's Safety,Child Protection Mgt & Admin,Services - Professional Fees - Translation Fees,02/10/2019,5294961,459.50,Oncall Interpreters LTD
Children & Culture,Children's Social Care,Service Strategy,FSP Sect 17 - Team 3,Services - Professional Fees - Translation Fees,02/10/2019,5294966,"1,304.45",Oncall Interpreters LTD
Children & Culture,Children's Social Care,Service Strategy,"FSP Sect 17 - Team 8		",Childrens Act Section 17 - Interpreting/Translation,02/10/2019,5294967,"1,113.05",Oncall Interpreters LTD
Children & Culture,Children's Social Care,Service Strategy,"FSP Sect 17 - Team 7		",Services - Professional Fees - Translation Fees,02/10/2019,5294968,444.00,Oncall Interpreters LTD
Children & Culture,Children's Social Care,Service Strategy,"FSP Sect 17 - Team 2		",Childrens Act Section 17 - Interpreting/Translation,02/10/2019,5294969,622.95,Oncall Interpreters LTD
Children & Culture,Children's Social Care,Children's and Young People's Safety,FSP Sect 17 - Team 10,Services - Professional Fees - Translation Fees,02/10/2019,5294970,811.50,Oncall Interpreters LTD
Children & Culture,Children's Social Care,Children Looked After,Leaving Care-UASC,Services - Professional Fees - Translation Fees,02/10/2019,5294979,744.95,Oncall Interpreters LTD
Children & Culture,Children's Social Care,Family Support Services,Disabled Children�s Outreach Service,Childrens Act Section 17 - Interpreting/Translation,02/10/2019,5294980,313.00,Oncall Interpreters LTD
Children & Culture,Children's Social Care,Other Children's and Family Services,Permanancy and Adoption Support Team 1,Services - Professional Fees - Translation Fees,02/10/2019,5294987,380.00,Oncall Interpreters LTD
Children & Culture,Cultural and Related Services,Recreation & Sport,Mayors Cup,Recreational Activities,02/10/2019,5295058,"4,320.00",Cafe Bite
Children & Culture,Education Services,Other Strategic Functions,Empty Properties,Repairs and Maintenance - Responsive - Electrical,02/10/2019,5295082,320.13,Agilisys Professional Services
Children & Culture,Children's Social Care,Support Service and Management Costs,Schools Catering,Kitchen Supplies - Food and Beverages,02/10/2019,5295116,"1,100.76",Thomas Ridley & Son Ltd
Children & Culture,Children's Social Care,Support Service and Management Costs,Schools Catering,Kitchen Supplies - Food and Beverages,02/10/2019,5295117,302.79,Thomas Ridley & Son Ltd
Children & Culture,Children's Social Care,Support Service and Management Costs,Schools Catering,Kitchen Supplies - Food and Beverages,02/10/2019,5295118,446.32,Thomas Ridley & Son Ltd
Children & Culture,Children's Social Care,Support Service and Management Costs,Schools Catering,Kitchen Supplies - Food and Beverages,02/10/2019,5295120,838.47,Thomas Ridley & Son Ltd
Children & Culture,Children's Social Care,Support Service and Management Costs,Swanlea,Kitchen Supplies - Food and Beverages,02/10/2019,5295121,645.77,Thomas Ridley & Son Ltd
Children & Culture,Children's Social Care,Support Service and Management Costs,Schools Catering,Kitchen Supplies - Food and Beverages,02/10/2019,5295123,267.25,Thomas Ridley & Son Ltd
Children & Culture,Children's Social Care,Support Service and Management Costs,Schools Catering,Kitchen Supplies - Food and Beverages,02/10/2019,5295125,539.68,Thomas Ridley & Son Ltd
Children & Culture,Children's Social Care,Support Service and Management Costs,Schools Catering,Kitchen Supplies - Food and Beverages,02/10/2019,5295127,258.55,Thomas Ridley & Son Ltd
Children & Culture,Children's Social Care,Support Service and Management Costs,Schools Catering,Kitchen Supplies - Food and Beverages,02/10/2019,5295128,"1,185.80",Thomas Ridley & Son Ltd
Children & Culture,Children's Social Care,Support Service and Management Costs,Schools Catering,Kitchen Supplies - Food and Beverages,02/10/2019,5295130,353.96,Thomas Ridley & Son Ltd
Children & Culture,Children's Social Care,Support Service and Management Costs,Schools Catering,Kitchen Supplies - Food and Beverages,02/10/2019,5295132,482.91,Thomas Ridley & Son Ltd
Children & Culture,Children's Social Care,Support Service and Management Costs,Schools Catering,Kitchen Supplies - Food and Beverages,02/10/2019,5295133,"1,163.86",Thomas Ridley & Son Ltd
Children & Culture,Children's Social Care,Support Service and Management Costs,Schools Catering,Kitchen Supplies - Food and Beverages,02/10/2019,5295134,340.21,Thomas Ridley & Son Ltd
Children & Culture,Children's Social Care,Support Service and Management Costs,Schools Catering,Kitchen Supplies - Food and Beverages,02/10/2019,5295135,592.89,Thomas Ridley & Son Ltd
Children & Culture,Children's Social Care,Support Service and Management Costs,Schools Catering,Kitchen Supplies - Food and Beverages,02/10/2019,5295139,943.44,Thomas Ridley & Son Ltd
Children & Culture,Children's Social Care,Support Service and Management Costs,Schools Catering,Kitchen Supplies - Food and Beverages,02/10/2019,5295140,693.72,Thomas Ridley & Son Ltd
Children & Culture,Children's Social Care,Support Service and Management Costs,Schools Catering,Kitchen Supplies - Food and Beverages,02/10/2019,5295141,"1,209.91",Thomas Ridley & Son Ltd
Children & Culture,Children's Social Care,Support Service and Management Costs,Sch. Meals A/c - Central Production Unit,Kitchen Supplies - Food and Beverages,02/10/2019,5295142,"2,225.70",Thomas Ridley & Son Ltd
Children & Culture,Children's Social Care,Support Service and Management Costs,Schools Catering,Kitchen Supplies - Food and Beverages,02/10/2019,5295420,258.55,Thomas Ridley & Son Ltd
Children & Culture,Children's Social Care,Support Service and Management Costs,Schools Catering,Kitchen Supplies - Food and Beverages,02/10/2019,5295421,353.96,Thomas Ridley & Son Ltd
Children & Culture,Children's Social Care,Support Service and Management Costs,Schools Catering,Kitchen Supplies - Food and Beverages,02/10/2019,5295423,426.72,Thomas Ridley & Son Ltd
Children & Culture,Children's Social Care,Support Service and Management Costs,Schools Catering,Kitchen Supplies - Food and Beverages,02/10/2019,5295424,357.22,Thomas Ridley & Son Ltd
Children & Culture,Children's Social Care,Support Service and Management Costs,Schools Catering,Kitchen Supplies - Food and Beverages,02/10/2019,5295427,298.34,Thomas Ridley & Son Ltd
Children & Culture,Children's Social Care,Support Service and Management Costs,Schools Catering,Kitchen Supplies - Food and Beverages,02/10/2019,5295428,580.06,Thomas Ridley & Son Ltd
Children & Culture,Children's Social Care,Support Service and Management Costs,Schools Catering,Kitchen Supplies - Food and Beverages,02/10/2019,5295429,390.57,Thomas Ridley & Son Ltd
Children & Culture,Children's Social Care,Support Service and Management Costs,Schools Catering,Kitchen Supplies - Food and Beverages,02/10/2019,5295430,494.25,Thomas Ridley & Son Ltd
Children & Culture,Children's Social Care,Support Service and Management Costs,Welfare Catering,Kitchen Supplies - Food and Beverages,02/10/2019,5295431,821.43,Thomas Ridley & Son Ltd
Children & Culture,Children's Social Care,Support Service and Management Costs,Sch. Meals A/c - Central Production Unit,Kitchen Supplies - Food and Beverages,02/10/2019,5295432,253.75,Thomas Ridley & Son Ltd
Children & Culture,Children's Social Care,Support Service and Management Costs,Schools Catering,Kitchen Supplies - Food and Beverages,02/10/2019,5295433,676.32,Thomas Ridley & Son Ltd
Children & Culture,Children's Social Care,Support Service and Management Costs,Schools Catering,Kitchen Supplies - Food and Beverages,02/10/2019,5295434,296.67,Thomas Ridley & Son Ltd
Children & Culture,Children's Social Care,Support Service and Management Costs,Schools Catering,Kitchen Supplies - Food and Beverages,02/10/2019,5295435,325.90,Thomas Ridley & Son Ltd
Children & Culture,Children's Social Care,Support Service and Management Costs,Schools Catering,Kitchen Supplies - Food and Beverages,02/10/2019,5295436,"1,185.80",Thomas Ridley & Son Ltd
Children & Culture,Children's Social Care,Support Service and Management Costs,Schools Catering,Kitchen Supplies - Food and Beverages,02/10/2019,5295438,505.59,Thomas Ridley & Son Ltd
Children & Culture,Children's Social Care,Support Service and Management Costs,Schools Catering,Kitchen Supplies - Food and Beverages,02/10/2019,5295440,261.26,Thomas Ridley & Son Ltd
Children & Culture,Children's Social Care,Support Service and Management Costs,Schools Catering,Kitchen Supplies - Food and Beverages,02/10/2019,5295441,459.64,Thomas Ridley & Son Ltd
Children & Culture,Children's Social Care,Support Service and Management Costs,Schools Catering,Kitchen Supplies - Food and Beverages,02/10/2019,5295445,282.35,Thomas Ridley & Son Ltd
Children & Culture,Children's Social Care,Support Service and Management Costs,Schools Catering,Kitchen Supplies - Food and Beverages,02/10/2019,5295446,599.24,Thomas Ridley & Son Ltd
Children & Culture,Children's Social Care,Support Service and Management Costs,Schools Catering,Kitchen Supplies - Food and Beverages,02/10/2019,5295447,295.08,Thomas Ridley & Son Ltd
Children & Culture,Children's Social Care,Support Service and Management Costs,Schools Catering,Kitchen Supplies - Food and Beverages,02/10/2019,5295448,452.58,Thomas Ridley & Son Ltd
Children & Culture,Children's Social Care,Support Service and Management Costs,Schools Catering,Kitchen Supplies - Food and Beverages,02/10/2019,5295449,522.54,Thomas Ridley & Son Ltd
Children & Culture,Children's Social Care,Support Service and Management Costs,"Mulberry Caf�		",Kitchen Supplies - Food and Beverages,02/10/2019,5295450,290.41,Thomas Ridley & Son Ltd
Children & Culture,Children's Social Care,Support Service and Management Costs,Schools Catering,Kitchen Supplies - Food and Beverages,02/10/2019,5295453,706.77,Thomas Ridley & Son Ltd
Children & Culture,Children's Social Care,Support Service and Management Costs,Schools Catering,Kitchen Supplies - Food and Beverages,02/10/2019,5295454,429.12,Thomas Ridley & Son Ltd
Children & Culture,Children's Social Care,Support Service and Management Costs,Schools Catering,Kitchen Supplies - Food and Beverages,02/10/2019,5295455,706.95,Thomas Ridley & Son Ltd
Children & Culture,Children's Social Care,Support Service and Management Costs,Schools Catering,Kitchen Supplies - Food and Beverages,02/10/2019,5295456,265.75,Thomas Ridley & Son Ltd
Children & Culture,Children's Social Care,Support Service and Management Costs,Schools Catering,Kitchen Supplies - Food and Beverages,02/10/2019,5295457,603.03,Thomas Ridley & Son Ltd
Children & Culture,Children's Social Care,Support Service and Management Costs,Schools Catering,Kitchen Supplies - Food and Beverages,02/10/2019,5295458,282.71,Thomas Ridley & Son Ltd
Children & Culture,Children's Social Care,Support Service and Management Costs,Schools Catering,Kitchen Supplies - Food and Beverages,02/10/2019,5295459,399.16,Thomas Ridley & Son Ltd
Children & Culture,Children's Social Care,Support Service and Management Costs,Sch. Meals A/c - St. Paul's Way Comm. Trust,Kitchen Supplies - Food and Beverages,02/10/2019,5295635,301.60,Chicken Joes
Children & Culture,Children's Social Care,Commissioning and Social Work,Advice and Assessment Section 17,Childrens Act Section 17 - Interpreting/Translation,02/10/2019,5295937,"3,398.35",Oncall Interpreters LTD
Children & Culture,Education Services,Other Strategic Functions,Music Trading Account,Educational/Training Supplies - Arts & Crafts,02/10/2019,5295959,601.30,LMS Music Supplies
Children & Culture,No Service Specified,No Division Specified,Capital-Minor Works (SC),Other External Fees - Consultants Fees,02/10/2019,5295991,"6,650.00",Rivington Street Studio
Children & Culture,Children's Social Care,Support Service and Management Costs,Schools Catering,Kitchen Supplies - Food and Beverages,02/10/2019,5296710,329.49,William White Meats Ltd
Children & Culture,Children's Social Care,Support Service and Management Costs,Schools Catering,Kitchen Supplies - Food and Beverages,02/10/2019,5296726,634.59,William White Meats Ltd
Children & Culture,Children's Social Care,Support Service and Management Costs,Toby Lane Function,Kitchen Supplies - Packaging,02/10/2019,5296970,319.21,Tri-Star Packaging Supplies LTD
Children & Culture,Children's Social Care,Children Looked After,S23-Other-Hospital,Childrens Act Section 23 - Placement Fee,02/10/2019,5297037,"57,424.00",Richard House Trust
Children & Culture,Education Services,Other Strategic Functions,Music Trading Account,Educational/Training Supplies - Arts & Crafts,02/10/2019,5301623,"1,948.50",LMS Music Supplies
Children & Culture,Education Services,Other Strategic Functions,Empty Properties,Services - Professional Fees - Security Fees,02/10/2019,5304586,"10,498.56",Manpower Direct UK
Children & Culture,Cultural and Related Services,Open Spaces,Stepney Green,Services - Professional Fees - Security Fees,02/10/2019,5304591,"4,237.70",Manpower Direct UK
Children & Culture,Cultural and Related Services,Open Spaces,Victoria Park,Services - Professional Fees - Security Fees,02/10/2019,5304594,"5,760.00",Manpower Direct UK
Children & Culture,Children's Social Care,Support Service and Management Costs,Building Cleaning,Training Expenses - Staff External Training (UK Based),02/10/2019,5304635,"5,075.00",RM&C Consultants Ltd
Children & Culture,Children's Social Care,Services for young people,Youth Service Management,Third Party Payments - Voluntary Associations,02/10/2019,5304688,"6,666.66",Society Links
Children & Culture,Education Services,Early Years,Mary Sambrook,Services - Professional Fees - Security Fees,02/10/2019,5305126,"10,498.56",Manpower Direct UK
Children & Culture,Children's Social Care,Children Looked After,Leaving Care-UASC,Services - Professional Fees - Translation Fees,02/10/2019,5305134,"1,182.63",DA Languages Ltd
Children & Culture,Children's Social Care,Children Looked After,S23 Fam Pl P&V-F/Care,Childrens Act Section 23 - Placement Fee,02/10/2019,5306503,"3,631.34",Integrated Fostering Services Ltd
Children & Culture,Children's Social Care,Children Looked After,Virtual School PPG,Agency Staff - Associations,02/10/2019,5306555,764.91,Academics ltd
Children & Culture,Children's Social Care,Children Looked After,S23-Other-Mother & Baby Unit,Childrens Act Section 23 - Placement Fee,02/10/2019,5310167,"1,993.66",Impact Initiatives
Children & Culture,Children's Social Care,Children Looked After,S23-Other-Semi-Ind. Unit,Childrens Act Section 23 - Placement Fee,02/10/2019,5310190,"1,879.72",Pangea Support Services
Children & Culture,Children's Social Care,Children Looked After,S23-Other-Semi-Ind. Unit,Childrens Act Section 23 - Placement Fee,02/10/2019,5310192,"1,879.72",Pangea Support Services
Children & Culture,Children's Social Care,Children Looked After,S23-Other-Semi-Ind. Unit,Childrens Act Section 23 - Placement Fee,02/10/2019,5310195,"2,129.72",Pangea Support Services
Children & Culture,Children's Social Care,Children Looked After,S23-Other-Mother & Baby Unit,Childrens Act Section 23 - Placement Fee,02/10/2019,5310631,"3,298.00",Jamma Umoja (Residential Services) LTD
Children & Culture,Children's Social Care,Children Looked After,S23-Other-Mother & Baby Unit,Childrens Act Section 23 - Placement Fee,02/10/2019,5310632,"3,298.00",Jamma Umoja (Residential Services) LTD
Children & Culture,Education Services,Other Strategic Functions,Gorsefield Centre,Agency Staff - Associations,02/10/2019,5310640,"1,274.85",Academics ltd
Children & Culture,Children's Social Care,Family Support Services,CNN Pool: Children Direct Paym,Social Care - Direct Payments,02/10/2019,5310782,"1,401.78",D D PAYROLL SERVICES
Children & Culture,Children's Social Care,Family Support Services,CNN Pool: Children Direct Paym,Social Care - Direct Payments,02/10/2019,5310819,"1,365.42",D D PAYROLL SERVICES
Children & Culture,Children's Social Care,Family Support Services,CNN Pool: Children Direct Paym,Social Care - Direct Payments,02/10/2019,5310823,899.46,D D PAYROLL SERVICES
Children & Culture,Children's Social Care,Family Support Services,CNN Pool: Children Direct Paym,Social Care - Direct Payments,02/10/2019,5310851,672.75,D D PAYROLL SERVICES
Children & Culture,Children's Social Care,Family Support Services,CNN Pool: Children Direct Paym,Social Care - Direct Payments,02/10/2019,5310852,899.42,D D PAYROLL SERVICES
Children & Culture,Children's Social Care,Services for young people,Outdoor,Educational/Training Supplies - Curriculum Visits/Activities,02/10/2019,5311015,495.25,Access Expeditions Ltd
Children & Culture,Education Services,Other Strategic Functions,Special Education Needs DSG,Third Party Payments - Payments to Schools,02/10/2019,5311021,"7,879.26",The Royal Society for Blind Children
Children & Culture,Education Services,Other Strategic Functions,Music Trading Account,Third Party Payments - Voluntary Associations,02/10/2019,5311057,"1,065.00",Rich Mix Cultural Enterprises LTD
Children & Culture,Children's Social Care,Support Service and Management Costs,Schools Catering,Kitchen Supplies - Food and Beverages,02/10/2019,5311079,396.15,Thomas Ridley & Son Ltd
Children & Culture,Children's Social Care,Service Strategy,"FSP Sect 17 - Team 2		",Childrens Act Section 17 - Non-Contact Trans/Travel Costs,02/10/2019,5311163,"1,719.20",Assessments (uk) Ltd
Children & Culture,Children's Social Care,Support Service and Management Costs,Schools Catering,Kitchen Supplies - Food and Beverages,02/10/2019,5311210,322.90,William White Meats Ltd
Children & Culture,Children's Social Care,Children Looked After,S23-Other-Semi-Ind. Unit,Childrens Act Section 23 - Placement Fee,02/10/2019,5311291,"1,819.35",Heartwood Outreach Services Ltd
Children & Culture,Children's Social Care,Children Looked After,LCS/Allowances-Accom,Leaving Care Financial Assistance - Supp Accom/Hous Rents,02/10/2019,5311334,"1,780.02",FosterCare UK Ltd
Children & Culture,Children's Social Care,Children Looked After,S23 Fam Pl P&V-F/Care,Childrens Act Section 23 - Placement Fee,02/10/2019,5311345,"8,402.55",Synergy Fostering Ltd
Children & Culture,Children's Social Care,Children Looked After,S23 Fam Pl P&V-F/Care,Childrens Act Section 23 - Placement Fee,02/10/2019,5311346,"8,402.55",Synergy Fostering Ltd
Children & Culture,Children's Social Care,Children Looked After,S23 Fam Pl P&V-F/Care,Childrens Act Section 23 - Placement Fee,02/10/2019,5311347,"8,131.50",Synergy Fostering Ltd
Children & Culture,Children's Social Care,Support Service and Management Costs,Schools Catering,Kitchen Supplies - Food and Beverages,02/10/2019,5311400,612.77,Thomas Ridley & Son Ltd
Children & Culture,Children's Social Care,Children Looked After,S23 Family Placements P&V,Childrens Act Section 23 - Placement Fee,02/10/2019,5311665,"4,200.00",COMPASS FOSTERING LONDON LIMITED
Children & Culture,Children's Social Care,Children Looked After,S23 Fam Pl P&V-F/Care,Childrens Act Section 23 - Placement Fee,02/10/2019,5311692,784.00,Swiis Foster Care Limited
Children & Culture,Children's Social Care,Family Support Services,IPST S17 NRPF,Childrens Act Section 17 - Other Placements Bed & Breakfast,02/10/2019,5311714,682.50,Imperial Portfolios Ltd
Children & Culture,Children's Social Care,Family Support Services,IPST S17 NRPF,Childrens Act Section 17 - Other Placements Bed & Breakfast,02/10/2019,5311715,"1,457.00",Imperial Portfolios Ltd
Children & Culture,Children's Social Care,Family Support Services,IPST S17 NRPF,Childrens Act Section 17 - Other Placements Bed & Breakfast,02/10/2019,5311716,"1,705.00",Imperial Portfolios Ltd
Children & Culture,Children's Social Care,Family Support Services,IPST S17 NRPF,Childrens Act Section 17 - Other Placements Bed & Breakfast,02/10/2019,5311717,992.00,Imperial Portfolios Ltd
Children & Culture,Children's Social Care,Family Support Services,IPST S17 NRPF,Childrens Act Section 17 - Other Placements Bed & Breakfast,02/10/2019,5311718,992.00,Imperial Portfolios Ltd
Children & Culture,Children's Social Care,Family Support Services,IPST S17 NRPF,Childrens Act Section 17 - Other Placements Bed & Breakfast,02/10/2019,5311719,576.00,Imperial Portfolios Ltd
Children & Culture,Children's Social Care,Family Support Services,IPST S17 NRPF,Childrens Act Section 17 - Other Placements Bed & Breakfast,02/10/2019,5311720,"1,550.00",Imperial Portfolios Ltd
Children & Culture,Children's Social Care,Family Support Services,CNN Pool: Children Direct Paym,Social Care - Direct Payments,02/10/2019,5311867,"5,686.80",D D PAYROLL SERVICES
Children & Culture,Children's Social Care,Children Looked After,S23 Fam Pl P&V-F/Care,Childrens Act Section 23 - Medical Expenses,02/10/2019,5311980,349.00,AlphaBiolabs
Children & Culture,Children's Social Care,Children Looked After,LCS/Allowances-Accom,Leaving Care Financial Assistance - Reg Plan Maint L-Allow,04/10/2019,5295316,290.00,Alpha Care Service Ltd
Children & Culture,Children's Social Care,Children Looked After,LCS/Allowances-Accom,Leaving Care Financial Assistance - Supp Accom/Hous Rents,04/10/2019,5295316,"2,742.85",Alpha Care Service Ltd
Children & Culture,Children's Social Care,Children Looked After,LCS/Allowances-Accom,Leaving Care Financial Assistance - Supported Living,04/10/2019,5295316,"1,371.42",Alpha Care Service Ltd
Children & Culture,Children's Social Care,Support Service and Management Costs,Schools Catering,Kitchen Supplies - Food and Beverages,04/10/2019,5295508,330.99,Prescott-Thomas LTD.
Children & Culture,Cultural and Related Services,Open Spaces,Mile End Park,Community Equipment  Supplies - Store Items,04/10/2019,5295555,495.00,Groundsman Supplies
Children & Culture,Children's Social Care,Children Looked After,S23 Fam Pl In-Hse-S/Term F/C,Childrens Act Section 23 - Interpreting/Translation,04/10/2019,5295561,951.30,DA Languages Ltd
Children & Culture,Children's Social Care,Support Service and Management Costs,Sch. Meals A/c - Raines Foundation,Kitchen Supplies - Food and Beverages,04/10/2019,5295571,515.97,Tiffin Sandwiches
Children & Culture,Children's Social Care,Support Service and Management Costs,Sch. Meals A/c - St. Paul's Way Comm. Trust,Kitchen Supplies - Food and Beverages,04/10/2019,5295572,361.26,Tiffin Sandwiches
Children & Culture,Children's Social Care,Support Service and Management Costs,"Mulberry Caf�		",Kitchen Supplies - Food and Beverages,04/10/2019,5295574,313.32,Tiffin Sandwiches
Children & Culture,Children's Social Care,Support Service and Management Costs,Sch. Meals A/c - C.F.S. Upper (Harley Grove),Kitchen Supplies - Food and Beverages,04/10/2019,5295576,473.85,Tiffin Sandwiches
Children & Culture,Children's Social Care,Support Service and Management Costs,Sch. Meals A/c - Morpeth,Kitchen Supplies - Food and Beverages,04/10/2019,5295577,491.00,Tiffin Sandwiches
Children & Culture,Education Services,Early Years,John Smith CC,Educational/Training Supplies - Arts & Crafts,04/10/2019,5295917,275.00,Rahmqvist UK LTD
Children & Culture,Children's Social Care,Commissioning and Social Work,Advice and Assessment Section 17,Childrens Act Section 17 - Other Placements Bed & Breakfast,04/10/2019,5295924,"1,178.00",Apolonia Property Services (Exodus Housing)
Children & Culture,Children's Social Care,Commissioning and Social Work,Advice and Assessment Section 17,Childrens Act Section 17 - Other Placements Bed & Breakfast,04/10/2019,5295925,512.00,Apolonia Property Services (Exodus Housing)
Children & Culture,Education Services,Early Years,Marner. CC,Computing - Purchase of Hardware,04/10/2019,5295955,467.97,Specialist Computer Centres PLC
Children & Culture,Children's Social Care,Support Service and Management Costs,Welfare Catering,Kitchen Supplies - Food and Beverages,04/10/2019,5296722,350.22,William White Meats Ltd
Children & Culture,Children's Social Care,Support Service and Management Costs,Schools Catering,Kitchen Supplies - Food and Beverages,04/10/2019,5296730,364.75,William White Meats Ltd
Children & Culture,Children's Social Care,Support Service and Management Costs,Schools Catering,Kitchen Supplies - Food and Beverages,04/10/2019,5296732,290.40,William White Meats Ltd
Children & Culture,Children's Social Care,Support Service and Management Costs,Schools Catering,Kitchen Supplies - Food and Beverages,04/10/2019,5296733,369.75,William White Meats Ltd
Children & Culture,Children's Social Care,Support Service and Management Costs,Sch. Meals A/c - Central Production Unit,Kitchen Supplies - Food and Beverages,04/10/2019,5296735,"1,781.88",William White Meats Ltd
Children & Culture,Children's Social Care,Support Service and Management Costs,Schools Catering,Kitchen Supplies - Food and Beverages,04/10/2019,5296737,588.50,William White Meats Ltd
Children & Culture,Children's Social Care,Support Service and Management Costs,Schools Catering,Kitchen Supplies - Food and Beverages,04/10/2019,5296739,333.64,William White Meats Ltd
Children & Culture,Children's Social Care,Support Service and Management Costs,Schools Catering,Kitchen Supplies - Food and Beverages,04/10/2019,5296740,334.01,William White Meats Ltd
Children & Culture,Children's Social Care,Support Service and Management Costs,Swanlea,Kitchen Supplies - Food and Beverages,04/10/2019,5296741,805.33,William White Meats Ltd
Children & Culture,Children's Social Care,Commissioning and Social Work,Family Support & Protection Team 4,Childrens Act Section 17 - Expert Assessmt/Witness Costs,04/10/2019,5296782,620.00,E4 Law Limited T/A Lextox
Children & Culture,Children's Social Care,Support Service and Management Costs,Schools Catering,Repairs and Maintenance - Responsive - General,04/10/2019,5296971,717.00,Swiftclean LTD
Children & Culture,Children's Social Care,Support Service and Management Costs,Schools Catering,Kitchen Supplies - Food and Beverages,04/10/2019,5297059,286.75,Thomas Ridley & Son Ltd
Children & Culture,Children's Social Care,Support Service and Management Costs,Schools Catering,Kitchen Supplies - Food and Beverages,04/10/2019,5297062,464.86,Thomas Ridley & Son Ltd
Children & Culture,Children's Social Care,Support Service and Management Costs,Schools Catering,Kitchen Supplies - Food and Beverages,04/10/2019,5297063,932.22,Thomas Ridley & Son Ltd
Children & Culture,Children's Social Care,Support Service and Management Costs,Schools Catering,Kitchen Supplies - Food and Beverages,04/10/2019,5297064,277.62,Thomas Ridley & Son Ltd
Children & Culture,Children's Social Care,Support Service and Management Costs,Schools Catering,Kitchen Supplies - Food and Beverages,04/10/2019,5297065,"1,493.98",Thomas Ridley & Son Ltd
Children & Culture,Children's Social Care,Support Service and Management Costs,Schools Catering,Kitchen Supplies - Food and Beverages,04/10/2019,5297066,537.36,Thomas Ridley & Son Ltd
Children & Culture,Children's Social Care,Support Service and Management Costs,Schools Catering,Kitchen Supplies - Food and Beverages,04/10/2019,5297067,329.57,Thomas Ridley & Son Ltd
Children & Culture,Children's Social Care,Support Service and Management Costs,Schools Catering,Kitchen Supplies - Food and Beverages,04/10/2019,5297068,430.27,Thomas Ridley & Son Ltd
Children & Culture,Children's Social Care,Support Service and Management Costs,Schools Catering,Kitchen Supplies - Food and Beverages,04/10/2019,5297070,687.93,Thomas Ridley & Son Ltd
Children & Culture,Children's Social Care,Support Service and Management Costs,Schools Catering,Kitchen Supplies - Food and Beverages,04/10/2019,5297071,487.59,Thomas Ridley & Son Ltd
Children & Culture,Children's Social Care,Support Service and Management Costs,Schools Catering,Kitchen Supplies - Food and Beverages,04/10/2019,5297072,675.43,Thomas Ridley & Son Ltd
Children & Culture,Children's Social Care,Support Service and Management Costs,Schools Catering,Kitchen Supplies - Food and Beverages,04/10/2019,5297073,611.13,Thomas Ridley & Son Ltd
Children & Culture,Children's Social Care,Support Service and Management Costs,Schools Catering,Kitchen Supplies - Food and Beverages,04/10/2019,5297074,424.81,Thomas Ridley & Son Ltd
Children & Culture,Children's Social Care,Support Service and Management Costs,Schools Catering,Kitchen Supplies - Food and Beverages,04/10/2019,5297075,623.71,Thomas Ridley & Son Ltd
Children & Culture,Children's Social Care,Support Service and Management Costs,Schools Catering,Kitchen Supplies - Food and Beverages,04/10/2019,5297076,809.10,Thomas Ridley & Son Ltd
Children & Culture,Children's Social Care,Support Service and Management Costs,Schools Catering,Kitchen Supplies - Food and Beverages,04/10/2019,5297078,274.45,Thomas Ridley & Son Ltd
Children & Culture,Children's Social Care,Support Service and Management Costs,Schools Catering,Kitchen Supplies - Food and Beverages,04/10/2019,5297079,404.05,Thomas Ridley & Son Ltd
Children & Culture,Cultural and Related Services,Recreation & Sport,Sports Development,Recreational Activities,04/10/2019,5300829,"1,060.00",Tower Hamlets Cycling Club
Children & Culture,Children's Social Care,Other Children's and Family Services,Adoption Concortium,Meeting Expenses,04/10/2019,5301205,381.67,the royal foundation of st katharine
Children & Culture,Children's Social Care,Support Service and Management Costs,Sch. Meals A/c - Bow School,Kitchen Supplies - Food and Beverages,04/10/2019,5301520,477.90,Tiffin Sandwiches
Children & Culture,Education Services,Early Years,Wapping CC,Educational/Training Supplies - Arts & Crafts,04/10/2019,5301613,496.20,Wesco UK
Children & Culture,Education Services,Early Years,Wapping CC,Educational/Training Supplies - Arts & Crafts,04/10/2019,5301614,927.40,Wesco UK
Children & Culture,Education Services,Early Years,Wapping CC,Educational/Training Supplies - Arts & Crafts,04/10/2019,5305159,927.40,Wesco UK
Children & Culture,Children's Social Care,Children Looked After,S23-Other-Semi-Ind. Unit,Childrens Act Section 23 - Placement Fee,04/10/2019,5310189,"2,059.72",Pangea Support Services
Children & Culture,Children's Social Care,Children Looked After,S23-Other-Semi-Ind. Unit,Childrens Act Section 23 - Placement Fee,04/10/2019,5310193,"1,879.72",Pangea Support Services
Children & Culture,Children's Social Care,Children Looked After,S23-Other-Semi-Ind. Unit,Childrens Act Section 23 - Placement Fee,04/10/2019,5310194,"1,879.72",Pangea Support Services
Children & Culture,Children's Social Care,Children Looked After,S23-Other-Semi-Ind. Unit,Childrens Act Section 23 - Placement Fee,04/10/2019,5310196,"2,707.82",Pangea Support Services
Children & Culture,Education Services,Other Strategic Functions,Property & Asset Management,Agency Staff - Structural Surveys,04/10/2019,5311065,"3,300.00",Thomson FM
Children & Culture,Children's Social Care,Children Looked After,Leaving Care-UASC,Leaving Care Financial Assistance - Supp Accom/Hous Rents,04/10/2019,5311294,"1,569.53",Heartwood Outreach Services Ltd
Children & Culture,Education Services,Other Strategic Functions,Parents Advice Centre,Stationery,04/10/2019,5311461,992.50,Love2Reward
Children & Culture,Children's Social Care,Children Looked After,S23 Fam Pl In-Hse-S/Term F/C,Childrens Act Section 23 - Holiday Grant,04/10/2019,5311501,"1,135.00",Heritage Air Express
Children & Culture,Children's Social Care,Children Looked After,Leaving Care Staff,Staff Transport Costs - Foreign Travel,04/10/2019,5311501,650.00,Heritage Air Express
Children & Culture,Children's Social Care,Children Looked After,S23 Family Placements P&V,Childrens Act Section 23 - Placement Fee,04/10/2019,5311667,"4,977.60",COMPASS FOSTERING LONDON LIMITED
Children & Culture,Children's Social Care,Family Support Services,IPST S17 NRPF,Childrens Act Section 17 - Other Placements Bed & Breakfast,04/10/2019,5313632,"1,350.00",Apolonia Property Services (Exodus Housing)
Children & Culture,Children's Social Care,Family Support Services,IPST S17 NRPF,Childrens Act Section 17 - Other Placements Bed & Breakfast,04/10/2019,5313633,"1,200.00",Apolonia Property Services (Exodus Housing)
Children & Culture,Children's Social Care,Family Support Services,IPST S17 NRPF,Childrens Act Section 17 - Other Placements Bed & Breakfast,04/10/2019,5313635,960.00,Apolonia Property Services (Exodus Housing)
Children & Culture,Children's Social Care,Family Support Services,IPST S17 NRPF,Childrens Act Section 17 - Other Placements Bed & Breakfast,04/10/2019,5313636,"1,020.00",Apolonia Property Services (Exodus Housing)
Children & Culture,Children's Social Care,Family Support Services,IPST S17 NRPF,Childrens Act Section 17 - Other Placements Bed & Breakfast,04/10/2019,5313637,"1,560.00",Apolonia Property Services (Exodus Housing)
Children & Culture,Children's Social Care,Children Looked After,LCS/Allowances-Accom,Leaving Care Financial Assistance - Supp Accom/Hous Rents,04/10/2019,5313656,"2,103.62",The Way Care Services Ltd
Children & Culture,Children's Social Care,Children Looked After,LCS/Allowances-Accom,Leaving Care Financial Assistance - Supported Living,04/10/2019,5313656,"1,660.71",The Way Care Services Ltd
Children & Culture,Children's Social Care,Service Strategy,"FSP Sect 17 - Team 6		",Services - Professional Fees - Legal Fees/Expenses,04/10/2019,5313689,"3,500.00",Intuitive Blue Social Care Ltd
Children & Culture,Children's Social Care,Children Looked After,S23-Other-Mother & Baby Unit,Childrens Act Section 23 - Placement Fee,04/10/2019,5313743,"3,916.00",Jamma Umoja (Residential Services) LTD
Children & Culture,Children's Social Care,Children Looked After,S23-Other-Mother & Baby Unit,Childrens Act Section 23 - Placement Fee,04/10/2019,5313744,"4,200.00",Jamma Umoja (Residential Services) LTD
Children & Culture,Children's Social Care,Services for young people,Youth Service Management,Educational/Training Supplies - Curriculum Visits/Activities,04/10/2019,5313753,630.00,British Youth Council
Children & Culture,Children's Social Care,Children Looked After,S23 Fam Pl In-Hse-S/Term F/C,Childrens Act Section 23 - All Contact Expenses,04/10/2019,5314880,"2,100.00",Proactiv Contact Centre
Children & Culture,Children's Social Care,Commissioning and Social Work,Advice and Assessment Section 17,Childrens Act Section 17 - Other Placements Bed & Breakfast,04/10/2019,5314882,540.00,Imperial Portfolios Ltd
Children & Culture,Children's Social Care,Children Looked After,Virtual School PPG,Agency Staff - Associations,04/10/2019,5314918,"1,009.80",Academics ltd
Children & Culture,Children's Social Care,Children Looked After,Virtual School PPG,Agency Staff - Associations,04/10/2019,5314919,"1,262.25",Academics ltd
Children & Culture,Children's Social Care,Children Looked After,Virtual School PPG,Agency Staff - Associations,04/10/2019,5314920,325.45,Academics ltd
Children & Culture,Children's Social Care,Family Support Services,IPST S17 NRPF,Childrens Act Section 17 - Other Placements Bed & Breakfast,04/10/2019,5314923,"4,250.00",Finefair Management
Children & Culture,Children's Social Care,Family Support Services,IPST S17 NRPF,Childrens Act Section 17 - Other Placements Bed & Breakfast,04/10/2019,5314924,"2,550.00",Finefair Management
Children & Culture,Children's Social Care,Family Support Services,IPST S17 NRPF,Childrens Act Section 17 - Other Placements Bed & Breakfast,04/10/2019,5314925,"1,710.00",Finefair Management
Children & Culture,Children's Social Care,Family Support Services,IPST S17 NRPF,Childrens Act Section 17 - Other Placements Bed & Breakfast,04/10/2019,5314926,"2,400.00",Finefair Management
Children & Culture,Children's Social Care,Family Support Services,IPST S17 NRPF,Childrens Act Section 17 - Other Placements Bed & Breakfast,04/10/2019,5314927,"1,500.00",Finefair Management
Children & Culture,Children's Social Care,Family Support Services,IPST S17 NRPF,Childrens Act Section 17 - Other Placements Bed & Breakfast,04/10/2019,5314928,"1,500.00",Finefair Management
Children & Culture,Children's Social Care,Service Strategy,FSP Sect 17 - Team 4,Childrens Act Section 17 - Other Placements Bed & Breakfast,04/10/2019,5314929,"2,550.00",Finefair Management
Children & Culture,Children's Social Care,Family Support Services,IPST S17 NRPF,Childrens Act Section 17 - Other Placements Bed & Breakfast,04/10/2019,5314930,"1,170.00",Finefair Management
Children & Culture,Children's Social Care,Family Support Services,IPST S17 NRPF,Childrens Act Section 17 - Other Placements Bed & Breakfast,04/10/2019,5314931,"1,350.00",Finefair Management
Children & Culture,Children's Social Care,Family Support Services,IPST S17 NRPF,Childrens Act Section 17 - Other Placements Bed & Breakfast,04/10/2019,5314932,"2,550.00",Finefair Management
Children & Culture,Education Services,Secondary Schools,PFI Hldg Account-Grouped Schoo,Payments to Private Contractors - Other Contractors,07/10/2019,5291095,"1,322,809.68",Tower Hamlets Schools LTD
Children & Culture,Cultural and Related Services,Open Spaces,Parks & Open Spaces Man&Admin,Payments to Private Contractors - Private Contractor,07/10/2019,5295523,"7,975.00",Friends of Tower Hamlets Cemetery Park
Children & Culture,Cultural and Related Services,Open Spaces,Parks & Open Spaces Man&Admin,Payments to Private Contractors - Private Contractor,07/10/2019,5295524,"7,975.00",Friends of Tower Hamlets Cemetery Park
Children & Culture,Cultural and Related Services,Open Spaces,Mile End Park,Repairs and Maintenance - Responsive - Buildings,07/10/2019,5295596,260.00,J&L Coster (Drainage) Ltd
Children & Culture,Education Services,Other Strategic Functions,Schools Library,Comms - Courier,07/10/2019,5295953,"5,314.00",Figurehead Studios
Children & Culture,Children's Social Care,Support Service and Management Costs,Swanlea,Kitchen Supplies - Food and Beverages,07/10/2019,5295961,432.18,Chicken Joes
Children & Culture,Children's Social Care,Support Service and Management Costs,Sch. Meals A/c - Central Production Unit,Kitchen Supplies - Food and Beverages,07/10/2019,5295963,824.51,Chicken Joes
Children & Culture,Children's Social Care,Support Service and Management Costs,Schools Catering,Kitchen Supplies - Food and Beverages,07/10/2019,5296029,259.90,Prescott-Thomas LTD.
Children & Culture,Children's Social Care,Support Service and Management Costs,Schools Catering,Kitchen Supplies - Food and Beverages,07/10/2019,5296047,372.45,Prescott-Thomas LTD.
Children & Culture,Environmental and Regulatory Services,Regulatory Services,Thames Tideway Project,Repairs and Maintenance - Responsive - Main Works,07/10/2019,5296797,"2,635.50",Robert Myers Associates Ltd
Children & Culture,Children's Social Care,Children Looked After,S23 Fam Pl In-Hse-S/Term F/C,Childrens Act Section 23 - All Contact Expenses,07/10/2019,5296826,910.00,Early Start Group Ltd
Children & Culture,Children's Social Care,Children Looked After,S23-Other-Mother & Baby Unit,Childrens Act Section 23 - Placement Fee,07/10/2019,5296864,"3,298.00",Jamma Umoja (Residential Services) LTD
Children & Culture,Education Services,Other Strategic Functions,Music Trading Account,Educational/Training Supplies - Arts & Crafts,07/10/2019,5296880,"3,041.66",Howarth Of London LTD
Children & Culture,Cultural and Related Services,Culture & Heritage,Arts-Park Events,Events & Exhibition Supplies,07/10/2019,5296978,"1,000.00",Greenwich & Docklands Festival
Children & Culture,Education Services,Other Strategic Functions,Education Psychology Trading Account,Newspapers and Magazines - General Purchases,07/10/2019,5296979,864.00,Pearson Education Ltd
Children & Culture,Education Services,Other Strategic Functions,Ofsted Improvement Plan,Training Expenses - Staff External Training (UK Based),07/10/2019,5297019,"1,950.00",ATRWOOD LTD
Children & Culture,Children's Social Care,Support Service and Management Costs,Schools Catering,Kitchen Supplies - Food and Beverages,07/10/2019,5297091,678.14,Thomas Ridley & Son Ltd
Children & Culture,Children's Social Care,Support Service and Management Costs,Schools Catering,Kitchen Supplies - Food and Beverages,07/10/2019,5297092,355.40,Thomas Ridley & Son Ltd
Children & Culture,Children's Social Care,Support Service and Management Costs,Schools Catering,Kitchen Supplies - Food and Beverages,07/10/2019,5297093,770.10,Thomas Ridley & Son Ltd
Children & Culture,Children's Social Care,Support Service and Management Costs,Schools Catering,Kitchen Supplies - Food and Beverages,07/10/2019,5297094,274.01,Thomas Ridley & Son Ltd
Children & Culture,Children's Social Care,Support Service and Management Costs,Schools Catering,Kitchen Supplies - Food and Beverages,07/10/2019,5297095,431.58,Thomas Ridley & Son Ltd
Children & Culture,Children's Social Care,Support Service and Management Costs,Schools Catering,Kitchen Supplies - Food and Beverages,07/10/2019,5297096,304.43,Thomas Ridley & Son Ltd
Children & Culture,Children's Social Care,Support Service and Management Costs,Schools Catering,Kitchen Supplies - Food and Beverages,07/10/2019,5297097,735.59,Thomas Ridley & Son Ltd
Children & Culture,Children's Social Care,Support Service and Management Costs,Schools Catering,Kitchen Supplies - Food and Beverages,07/10/2019,5297100,409.87,Thomas Ridley & Son Ltd
Children & Culture,Children's Social Care,Support Service and Management Costs,Schools Catering,Kitchen Supplies - Food and Beverages,07/10/2019,5297101,908.10,Thomas Ridley & Son Ltd
Children & Culture,Children's Social Care,Support Service and Management Costs,Schools Catering,Kitchen Supplies - Food and Beverages,07/10/2019,5297104,670.86,Thomas Ridley & Son Ltd
Children & Culture,Children's Social Care,Support Service and Management Costs,Schools Catering,Kitchen Supplies - Food and Beverages,07/10/2019,5297105,396.90,Thomas Ridley & Son Ltd
Children & Culture,Children's Social Care,Support Service and Management Costs,Schools Catering,Kitchen Supplies - Food and Beverages,07/10/2019,5297106,505.66,Thomas Ridley & Son Ltd
Children & Culture,Children's Social Care,Support Service and Management Costs,Schools Catering,Kitchen Supplies - Food and Beverages,07/10/2019,5297107,408.12,Thomas Ridley & Son Ltd
Children & Culture,Children's Social Care,Support Service and Management Costs,Schools Catering,Kitchen Supplies - Food and Beverages,07/10/2019,5297108,708.81,Thomas Ridley & Son Ltd
Children & Culture,Children's Social Care,Support Service and Management Costs,Schools Catering,Kitchen Supplies - Food and Beverages,07/10/2019,5297110,746.83,Thomas Ridley & Son Ltd
Children & Culture,Children's Social Care,Support Service and Management Costs,Schools Catering,Kitchen Supplies - Food and Beverages,07/10/2019,5297111,373.26,Thomas Ridley & Son Ltd
Children & Culture,Children's Social Care,Support Service and Management Costs,Schools Catering,Kitchen Supplies - Food and Beverages,07/10/2019,5297113,555.56,Thomas Ridley & Son Ltd
Children & Culture,Children's Social Care,Support Service and Management Costs,Schools Catering,Kitchen Supplies - Food and Beverages,07/10/2019,5297114,363.88,Thomas Ridley & Son Ltd
Children & Culture,Children's Social Care,Support Service and Management Costs,Schools Catering,Kitchen Supplies - Food and Beverages,07/10/2019,5297115,334.00,Thomas Ridley & Son Ltd
Children & Culture,Children's Social Care,Support Service and Management Costs,Schools Catering,Kitchen Supplies - Food and Beverages,07/10/2019,5297118,314.15,Thomas Ridley & Son Ltd
Children & Culture,Children's Social Care,Support Service and Management Costs,Schools Catering,Kitchen Supplies - Food and Beverages,07/10/2019,5297120,275.18,Thomas Ridley & Son Ltd
Children & Culture,Children's Social Care,Support Service and Management Costs,Schools Catering,Kitchen Supplies - Food and Beverages,07/10/2019,5297121,335.48,Thomas Ridley & Son Ltd
Children & Culture,Children's Social Care,Support Service and Management Costs,Schools Catering,Kitchen Supplies - Food and Beverages,07/10/2019,5297124,387.85,Thomas Ridley & Son Ltd
Children & Culture,Children's Social Care,Support Service and Management Costs,Schools Catering,Kitchen Supplies - Food and Beverages,07/10/2019,5297125,420.94,Thomas Ridley & Son Ltd
Children & Culture,Children's Social Care,Support Service and Management Costs,Schools Catering,Kitchen Supplies - Food and Beverages,07/10/2019,5297126,395.31,Thomas Ridley & Son Ltd
Children & Culture,Children's Social Care,Support Service and Management Costs,Schools Catering,Kitchen Supplies - Food and Beverages,07/10/2019,5297127,406.82,Thomas Ridley & Son Ltd
Children & Culture,Children's Social Care,Support Service and Management Costs,Schools Catering,Kitchen Supplies - Food and Beverages,07/10/2019,5297128,391.44,Thomas Ridley & Son Ltd
Children & Culture,Children's Social Care,Support Service and Management Costs,Schools Catering,Kitchen Supplies - Food and Beverages,07/10/2019,5297129,610.54,Thomas Ridley & Son Ltd
Children & Culture,Children's Social Care,Support Service and Management Costs,Sch. Meals A/c - Central Production Unit,Kitchen Supplies - Food and Beverages,07/10/2019,5297130,644.31,Thomas Ridley & Son Ltd
Children & Culture,Children's Social Care,Support Service and Management Costs,Sch. Meals A/c - Central Production Unit,Kitchen Supplies - Food and Beverages,07/10/2019,5297131,"1,751.21",Thomas Ridley & Son Ltd
Children & Culture,Children's Social Care,Support Service and Management Costs,Toby Lane Function,Kitchen Supplies - Food and Beverages,07/10/2019,5297133,285.96,Thomas Ridley & Son Ltd
Children & Culture,Children's Social Care,Support Service and Management Costs,Schools Catering,Kitchen Supplies - Food and Beverages,07/10/2019,5297137,378.24,Thomas Ridley & Son Ltd
Children & Culture,Children's Social Care,Support Service and Management Costs,Schools Catering,Kitchen Supplies - Food and Beverages,07/10/2019,5297138,250.62,Thomas Ridley & Son Ltd
Children & Culture,Children's Social Care,Support Service and Management Costs,Schools Catering,Kitchen Supplies - Food and Beverages,07/10/2019,5297139,780.13,Thomas Ridley & Son Ltd
Children & Culture,Children's Social Care,Support Service and Management Costs,Schools Catering,Kitchen Supplies - Food and Beverages,07/10/2019,5297142,646.23,Thomas Ridley & Son Ltd
Children & Culture,Children's Social Care,Support Service and Management Costs,Schools Catering,Kitchen Supplies - Food and Beverages,07/10/2019,5297143,265.57,Thomas Ridley & Son Ltd
Children & Culture,Children's Social Care,Support Service and Management Costs,Schools Catering,Kitchen Supplies - Food and Beverages,07/10/2019,5297144,810.65,Thomas Ridley & Son Ltd
Children & Culture,Children's Social Care,Support Service and Management Costs,Schools Catering,Kitchen Supplies - Food and Beverages,07/10/2019,5297145,601.16,Thomas Ridley & Son Ltd
Children & Culture,Children's Social Care,Support Service and Management Costs,Schools Catering,Kitchen Supplies - Food and Beverages,07/10/2019,5297146,455.50,Thomas Ridley & Son Ltd
Children & Culture,Children's Social Care,Support Service and Management Costs,Schools Catering,Kitchen Supplies - Food and Beverages,07/10/2019,5297147,795.53,Thomas Ridley & Son Ltd
Children & Culture,Children's Social Care,Support Service and Management Costs,Schools Catering,Kitchen Supplies - Food and Beverages,07/10/2019,5297149,635.65,Thomas Ridley & Son Ltd
Children & Culture,Children's Social Care,Support Service and Management Costs,Schools Catering,Kitchen Supplies - Food and Beverages,07/10/2019,5297150,340.66,Thomas Ridley & Son Ltd
Children & Culture,Children's Social Care,Support Service and Management Costs,Schools Catering,Kitchen Supplies - Food and Beverages,07/10/2019,5297151,254.15,Thomas Ridley & Son Ltd
Children & Culture,Children's Social Care,Support Service and Management Costs,Schools Catering,Kitchen Supplies - Food and Beverages,07/10/2019,5297152,449.47,Thomas Ridley & Son Ltd
Children & Culture,Children's Social Care,Support Service and Management Costs,Schools Catering,Kitchen Supplies - Food and Beverages,07/10/2019,5297155,315.97,Thomas Ridley & Son Ltd
Children & Culture,Children's Social Care,Support Service and Management Costs,Schools Catering,Kitchen Supplies - Food and Beverages,07/10/2019,5297156,335.84,Thomas Ridley & Son Ltd
Children & Culture,Children's Social Care,Support Service and Management Costs,Schools Catering,Kitchen Supplies - Food and Beverages,07/10/2019,5297157,577.28,Thomas Ridley & Son Ltd
Children & Culture,Children's Social Care,Support Service and Management Costs,Schools Catering,Kitchen Supplies - Food and Beverages,07/10/2019,5297158,450.68,Thomas Ridley & Son Ltd
Children & Culture,Children's Social Care,Support Service and Management Costs,Schools Catering,Kitchen Supplies - Food and Beverages,07/10/2019,5297159,626.09,Thomas Ridley & Son Ltd
Children & Culture,Children's Social Care,Support Service and Management Costs,Sch. Meals A/c - Central Production Unit,Kitchen Supplies - Food and Beverages,07/10/2019,5297161,"1,418.78",Thomas Ridley & Son Ltd
Children & Culture,Children's Social Care,Support Service and Management Costs,Schools Catering,Kitchen Supplies - Food and Beverages,07/10/2019,5297163,343.04,Thomas Ridley & Son Ltd
Children & Culture,Children's Social Care,Support Service and Management Costs,Schools Catering,Kitchen Supplies - Food and Beverages,07/10/2019,5301002,306.60,Thomas Ridley & Son Ltd
Children & Culture,Children's Social Care,Support Service and Management Costs,Schools Catering,Kitchen Supplies - Food and Beverages,07/10/2019,5301003,429.58,Thomas Ridley & Son Ltd
Children & Culture,Children's Social Care,Support Service and Management Costs,Schools Catering,Kitchen Supplies - Food and Beverages,07/10/2019,5301005,342.80,Thomas Ridley & Son Ltd
Children & Culture,Children's Social Care,Support Service and Management Costs,Schools Catering,Kitchen Supplies - Food and Beverages,07/10/2019,5301006,488.40,Thomas Ridley & Son Ltd
Children & Culture,Children's Social Care,Children Looked After,S23 Fam Pl In-Hse-S/Term F/C,Childrens Act Section 23 - All Contact Expenses,07/10/2019,5301240,540.00,Unique Contact and Community Services
Children & Culture,Children's Social Care,Children Looked After,S23 Fam Pl P&V-F/Care,Childrens Act Section 23 - All Contact Expenses,07/10/2019,5301243,960.00,Unique Contact and Community Services
Children & Culture,Children's Social Care,Children Looked After,S23 Fam Pl P&V-F/Care,Childrens Act Section 23 - Placement Fee,07/10/2019,5301256,"1,325.52",Fostering Innovations Ltd
Children & Culture,Children's Social Care,Support Service and Management Costs,Schools Catering,Kitchen Supplies - Food and Beverages,07/10/2019,5301411,278.48,William White Meats Ltd
Children & Culture,Children's Social Care,Support Service and Management Costs,Schools Catering,Kitchen Supplies - Food and Beverages,07/10/2019,5301412,513.45,William White Meats Ltd
Children & Culture,Children's Social Care,Support Service and Management Costs,Sch. Meals A/c - Central Production Unit,Kitchen Supplies - Food and Beverages,07/10/2019,5301415,820.00,William White Meats Ltd
Children & Culture,Children's Social Care,Support Service and Management Costs,Schools Catering,Kitchen Supplies - Food and Beverages,07/10/2019,5301416,"1,071.04",William White Meats Ltd
Children & Culture,Children's Social Care,Support Service and Management Costs,Schools Catering,Kitchen Supplies - Food and Beverages,07/10/2019,5301417,306.99,William White Meats Ltd
Children & Culture,Children's Social Care,Support Service and Management Costs,Schools Catering,Kitchen Supplies - Food and Beverages,07/10/2019,5301418,456.76,William White Meats Ltd
Children & Culture,Children's Social Care,Support Service and Management Costs,Schools Catering,Kitchen Supplies - Food and Beverages,07/10/2019,5301420,"1,172.35",William White Meats Ltd
Children & Culture,Children's Social Care,Support Service and Management Costs,Schools Catering,Kitchen Supplies - Food and Beverages,07/10/2019,5301423,255.43,William White Meats Ltd
Children & Culture,Children's Social Care,Support Service and Management Costs,Schools Catering,Kitchen Supplies - Food and Beverages,07/10/2019,5301427,311.13,William White Meats Ltd
Children & Culture,Education Services,Early Years,Wapping CC,Educational/Training Supplies - Arts & Crafts,07/10/2019,5301615,515.70,Wesco UK
Children & Culture,Cultural and Related Services,Culture & Heritage,Arts-Park Events,Events & Exhibition Supplies,07/10/2019,5301616,373.29,A P Security (North) LTD
Children & Culture,Cultural and Related Services,Open Spaces,Mile End Park,Services - Professional Fees - Security Fees,07/10/2019,5301617,332.72,A P Security (North) LTD
Children & Culture,Cultural and Related Services,Open Spaces,Mile End Park,Services - Professional Fees - Security Fees,07/10/2019,5301618,389.52,A P Security (North) LTD
Children & Culture,Cultural and Related Services,Open Spaces,Mile End Park,Services - Professional Fees - Security Fees,07/10/2019,5301619,316.49,A P Security (North) LTD
Children & Culture,Children's Social Care,Support Service and Management Costs,Schools Catering,Kitchen Supplies - Food and Beverages,07/10/2019,5301672,386.07,Thomas Ridley & Son Ltd
Children & Culture,Children's Social Care,Support Service and Management Costs,Schools Catering,Kitchen Supplies - Food and Beverages,07/10/2019,5301673,342.41,Thomas Ridley & Son Ltd
Children & Culture,Children's Social Care,Support Service and Management Costs,Schools Catering,Kitchen Supplies - Food and Beverages,07/10/2019,5304424,540.79,William White Meats Ltd
Children & Culture,Children's Social Care,Support Service and Management Costs,Schools Catering,Kitchen Supplies - Food and Beverages,07/10/2019,5304427,343.75,William White Meats Ltd
Children & Culture,Children's Social Care,Support Service and Management Costs,Schools Catering,Kitchen Supplies - Food and Beverages,07/10/2019,5304428,494.17,William White Meats Ltd
Children & Culture,Children's Social Care,Support Service and Management Costs,Schools Catering,Kitchen Supplies - Food and Beverages,07/10/2019,5304430,573.16,William White Meats Ltd
Children & Culture,Children's Social Care,Support Service and Management Costs,Schools Catering,Kitchen Supplies - Food and Beverages,07/10/2019,5304431,285.78,William White Meats Ltd
Children & Culture,Children's Social Care,Support Service and Management Costs,Schools Catering,Kitchen Supplies - Food and Beverages,07/10/2019,5304434,270.05,William White Meats Ltd
Children & Culture,Children's Social Care,Support Service and Management Costs,Schools Catering,Kitchen Supplies - Food and Beverages,07/10/2019,5304436,258.41,William White Meats Ltd
Children & Culture,Children's Social Care,Support Service and Management Costs,Schools Catering,Kitchen Supplies - Food and Beverages,07/10/2019,5304437,352.48,William White Meats Ltd
Children & Culture,Children's Social Care,Support Service and Management Costs,Schools Catering,Kitchen Supplies - Food and Beverages,07/10/2019,5304440,296.84,William White Meats Ltd
Children & Culture,Children's Social Care,Support Service and Management Costs,Schools Catering,Kitchen Supplies - Food and Beverages,07/10/2019,5304443,"1,368.33",William White Meats Ltd
Children & Culture,Children's Social Care,Support Service and Management Costs,Schools Catering,Kitchen Supplies - Food and Beverages,07/10/2019,5304446,425.03,William White Meats Ltd
Children & Culture,Children's Social Care,Support Service and Management Costs,Schools Catering,Kitchen Supplies - Food and Beverages,07/10/2019,5304447,526.76,William White Meats Ltd
Children & Culture,Children's Social Care,Support Service and Management Costs,Schools Catering,Kitchen Supplies - Food and Beverages,07/10/2019,5304449,640.90,William White Meats Ltd
Children & Culture,Children's Social Care,Support Service and Management Costs,Schools Catering,Kitchen Supplies - Food and Beverages,07/10/2019,5304450,486.27,William White Meats Ltd
Children & Culture,Children's Social Care,Support Service and Management Costs,Schools Catering,Kitchen Supplies - Food and Beverages,07/10/2019,5304453,253.18,William White Meats Ltd
Children & Culture,Children's Social Care,Support Service and Management Costs,Schools Catering,Kitchen Supplies - Food and Beverages,07/10/2019,5304454,378.12,William White Meats Ltd
Children & Culture,Children's Social Care,Support Service and Management Costs,Schools Catering,Kitchen Supplies - Food and Beverages,07/10/2019,5304459,"1,490.63",William White Meats Ltd
Children & Culture,Children's Social Care,Support Service and Management Costs,Schools Catering,Kitchen Supplies - Food and Beverages,07/10/2019,5304461,819.20,William White Meats Ltd
Children & Culture,Children's Social Care,Support Service and Management Costs,Schools Catering,Kitchen Supplies - Food and Beverages,07/10/2019,5304464,309.26,William White Meats Ltd
Children & Culture,Children's Social Care,Support Service and Management Costs,Schools Catering,Kitchen Supplies - Food and Beverages,07/10/2019,5304465,443.59,William White Meats Ltd
Children & Culture,Children's Social Care,Support Service and Management Costs,Schools Catering,Kitchen Supplies - Food and Beverages,07/10/2019,5304466,296.88,William White Meats Ltd
Children & Culture,Children's Social Care,Support Service and Management Costs,Schools Catering,Kitchen Supplies - Food and Beverages,07/10/2019,5304467,522.47,William White Meats Ltd
Children & Culture,Children's Social Care,Support Service and Management Costs,Schools Catering,Kitchen Supplies - Food and Beverages,07/10/2019,5304468,452.41,William White Meats Ltd
Children & Culture,Children's Social Care,Support Service and Management Costs,Schools Catering,Kitchen Supplies - Food and Beverages,07/10/2019,5304469,483.24,William White Meats Ltd
Children & Culture,Children's Social Care,Youth Justice,Partnerships,Communications,07/10/2019,5304693,597.00,Ignite Service Provider Ltd
Children & Culture,Education Services,Other Strategic Functions,Special Education Needs DSG,Third Party Payments - Payments to Schools,07/10/2019,5305142,"8,502.28",East London Science School Trust
Children & Culture,Education Services,Other Strategic Functions,Special Education Needs DSG,Third Party Payments - Payments to Schools,07/10/2019,5305142,"11,052.96",East London Science School Trust
Children & Culture,Education Services,Other Strategic Functions,Special Education Needs DSG,Third Party Payments - Payments to Schools,07/10/2019,5305142,"7,669.78",East London Science School Trust
Children & Culture,Education Services,Other Strategic Functions,Special Education Needs DSG,Third Party Payments - Payments to Schools,07/10/2019,5305142,"8,851.09",East London Science School Trust
Children & Culture,Education Services,Other Strategic Functions,Special Education Needs DSG,Third Party Payments - Payments to Schools,07/10/2019,5306340,"16,800.00",Kedleston Schools
Children & Culture,Education Services,Other Strategic Functions,Music Trading Account,Payments to Private Contractors - General Contractors,07/10/2019,5306530,"1,748.00",ABRSM
Children & Culture,Education Services,Other Strategic Functions,Special Education Needs DSG,Third Party Payments - Payments to Schools,07/10/2019,5306592,"18,648.00",Parayhouse School
Children & Culture,Children's Social Care,Children Looked After,S23-Other-Semi-Ind. Unit,Childrens Act Section 23 - Placement Fee,07/10/2019,5310188,"1,939.72",Pangea Support Services
Children & Culture,Children's Social Care,Children Looked After,S23-Other-Semi-Ind. Unit,Childrens Act Section 23 - Placement Fee,07/10/2019,5310191,"1,879.72",Pangea Support Services
Children & Culture,Environmental and Regulatory Services,Regulatory Services,Thames Tideway Project,Repairs and Maintenance - Responsive - Repair & Maintenance,07/10/2019,5310925,"1,200.00",VEOLIA ENVIRONMENTAL SERVICES PLC
Children & Culture,Children's Social Care,Children Looked After,S23-Other-Semi-Ind. Unit,Childrens Act Section 23 - Placement Fee,07/10/2019,5311290,"3,638.70",Heartwood Outreach Services Ltd
Children & Culture,Children's Social Care,Children Looked After,S23-Other-Semi-Ind. Unit,Childrens Act Section 23 - Placement Fee,07/10/2019,5311292,395.00,Heartwood Outreach Services Ltd
Children & Culture,Children's Social Care,Children Looked After,S23-Resi-P&V/OLA-Child Home,Childrens Act Section 23 - Placement Fee,07/10/2019,5311348,"1,921.42",Mig House Residential Care Home Ltd
Children & Culture,Education Services,Secondary Schools,PFI Hldg Account-Grouped Schoo,Repairs and Maintenance - Responsive - Repair & Maintenance,07/10/2019,5311722,"184,505.00",Tower Hamlets Schools LTD
Children & Culture,Education Services,Other Strategic Functions,SEN External Travel,Non Staff Transport Costs - Reimbursement,07/10/2019,5313607,"171,086.00",Lindel Services LTD - T/A Fox Transport
Children & Culture,Children's Social Care,Children Looked After,S23-Other-Semi-Ind. Unit,Childrens Act Section 23 - Placement Fee,07/10/2019,5313657,"4,685.34",The Way Care Services Ltd
Children & Culture,Children's Social Care,Children Looked After,S23 Fam Pl P&V-F/Care,Childrens Act Section 23 - Placement Fee,07/10/2019,5313731,"9,992.72",By The Bridge Ltd
Children & Culture,Children's Social Care,Children Looked After,S23 Fam Pl P&V-F/Care,Childrens Act Section 23 - Placement Fee,07/10/2019,5313732,"5,889.25",By The Bridge Ltd
Children & Culture,Children's Social Care,Children Looked After,S23 Fam Pl P&V-F/Care,Childrens Act Section 23 - Placement Fee,07/10/2019,5313733,"5,699.27",By The Bridge Ltd
Children & Culture,Children's Social Care,Children Looked After,S23 Fam Pl P&V-F/Care,Childrens Act Section 23 - Placement Fee,07/10/2019,5313734,"5,889.25",By The Bridge Ltd
Children & Culture,Children's Social Care,Children Looked After,S23 Fam Pl P&V-F/Care,Childrens Act Section 23 - Placement Fee,07/10/2019,5313735,"5,889.25",By The Bridge Ltd
Children & Culture,Children's Social Care,Children Looked After,S23 Fam Pl P&V-F/Care,Childrens Act Section 23 - Placement Fee,07/10/2019,5313736,"5,699.27",By The Bridge Ltd
Children & Culture,Education Services,Other Strategic Functions,Support for Learning Serv DSG,Education & Training - Non Staff Tuition Fees,07/10/2019,5315029,250.00,Kent County Council
Children & Culture,Children's Social Care,Support Service and Management Costs,Schools Catering,Computing - Purchase of Software,07/10/2019,5315352,"2,200.00",Nutriplanner Limited
Children & Culture,Children's Social Care,Youth Justice,Youth Justice Team,Services - Professional Fees - Translation Fees,09/10/2019,5257896,284.00,Oncall Interpreters LTD
Children & Culture,Children's Social Care,Youth Justice,Youth Justice Team,Services - Professional Fees - Translation Fees,09/10/2019,5258439,284.00,Oncall Interpreters LTD
Children & Culture,Children's Social Care,Youth Justice,Youth Justice Team,Social Care - Nursing Care,09/10/2019,5270185,"4,195.48",Homerton University Hospital Trust
Children & Culture,Children's Social Care,Youth Justice,Youth Justice Team,Services - Professional Fees - Translation Fees,09/10/2019,5277582,309.00,Oncall Interpreters LTD
Children & Culture,Children's Social Care,Children Looked After,S23-Other-Semi-Ind. Unit,Childrens Act Section 23 - Interpreting/Translation,09/10/2019,5294978,"1,701.50",Oncall Interpreters LTD
Children & Culture,Children's Social Care,Children Looked After,Leaving Care-UASC,Leaving Care Financial Assistance - Supp Accom/Hous Rents,09/10/2019,5295377,998.70,HAMLETTS LTD
Children & Culture,Children's Social Care,Children Looked After,Leaving Care-UASC,Leaving Care Financial Assistance - Supp Accom/Hous Rents,09/10/2019,5295378,998.70,HAMLETTS LTD
Children & Culture,Children's Social Care,Children Looked After,Leaving Care-UASC,Leaving Care Financial Assistance - Supp Accom/Hous Rents,09/10/2019,5295379,998.70,HAMLETTS LTD
Children & Culture,Children's Social Care,Children Looked After,Leaving Care-UASC,Leaving Care Financial Assistance - Supp Accom/Hous Rents,09/10/2019,5295380,998.70,HAMLETTS LTD
Children & Culture,Children's Social Care,Children Looked After,Leaving Care-UASC,Leaving Care Financial Assistance - Supp Accom/Hous Rents,09/10/2019,5295381,998.70,HAMLETTS LTD
Children & Culture,Education Services,Other Strategic Functions,Special Education Needs DSG,Third Party Payments - Payments to Schools,09/10/2019,5295932,"16,000.00",Octavia House Scholls Ltd
Children & Culture,Education Services,Other Strategic Functions,Special Education Needs DSG,Third Party Payments - Payments to Schools,09/10/2019,5295933,"14,000.00",Octavia House Scholls Ltd
Children & Culture,Education Services,Other Strategic Functions,Special Education Needs DSG,Third Party Payments - Payments to Schools,09/10/2019,5295934,"14,000.00",Octavia House Scholls Ltd
Children & Culture,Education Services,Other Strategic Functions,Music Trading Account,Payments to Private Contractors - General Contractors,09/10/2019,5295964,"1,000.00",Redacted Section 40 FOI Act
Children & Culture,Cultural and Related Services,Open Spaces,Parks & Open Spaces Man&Admin,Repairs and Maintenance - Responsive - Buildings,09/10/2019,5296748,300.00,JC Coster (Metalworks) Ltd
Children & Culture,Cultural and Related Services,Culture & Heritage,Arts-Park Events,Events & Exhibition Supplies,09/10/2019,5296785,300.00,Rehan Jamil Photography
Children & Culture,Education Services,Other Strategic Functions,Music Trading Account,Payments to Private Contractors - General Contractors,09/10/2019,5296786,300.00,Rehan Jamil Photography
Children & Culture,Cultural and Related Services,Recreation & Sport,Mayors Cup,Recreational Activities,09/10/2019,5296787,600.00,Rehan Jamil Photography
Children & Culture,Cultural and Related Services,Recreation & Sport,Mayors Cup,Recreational Activities,09/10/2019,5296788,600.00,Rehan Jamil Photography
Children & Culture,Children's Social Care,Children Looked After,S23 Fam Pl Fost/Adop Advert,Childrens Act Section 23 - Spec Pymnts Advertising,09/10/2019,5296789,800.00,Rehan Jamil Photography
Children & Culture,Education Services,Other Strategic Functions,Music Trading Account,Events & Exhibition Supplies,09/10/2019,5296790,300.00,Rehan Jamil Photography
Children & Culture,Cultural and Related Services,Recreation & Sport,Football Development Programme,Recreational Activities,09/10/2019,5296791,250.00,Rehan Jamil Photography
Children & Culture,Children's Social Care,Commissioning and Social Work,Advice and Assessment Section 17,Childrens Act Section 17 - Interpreting/Translation,09/10/2019,5296818,"2,561.50",Oncall Interpreters LTD
Children & Culture,Children's Social Care,Commissioning and Social Work,Advice and Assessment Section 17,Childrens Act Section 17 - Interpreting/Translation,09/10/2019,5296819,"2,358.00",Oncall Interpreters LTD
Children & Culture,Children's Social Care,Commissioning and Social Work,Advice and Assessment Section 17,Childrens Act Section 17 - Interpreting/Translation,09/10/2019,5296820,957.45,Oncall Interpreters LTD
Children & Culture,Children's Social Care,Support Service and Management Costs,Schools Catering,Kitchen Supplies - Food and Beverages,09/10/2019,5296892,364.72,Thomas Ridley & Son Ltd
Children & Culture,Children's Social Care,Support Service and Management Costs,Schools Catering,Kitchen Supplies - Food and Beverages,09/10/2019,5296893,685.98,Thomas Ridley & Son Ltd
Children & Culture,Children's Social Care,Support Service and Management Costs,Schools Catering,Kitchen Supplies - Food and Beverages,09/10/2019,5296895,574.86,Thomas Ridley & Son Ltd
Children & Culture,Children's Social Care,Support Service and Management Costs,Schools Catering,Kitchen Supplies - Food and Beverages,09/10/2019,5296896,"1,363.05",Thomas Ridley & Son Ltd
Children & Culture,Children's Social Care,Support Service and Management Costs,Schools Catering,Kitchen Supplies - Food and Beverages,09/10/2019,5296897,575.74,Thomas Ridley & Son Ltd
Children & Culture,Children's Social Care,Support Service and Management Costs,Schools Catering,Kitchen Supplies - Food and Beverages,09/10/2019,5296898,314.00,Thomas Ridley & Son Ltd
Children & Culture,Children's Social Care,Support Service and Management Costs,Schools Catering,Kitchen Supplies - Food and Beverages,09/10/2019,5296899,453.11,Thomas Ridley & Son Ltd
Children & Culture,Children's Social Care,Support Service and Management Costs,Schools Catering,Kitchen Supplies - Food and Beverages,09/10/2019,5297167,584.98,Thomas Ridley & Son Ltd
Children & Culture,Children's Social Care,Support Service and Management Costs,Schools Catering,Kitchen Supplies - Food and Beverages,09/10/2019,5297168,406.01,Thomas Ridley & Son Ltd
Children & Culture,Children's Social Care,Support Service and Management Costs,Schools Catering,Kitchen Supplies - Food and Beverages,09/10/2019,5297169,323.39,Thomas Ridley & Son Ltd
Children & Culture,Children's Social Care,Support Service and Management Costs,Schools Catering,Kitchen Supplies - Food and Beverages,09/10/2019,5297170,"1,238.59",Thomas Ridley & Son Ltd
Children & Culture,Children's Social Care,Support Service and Management Costs,Schools Catering,Kitchen Supplies - Food and Beverages,09/10/2019,5297171,375.15,Thomas Ridley & Son Ltd
Children & Culture,Children's Social Care,Support Service and Management Costs,Schools Catering,Kitchen Supplies - Food and Beverages,09/10/2019,5297177,346.30,Thomas Ridley & Son Ltd
Children & Culture,Children's Social Care,Support Service and Management Costs,Schools Catering,Kitchen Supplies - Food and Beverages,09/10/2019,5297178,"1,139.60",Thomas Ridley & Son Ltd
Children & Culture,Children's Social Care,Support Service and Management Costs,Schools Catering,Kitchen Supplies - Food and Beverages,09/10/2019,5297180,253.45,Thomas Ridley & Son Ltd
Children & Culture,Children's Social Care,Support Service and Management Costs,Schools Catering,Kitchen Supplies - Food and Beverages,09/10/2019,5297181,393.20,Thomas Ridley & Son Ltd
Children & Culture,Children's Social Care,Support Service and Management Costs,Schools Catering,Kitchen Supplies - Food and Beverages,09/10/2019,5297182,"1,420.46",Thomas Ridley & Son Ltd
Children & Culture,Children's Social Care,Support Service and Management Costs,Schools Catering,Kitchen Supplies - Food and Beverages,09/10/2019,5297188,339.39,Thomas Ridley & Son Ltd
Children & Culture,Children's Social Care,Support Service and Management Costs,Schools Catering,Kitchen Supplies - Food and Beverages,09/10/2019,5297189,691.38,Thomas Ridley & Son Ltd
Children & Culture,Children's Social Care,Support Service and Management Costs,Schools Catering,Kitchen Supplies - Food and Beverages,09/10/2019,5297190,417.74,Thomas Ridley & Son Ltd
Children & Culture,Children's Social Care,Support Service and Management Costs,Schools Catering,Kitchen Supplies - Food and Beverages,09/10/2019,5297191,313.44,Thomas Ridley & Son Ltd
Children & Culture,Children's Social Care,Support Service and Management Costs,Schools Catering,Kitchen Supplies - Food and Beverages,09/10/2019,5297192,263.40,Thomas Ridley & Son Ltd
Children & Culture,Children's Social Care,Support Service and Management Costs,Schools Catering,Kitchen Supplies - Food and Beverages,09/10/2019,5297193,755.84,Thomas Ridley & Son Ltd
Children & Culture,Children's Social Care,Support Service and Management Costs,Schools Catering,Kitchen Supplies - Food and Beverages,09/10/2019,5297196,511.09,Thomas Ridley & Son Ltd
Children & Culture,Children's Social Care,Support Service and Management Costs,Schools Catering,Kitchen Supplies - Food and Beverages,09/10/2019,5297197,508.03,Thomas Ridley & Son Ltd
Children & Culture,Children's Social Care,Support Service and Management Costs,Schools Catering,Kitchen Supplies - Food and Beverages,09/10/2019,5297199,316.76,Thomas Ridley & Son Ltd
Children & Culture,Children's Social Care,Support Service and Management Costs,Schools Catering,Kitchen Supplies - Food and Beverages,09/10/2019,5297201,735.26,Thomas Ridley & Son Ltd
Children & Culture,Children's Social Care,Support Service and Management Costs,Schools Catering,Kitchen Supplies - Food and Beverages,09/10/2019,5297204,530.39,Thomas Ridley & Son Ltd
Children & Culture,Children's Social Care,Support Service and Management Costs,Schools Catering,Kitchen Supplies - Food and Beverages,09/10/2019,5297206,303.21,Thomas Ridley & Son Ltd
Children & Culture,Children's Social Care,Support Service and Management Costs,Schools Catering,Kitchen Supplies - Food and Beverages,09/10/2019,5297208,767.41,Thomas Ridley & Son Ltd
Children & Culture,Children's Social Care,Support Service and Management Costs,Schools Catering,Kitchen Supplies - Food and Beverages,09/10/2019,5297209,384.75,Thomas Ridley & Son Ltd
Children & Culture,Children's Social Care,Support Service and Management Costs,Schools Catering,Kitchen Supplies - Food and Beverages,09/10/2019,5297210,482.84,Thomas Ridley & Son Ltd
Children & Culture,Children's Social Care,Support Service and Management Costs,Schools Catering,Kitchen Supplies - Food and Beverages,09/10/2019,5297211,262.91,Thomas Ridley & Son Ltd
Children & Culture,Children's Social Care,Support Service and Management Costs,Schools Catering,Kitchen Supplies - Food and Beverages,09/10/2019,5297215,680.20,Thomas Ridley & Son Ltd
Children & Culture,Children's Social Care,Support Service and Management Costs,Schools Catering,Kitchen Supplies - Food and Beverages,09/10/2019,5297218,475.25,Thomas Ridley & Son Ltd
Children & Culture,Children's Social Care,Support Service and Management Costs,Schools Catering,Kitchen Supplies - Food and Beverages,09/10/2019,5297219,263.96,Thomas Ridley & Son Ltd
Children & Culture,Children's Social Care,Support Service and Management Costs,Schools Catering,Kitchen Supplies - Food and Beverages,09/10/2019,5297222,310.62,Thomas Ridley & Son Ltd
Children & Culture,Children's Social Care,Support Service and Management Costs,Schools Catering,Kitchen Supplies - Food and Beverages,09/10/2019,5297223,539.84,Thomas Ridley & Son Ltd
Children & Culture,Children's Social Care,Support Service and Management Costs,Schools Catering,Kitchen Supplies - Food and Beverages,09/10/2019,5297224,371.15,Thomas Ridley & Son Ltd
Children & Culture,Children's Social Care,Support Service and Management Costs,Schools Catering,Kitchen Supplies - Food and Beverages,09/10/2019,5297225,287.02,Thomas Ridley & Son Ltd
Children & Culture,Children's Social Care,Support Service and Management Costs,Schools Catering,Kitchen Supplies - Food and Beverages,09/10/2019,5297226,500.52,Thomas Ridley & Son Ltd
Children & Culture,Children's Social Care,Support Service and Management Costs,Sch. Meals A/c - Central Production Unit,Kitchen Supplies - Food and Beverages,09/10/2019,5297227,454.50,Thomas Ridley & Son Ltd
Children & Culture,Children's Social Care,Support Service and Management Costs,Sch. Meals A/c - Central Production Unit,Kitchen Supplies - Food and Beverages,09/10/2019,5297228,"2,227.20",Thomas Ridley & Son Ltd
Children & Culture,Cultural and Related Services,Culture & Heritage,Arts-Park Events,Events & Exhibition Supplies,09/10/2019,5300777,"4,999.80",Greenwich & Docklands Festival
Children & Culture,Children's Social Care,Services for young people,Youth Service Management,Management & Admin Salaries - Pay & Oncost,09/10/2019,5300802,"5,390.51",Oratus Enterprise Limited
Children & Culture,Children's Social Care,Support Service and Management Costs,Schools Catering,Kitchen Supplies - Food and Beverages,09/10/2019,5301008,416.14,Thomas Ridley & Son Ltd
Children & Culture,Education Services,Early Years,SSEYCG Workforce Dev't,Training Expenses - Staff External Training (UK Based),09/10/2019,5301264,664.00,Nuco Training Ltd
Children & Culture,Education Services,Other Education and Community Budget,Community Languages,Catering - Hospitality,09/10/2019,5301274,565.00,Biryani Hut Ltd
Children & Culture,Education Services,Other Strategic Functions,High Needs FE Colleges,Third Party Payments - Payments to Schools,09/10/2019,5301457,"15,000.00",New City College
Children & Culture,Children's Social Care,Family Support Services,Disabled Children�s Outreach Service,Social Care - Nursing Care,09/10/2019,5301548,"68,613.50",East London NHS Foundation Trust
Children & Culture,Education Services,Other Strategic Functions,Children with Complex Needs,Social Care - Nursing Care,09/10/2019,5301549,"19,336.50",East London NHS Foundation Trust
Children & Culture,Cultural and Related Services,Recreation & Sport,Sports Development,Recreational Activities,09/10/2019,5301624,"1,737.60",Victoria Park Harriers & THAC
Children & Culture,Children's Social Care,Support Service and Management Costs,Schools Catering,Kitchen Supplies - Food and Beverages,09/10/2019,5304448,402.20,William White Meats Ltd
Children & Culture,Children's Social Care,Support Service and Management Costs,Schools Catering,Kitchen Supplies - Food and Beverages,09/10/2019,5304455,304.32,William White Meats Ltd
Children & Culture,Education Services,Other Strategic Functions,Music Trading Account,Educational/Training Supplies - Arts & Crafts,09/10/2019,5304637,537.00,Redacted Section 40 FOI Act
Children & Culture,Children's Social Care,Support Service and Management Costs,Schools Catering,Kitchen Supplies - Packaging,09/10/2019,5305054,735.91,Tri-Star Packaging Supplies LTD
Children & Culture,Children's Social Care,Children Looked After,LCS/Allowances-Accom,Leaving Care Financial Assistance - Supported Living,09/10/2019,5305140,"1,070.20",Sanctuary Housing
Children & Culture,Children's Social Care,Children Looked After,S23 Fam Pl In-Hse-S/Term F/C,Childrens Act Section 23 - Non-Contact Trans/Travel Costs,09/10/2019,5305736,"6,376.02",Medway Council
Children & Culture,Children's Social Care,Children Looked After,LCS/Allowances-Accom,Leaving Care Financial Assistance - Supp Accom/Hous Rents,09/10/2019,5306143,"3,642.85",EMPOWERHOUSE ltd
Children & Culture,Education Services,Other Strategic Functions,Gorsefield Centre,Agency Staff - Associations,09/10/2019,5306557,254.97,Academics ltd
Children & Culture,Children's Social Care,Children Looked After,Virtual School PPG,Agency Staff - Associations,09/10/2019,5306558,"1,019.88",Academics ltd
Children & Culture,Children's Social Care,Children Looked After,Virtual School PPG,Agency Staff - Associations,09/10/2019,5306559,"1,274.85",Academics ltd
Children & Culture,Children's Social Care,Children Looked After,Virtual School PPG,Agency Staff - Associations,09/10/2019,5306560,"1,019.88",Academics ltd
Children & Culture,Children's Social Care,Children Looked After,Virtual School PPG,Agency Staff - Associations,09/10/2019,5306561,"1,274.85",Academics ltd
Children & Culture,Children's Social Care,Children Looked After,Virtual School PPG,Agency Staff - Associations,09/10/2019,5306562,764.82,Academics ltd
Children & Culture,Children's Social Care,Children Looked After,Virtual School PPG,Agency Staff - Associations,09/10/2019,5306563,764.91,Academics ltd
Children & Culture,Children's Social Care,Children Looked After,Virtual School PPG,Agency Staff - Associations,09/10/2019,5306564,254.97,Academics ltd
Children & Culture,Children's Social Care,Children Looked After,Virtual School PPG,Agency Staff - Associations,09/10/2019,5306565,254.97,Academics ltd
Children & Culture,Children's Social Care,Support Service and Management Costs,Professional Dev Centre,Computing - Purchase of Software,09/10/2019,5310077,667.29,RM Education PLC
Children & Culture,Children's Social Care,Children's and Young People's Safety,Child Protection Mgt & Admin,Services - Professional Fees - Financial Services Fees,09/10/2019,5310187,"1,296.00",Toynbee Hall
Children & Culture,No Service Specified,No Division Specified,Capital-Minor Works (SC),Building Works - Main Works,09/10/2019,5311052,"1,614.00",Controlcare Ltd
Children & Culture,Education Services,Services to Young People and Other Community Learners,Further and Higher Education,Education Trust - Grant,09/10/2019,5311262,"1,750.00",New City College
Children & Culture,Education Services,Services to Young People and Other Community Learners,Further and Higher Education,Education Trust - Grant,09/10/2019,5311263,"1,750.00",New City College
Children & Culture,Children's Social Care,Children Looked After,Leaving Care-UASC,Leaving Care Financial Assistance - Supp Accom/Hous Rents,09/10/2019,5311299,"1,518.90",Heartwood Outreach Services Ltd
Children & Culture,Children's Social Care,Children Looked After,Leaving Care-UASC,Leaving Care Financial Assistance - Supp Accom/Hous Rents,09/10/2019,5311301,"1,569.53",Heartwood Outreach Services Ltd
Children & Culture,Children's Social Care,Family Support Services,IPST S17 NRPF,Childrens Act Section 17 - Food Grants,09/10/2019,5311989,"1,007.50",BETHNAL GREEN SOCIAL SERVICES
Children & Culture,Children's Social Care,Children Looked After,LCS/Allowances-Accom,Leaving Care Financial Assistance - Supp Accom/Hous Rents,09/10/2019,5313709,"1,722.60",FosterCare UK Ltd
Children & Culture,Education Services,Other Strategic Functions,Alternative Provision,Third Party Payments - Payments to Schools,09/10/2019,5315052,"4,000.00",LBTH SWANLEA SCHOOL
Children & Culture,Education Services,Other Strategic Functions,Alternative Provision,Third Party Payments - Payments to Schools,09/10/2019,5315053,"3,000.00",LBTH SWANLEA SCHOOL
Children & Culture,Education Services,Other Strategic Functions,Alternative Provision,Third Party Payments - Payments to Schools,09/10/2019,5315054,"4,000.00",LBTH SWANLEA SCHOOL
Children & Culture,Education Services,Other Strategic Functions,Alternative Provision,Third Party Payments - Payments to Schools,09/10/2019,5315055,"3,000.00",LBTH SWANLEA SCHOOL
Children & Culture,Education Services,Other Strategic Functions,Alternative Provision,Third Party Payments - Payments to Schools,09/10/2019,5315056,"3,000.00",LBTH SWANLEA SCHOOL
Children & Culture,Education Services,Other Strategic Functions,Alternative Provision,Third Party Payments - Payments to Schools,09/10/2019,5315057,"4,000.00",ST Pauls Way Trust School
Children & Culture,Education Services,Other Strategic Functions,Alternative Provision,Third Party Payments - Payments to Schools,09/10/2019,5315058,"3,000.00",Sir John Cass Foundation&Redcoat School
Children & Culture,Education Services,Other Strategic Functions,Alternative Provision,Third Party Payments - Payments to Schools,09/10/2019,5315059,"3,000.00",Sir John Cass Foundation&Redcoat School
Children & Culture,Education Services,Other Strategic Functions,Alternative Provision,Third Party Payments - Payments to Schools,09/10/2019,5315060,"3,000.00",Oakland School
Children & Culture,Education Services,Other Strategic Functions,Alternative Provision,Third Party Payments - Payments to Schools,09/10/2019,5315061,"3,000.00",Mulberry Academy Shoreditch
Children & Culture,Education Services,Other Strategic Functions,Alternative Provision,Third Party Payments - Payments to Schools,09/10/2019,5315062,"3,000.00",Mulberry Academy Shoreditch
Children & Culture,Education Services,Other Strategic Functions,Alternative Provision,Third Party Payments - Payments to Schools,09/10/2019,5315063,"3,000.00",Morpeth School
Children & Culture,Education Services,Other Strategic Functions,Alternative Provision,Third Party Payments - Payments to Schools,09/10/2019,5315064,"3,000.00",London Enterprise Academy
Children & Culture,Education Services,Other Strategic Functions,Alternative Provision,Third Party Payments - Payments to Schools,09/10/2019,5315065,"3,000.00",LANGDON PARK SCHOOL
Children & Culture,Education Services,Other Strategic Functions,Alternative Provision,Third Party Payments - Payments to Schools,09/10/2019,5315066,"3,000.00",LANGDON PARK SCHOOL
Children & Culture,Education Services,Other Strategic Functions,Alternative Provision,Third Party Payments - Payments to Schools,09/10/2019,5315067,"3,000.00",LANGDON PARK SCHOOL
Children & Culture,Education Services,Other Strategic Functions,Alternative Provision,Third Party Payments - Payments to Schools,09/10/2019,5315068,"3,000.00",George Green School
Children & Culture,Education Services,Other Strategic Functions,Alternative Provision,Third Party Payments - Payments to Schools,09/10/2019,5315069,"3,000.00",George Green School
Children & Culture,Education Services,Other Strategic Functions,Alternative Provision,Third Party Payments - Payments to Schools,09/10/2019,5315070,"3,000.00",George Green School
Children & Culture,Education Services,Other Strategic Functions,Alternative Provision,Third Party Payments - Payments to Schools,09/10/2019,5315071,"3,000.00",George Green School
Children & Culture,Education Services,Other Strategic Functions,Alternative Provision,Third Party Payments - Payments to Schools,09/10/2019,5315072,"3,000.00",George Green School
Children & Culture,Education Services,Other Strategic Functions,Alternative Provision,Third Party Payments - Payments to Schools,09/10/2019,5315073,"3,000.00",George Green School
Children & Culture,Children's Social Care,Children Looked After,S23 Family Placements P&V,Childrens Act Section 23 - Non-Contact Trans/Travel Costs,09/10/2019,5315487,"11,872.00",Kent County Council
Children & Culture,Education Services,Other Strategic Functions,Alternative Provision,Third Party Payments - Payments to Schools,09/10/2019,5315498,"3,000.00",BOW SCHOOL
Children & Culture,Education Services,Other Strategic Functions,Alternative Provision,Third Party Payments - Payments to Schools,09/10/2019,5315504,"3,000.00",BOW SCHOOL
Children & Culture,Education Services,Other Strategic Functions,Alternative Provision,Third Party Payments - Payments to Schools,09/10/2019,5315511,"3,000.00",BISHOP CHALLONER BOYS SCHOOL
Children & Culture,Education Services,Other Strategic Functions,Alternative Provision,Third Party Payments - Payments to Schools,09/10/2019,5315519,"3,000.00",BISHOP CHALLONER BOYS SCHOOL
Children & Culture,Education Services,Other Strategic Functions,Alternative Provision,Third Party Payments - Payments to Schools,09/10/2019,5315521,"3,000.00",ARNHEM WHARF PRIMARY SCHOOL
Children & Culture,Education Services,Other Strategic Functions,Alternative Provision,Third Party Payments - Payments to Schools,09/10/2019,5315524,"3,000.00",Bishop Challoner Catholic Collegiate
Children & Culture,Children's Social Care,Commissioning and Social Work,Advice and Assessment Section 17,Childrens Act Section 17 - Interpreting/Translation,09/10/2019,5315596,"1,101.90",Oncall Interpreters LTD
Children & Culture,Education Services,Other Strategic Functions,Music Trading Account,Payments to Private Contractors - Resources,09/10/2019,5315611,"3,900.00",Jessica Summers Projects
Children & Culture,Children's Social Care,Children Looked After,S23-Other-Semi-Ind. Unit,Childrens Act Section 23 - Placement Fee,09/10/2019,5315614,"17,658.00",SPRING CONSULT UK LTD
Children & Culture,Children's Social Care,Children Looked After,S23-Other-Semi-Ind. Unit,Childrens Act Section 23 - Placement Fee,09/10/2019,5315617,340.00,SPRING CONSULT UK LTD
Children & Culture,Children's Social Care,Family Support Services,CNN Pool: Children Direct Paym,Social Care - Direct Payments,09/10/2019,5315782,"11,730.00",DH TOWER HAMLETS
Children & Culture,Children's Social Care,Children Looked After,Virtual School PPG,Education & Training - Non Staff Tuition Fees,09/10/2019,5315997,700.00,Anchor Teaching Ltd
Children & Culture,Children's Social Care,Children Looked After,Virtual School PPG,Education & Training - Non Staff Tuition Fees,09/10/2019,5315998,500.00,Anchor Teaching Ltd
Children & Culture,Children's Social Care,Children Looked After,Virtual School PPG,Education & Training - Non Staff Tuition Fees,09/10/2019,5315999,"1,500.00",Anchor Teaching Ltd
Children & Culture,Children's Social Care,Children Looked After,Virtual School PPG,Agency Staff - Associations,09/10/2019,5316099,757.35,Academics ltd
Children & Culture,Children's Social Care,Support Service and Management Costs,Schools Catering,Kitchen Supplies - Food and Beverages,09/10/2019,5316124,-504.53,Thomas Ridley & Son Ltd
Children & Culture,Education Services,Other Strategic Functions,Special Education Needs DSG,Payments to Private Contractors - Other Establishments,09/10/2019,5316153,"10,186.00",SEN Support Services Ltd
Children & Culture,Education Services,Other Strategic Functions,Music Trading Account,Educational/Training Supplies - Arts & Crafts,09/10/2019,5321538,359.70,LMS Music Supplies
Children & Culture,Children's Social Care,Children Looked After,Children Looked After Team 3,Management & Admin Salaries - Pay & Oncost,11/10/2019,5282887,342.00,Barclaycard
Children & Culture,Cultural and Related Services,Open Spaces,Mile End Park,Events & Exhibition Supplies,11/10/2019,5300794,800.00,Brass Volcanoes
Children & Culture,Education Services,Other Strategic Functions,Governor Service Trading Account,Office Furniture/Equipment,11/10/2019,5300803,"5,975.94",Parama
Children & Culture,Education Services,Other Strategic Functions,Governor Service Trading Account,Office Furniture/Equipment,11/10/2019,5300804,749.99,Parama
Children & Culture,Cultural and Related Services,Open Spaces,Mile End Park,Repairs and Maintenance - Responsive - Buildings,11/10/2019,5300805,"4,600.00",J&L Coster (Drainage) Ltd
Children & Culture,Children's Social Care,Service Strategy,CSC Childrens Resources M & A,Training Expenses - Staff External Training (UK Based),11/10/2019,5300811,662.00,Pulse First Aid Ltd
Children & Culture,Cultural and Related Services,Open Spaces,Parks & Open Spaces Man&Admin,Payments to Private Contractors - Private Contractor,11/10/2019,5300813,"15,500.00",Mudchute Association
Children & Culture,Cultural and Related Services,Open Spaces,Parks & Open Spaces Man&Admin,Payments to Private Contractors - Private Contractor,11/10/2019,5300814,"7,750.00",Mudchute Association
Children & Culture,Cultural and Related Services,Open Spaces,Parks & Open Spaces Man&Admin,Payments to Private Contractors - Private Contractor,11/10/2019,5300815,"7,750.00",Mudchute Association
Children & Culture,Children's Social Care,Support Service and Management Costs,Professional Dev Centre,Grounds Maintenance - Contract - Street Furniture,11/10/2019,5300856,556.00,ESPO
Children & Culture,Children's Social Care,Support Service and Management Costs,Schools Catering,Kitchen Supplies - Food and Beverages,11/10/2019,5301009,787.74,Thomas Ridley & Son Ltd
Children & Culture,Children's Social Care,Support Service and Management Costs,Schools Catering,Kitchen Supplies - Food and Beverages,11/10/2019,5301010,705.30,Thomas Ridley & Son Ltd
Children & Culture,Children's Social Care,Support Service and Management Costs,Schools Catering,Kitchen Supplies - Food and Beverages,11/10/2019,5301011,397.24,Thomas Ridley & Son Ltd
Children & Culture,Children's Social Care,Support Service and Management Costs,Schools Catering,Kitchen Supplies - Food and Beverages,11/10/2019,5301013,388.89,Thomas Ridley & Son Ltd
Children & Culture,Children's Social Care,Support Service and Management Costs,Schools Catering,Kitchen Supplies - Food and Beverages,11/10/2019,5301016,842.78,Thomas Ridley & Son Ltd
Children & Culture,Children's Social Care,Support Service and Management Costs,Schools Catering,Kitchen Supplies - Food and Beverages,11/10/2019,5301017,408.97,Thomas Ridley & Son Ltd
Children & Culture,Children's Social Care,Support Service and Management Costs,Schools Catering,Kitchen Supplies - Food and Beverages,11/10/2019,5301018,394.64,Thomas Ridley & Son Ltd
Children & Culture,Children's Social Care,Support Service and Management Costs,Schools Catering,Kitchen Supplies - Food and Beverages,11/10/2019,5301019,391.78,Thomas Ridley & Son Ltd
Children & Culture,Children's Social Care,Support Service and Management Costs,Schools Catering,Kitchen Supplies - Food and Beverages,11/10/2019,5301020,"1,142.19",Thomas Ridley & Son Ltd
Children & Culture,Children's Social Care,Support Service and Management Costs,Schools Catering,Kitchen Supplies - Food and Beverages,11/10/2019,5301021,659.95,Thomas Ridley & Son Ltd
Children & Culture,Children's Social Care,Support Service and Management Costs,Schools Catering,Kitchen Supplies - Food and Beverages,11/10/2019,5301022,794.05,Thomas Ridley & Son Ltd
Children & Culture,Education Services,Other Strategic Functions,Special Education Needs DSG,Third Party Payments - Payments to Schools,11/10/2019,5301258,"29,333.33",Transitional Care LTD
Children & Culture,Education Services,Other Strategic Functions,Special Education Needs DSG,Third Party Payments - Payments to Schools,11/10/2019,5301259,"22,750.00",Transitional Care LTD
Children & Culture,Children's Social Care,Support Service and Management Costs,Schools Catering,Kitchen Supplies - Food and Beverages,11/10/2019,5301297,446.96,Thomas Ridley & Son Ltd
Children & Culture,Children's Social Care,Support Service and Management Costs,Schools Catering,Kitchen Supplies - Food and Beverages,11/10/2019,5301298,"1,804.76",Thomas Ridley & Son Ltd
Children & Culture,Children's Social Care,Support Service and Management Costs,Schools Catering,Kitchen Supplies - Food and Beverages,11/10/2019,5301299,309.68,Thomas Ridley & Son Ltd
Children & Culture,Education Services,Other Strategic Functions,Music Trading Account,Educational/Training Supplies - Books,11/10/2019,5301517,360.00,8va Limited
Children & Culture,Children's Social Care,Support Service and Management Costs,Sch. Meals A/c - Bow School,Kitchen Supplies - Food and Beverages,11/10/2019,5301521,899.10,Tiffin Sandwiches
Children & Culture,Children's Social Care,Support Service and Management Costs,Sch. Meals A/c - C.F.S. Upper (Harley Grove),Kitchen Supplies - Food and Beverages,11/10/2019,5301522,789.75,Tiffin Sandwiches
Children & Culture,Children's Social Care,Support Service and Management Costs,Sch. Meals A/c - Morpeth,Kitchen Supplies - Food and Beverages,11/10/2019,5301523,"1,181.93",Tiffin Sandwiches
Children & Culture,Children's Social Care,Support Service and Management Costs,Sch. Meals A/c - St. Paul's Way Comm. Trust,Kitchen Supplies - Food and Beverages,11/10/2019,5301526,567.00,Tiffin Sandwiches
Children & Culture,Children's Social Care,Support Service and Management Costs,"Mulberry Caf�		",Kitchen Supplies - Food and Beverages,11/10/2019,5301528,345.12,Tiffin Sandwiches
Children & Culture,Children's Social Care,Children Looked After,S23 Fam Pl P&V-F/Care,Childrens Act Section 23 - Placement Fee,11/10/2019,5301538,"3,313.80",Fostering Innovations Ltd
Children & Culture,Children's Social Care,Children Looked After,S23 Fam Pl P&V-F/Care,Childrens Act Section 23 - Placement Fee,11/10/2019,5301539,"3,313.80",Fostering Innovations Ltd
Children & Culture,Children's Social Care,Children Looked After,S23 Fam Pl P&V-F/Care,Childrens Act Section 23 - Placement Fee,11/10/2019,5301540,"3,381.43",Fostering Innovations Ltd
Children & Culture,Children's Social Care,Children Looked After,S23 Fam Pl P&V-F/Care,Childrens Act Section 23 - Placement Fee,11/10/2019,5301544,"2,817.86",Fostering Innovations Ltd
Children & Culture,Children's Social Care,Support Service and Management Costs,Welfare Catering,Kitchen Supplies - Food and Beverages,11/10/2019,5304486,264.11,William White Meats Ltd
Children & Culture,Children's Social Care,Support Service and Management Costs,Schools Catering,Kitchen Supplies - Food and Beverages,11/10/2019,5304498,282.94,William White Meats Ltd
Children & Culture,Children's Social Care,Support Service and Management Costs,Schools Catering,Kitchen Supplies - Food and Beverages,11/10/2019,5304505,481.85,William White Meats Ltd
Children & Culture,Children's Social Care,Support Service and Management Costs,Schools Catering,Kitchen Supplies - Food and Beverages,11/10/2019,5304509,593.53,William White Meats Ltd
Children & Culture,Children's Social Care,Support Service and Management Costs,Swanlea,Kitchen Supplies - Food and Beverages,11/10/2019,5304515,876.01,William White Meats Ltd
Children & Culture,Children's Social Care,Support Service and Management Costs,Sch. Meals A/c - Central Production Unit,Kitchen Supplies - Food and Beverages,11/10/2019,5304521,"1,185.72",William White Meats Ltd
Children & Culture,Education Services,Other Strategic Functions,Special Education Needs DSG,Third Party Payments - Other Agencies,11/10/2019,5304611,600.00,Redacted Section 40 FOI Act
Children & Culture,Children's Social Care,Children Looked After,S23 Fam Pl P&V-F/Care,Childrens Act Section 23 - Placement Fee,11/10/2019,5304663,"3,044.40",Children First Fostering Agency LTD
Children & Culture,Children's Social Care,Children Looked After,S23 Fam Pl P&V-F/Care,Childrens Act Section 23 - Placement Fee,11/10/2019,5304664,"3,071.40",Children First Fostering Agency LTD
Children & Culture,Children's Social Care,Support Service and Management Costs,Schools Catering,Kitchen Supplies - Food and Beverages,11/10/2019,5304689,454.48,Thomas Ridley & Son Ltd
Children & Culture,Children's Social Care,Children Looked After,Staying Put,Childrens Act Section 23 - Placement Fee,11/10/2019,5305785,"1,752.90",Children First Fostering Agency LTD
Children & Culture,Children's Social Care,Children Looked After,S23 Family Placements P&V,Childrens Act Section 23 - Placement Fee,11/10/2019,5306198,"3,256.20",Ryancare Fostering Ltd
Children & Culture,Children's Social Care,Children Looked After,S23 Family Placements P&V,Childrens Act Section 23 - Placement Fee,11/10/2019,5306199,"3,427.50",Ryancare Fostering Ltd
Children & Culture,Children's Social Care,Children Looked After,S23 Family Placements P&V,Childrens Act Section 23 - Placement Fee,11/10/2019,5306200,"4,500.00",Ryancare Fostering Ltd
Children & Culture,Children's Social Care,Children Looked After,S23 Fam Pl P&V-F/Care,Childrens Act Section 23 - Placement Fee,11/10/2019,5306201,"3,750.00",Ryancare Fostering Ltd
Children & Culture,Education Services,Other Strategic Functions,Parental Engagement,Office Furniture/Equipment,11/10/2019,5306232,"2,175.00",Unique Office Solutions
Children & Culture,Education Services,Other Strategic Functions,SEN External Travel,Social Care - Day Care,11/10/2019,5310159,"1,911.00",Carebridge Staffing Ltd
Children & Culture,Education Services,Other Strategic Functions,SEN External Travel,Social Care - Day Care,11/10/2019,5310160,882.00,Carebridge Staffing Ltd
Children & Culture,Education Services,Other Strategic Functions,SEN External Travel,Social Care - Day Care,11/10/2019,5310161,735.00,Carebridge Staffing Ltd
Children & Culture,Education Services,Other Strategic Functions,SEN External Travel,Social Care - Day Care,11/10/2019,5310162,294.00,Carebridge Staffing Ltd
Children & Culture,Education Services,Other Strategic Functions,SEN External Travel,Social Care - Day Care,11/10/2019,5310163,294.00,Carebridge Staffing Ltd
Children & Culture,Education Services,Other Strategic Functions,SEN External Travel,Social Care - Day Care,11/10/2019,5310164,735.00,Carebridge Staffing Ltd
Children & Culture,Education Services,Services to Young People and Other Community Learners,Further and Higher Education,Education Trust - Grant,11/10/2019,5311135,"4,250.00",City University London
Children & Culture,Children's Social Care,Children Looked After,S23-Resi-P&V/OLA-Child Home,Childrens Act Section 23 - Placement Fee,11/10/2019,5311254,"17,748.21",Castle Homes Care Ltd
Children & Culture,Education Services,Other Strategic Functions,CS Prem Retirement (Non-School,Services - Professional Fees - Financial Services Fees,11/10/2019,5315260,"232,490.14",Teachers Pensions
Children & Culture,Children's Social Care,Children Looked After,Leaving Care-UASC,Leaving Care Financial Assistance - Supp Accom/Hous Rents,11/10/2019,5315576,"1,417.64",Heartwood Outreach Services Ltd
Children & Culture,Children's Social Care,Family Support Services,Short Breaks and Family Support,Third Party Payments - Voluntary Associations,11/10/2019,5315957,"13,662.00",Tower Project
Children & Culture,Children's Social Care,Family Support Services,Short Breaks and Family Support,Third Party Payments - Voluntary Associations,11/10/2019,5315958,"36,720.00",Tower Project
Children & Culture,Children's Social Care,Children Looked After,S23-Other-Mother & Baby Unit,Childrens Act Section 23 - Placement Fee,11/10/2019,5315984,835.71,OneOneCoCo
Children & Culture,Children's Social Care,Children Looked After,S23 Fam Pl P&V-F/Care,Childrens Act Section 23 - Placement Fee,11/10/2019,5316022,784.00,Swiis Foster Care Limited
Children & Culture,Children's Social Care,Children Looked After,S23 Fam Pl P&V-F/Care,Childrens Act Section 23 - Other Childcare Support,11/10/2019,5316026,"1,080.00",Astrum Multi Academy Trust T/A Newbridge School
Children & Culture,Children's Social Care,Children Looked After,S23 Fam Pl P&V-F/Care,Childrens Act Section 23 - Placement Fee,11/10/2019,5316030,"1,325.52",Fostering Innovations Ltd
Children & Culture,Children's Social Care,Family Support Services,CNN Pool: Joint Family Support,Children with Disabilities - Special Care in the Home,11/10/2019,5317801,800.00,REMARK LTD
Children & Culture,Education Services,Other Strategic Functions,Alternative Provision,Third Party Payments - Payments to Schools,11/10/2019,5317826,"3,000.00",Stepney Green Maths Computing Science College
Children & Culture,Children's Social Care,Children Looked After,S23-Other-Mother & Baby Unit,Childrens Act Section 23 - Placement Fee,11/10/2019,5317856,"14,785.71",OneOneCoCo
Children & Culture,Children's Social Care,Children Looked After,S23-Other-Mother & Baby Unit,Childrens Act Section 23 - Placement Fee,11/10/2019,5317857,"15,857.14",OneOneCoCo
Children & Culture,Education Services,Primary Schools,Primary Schools Development,Training Expenses - Staff External Training (UK Based),11/10/2019,5317897,"279,930.00",Tower Hamlets Education Parnership
Children & Culture,Children's Social Care,Support Service and Management Costs,Toby Lane Function,Kitchen Supplies - Food and Beverages,11/10/2019,5317906,410.04,Bewley's Tea & Coffee UK Ltd
Children & Culture,Children's Social Care,Children Looked After,S23-Other-Mother & Baby Unit,Childrens Act Section 23 - Placement Fee,11/10/2019,5317915,"6,964.20",Care 2 Share LTD
Children & Culture,Cultural and Related Services,Recreation & Sport,GLL Sports Centres,Other Contributions - Staff,11/10/2019,5317924,"8,449.55",Greenwich Leisure LTD
Children & Culture,Cultural and Related Services,Recreation & Sport,GLL Sports Centres,Payments to Private Contractors - Sports Club Support,11/10/2019,5317925,"5,691.63",Greenwich Leisure LTD
Children & Culture,Children's Social Care,Children Looked After,S23-Other-Semi-Ind. Unit,Childrens Act Section 23 - Placement Fee,11/10/2019,5317954,"4,317.68",Real Life
Children & Culture,Children's Social Care,Support Service and Management Costs,Sch. Meals A/c - Central Production Unit,Kitchen Supplies - Food and Beverages,11/10/2019,5317978,-460.80,Thomas Ridley & Son Ltd
Children & Culture,Children's Social Care,Support Service and Management Costs,Schools Catering,Kitchen Supplies - Food and Beverages,11/10/2019,5317982,-266.79,Thomas Ridley & Son Ltd
Children & Culture,Children's Social Care,Services for young people,Youth Service Management,Third Party Payments - Voluntary Associations,11/10/2019,5318092,"12,500.00",Tower Project
Children & Culture,Children's Social Care,Children's and Young People's Safety,Community Safeguarding,Meeting Expenses,11/10/2019,5318113,300.00,RCCG Jubilee Hall
Children & Culture,Children's Social Care,Children Looked After,S23-Other-Semi-Ind. Unit,Childrens Act Section 23 - Placement Fee,11/10/2019,5318131,"4,600.00",Youth reality homes
Children & Culture,Children's Social Care,Other Children's and Family Services,Adoption Support Fund,Social Care - Day Care,11/10/2019,5318140,360.00,Beacon Lodge Psychological Services Ltd
Children & Culture,Children's Social Care,Other Children's and Family Services,Adoption Support Fund,Social Care - Day Care,11/10/2019,5318141,360.00,Beacon Lodge Psychological Services Ltd
Children & Culture,Children's Social Care,Support Service and Management Costs,Schools Catering,Kitchen Supplies - Food and Beverages,14/10/2019,5301304,"1,223.45",Thomas Ridley & Son Ltd
Children & Culture,Children's Social Care,Support Service and Management Costs,Schools Catering,Kitchen Supplies - Food and Beverages,14/10/2019,5301305,712.67,Thomas Ridley & Son Ltd
Children & Culture,Children's Social Care,Support Service and Management Costs,Schools Catering,Kitchen Supplies - Food and Beverages,14/10/2019,5301308,499.42,Thomas Ridley & Son Ltd
Children & Culture,Children's Social Care,Support Service and Management Costs,Schools Catering,Kitchen Supplies - Food and Beverages,14/10/2019,5301315,770.99,Thomas Ridley & Son Ltd
Children & Culture,Children's Social Care,Support Service and Management Costs,Schools Catering,Kitchen Supplies - Food and Beverages,14/10/2019,5301316,360.70,Thomas Ridley & Son Ltd
Children & Culture,Children's Social Care,Support Service and Management Costs,Schools Catering,Kitchen Supplies - Food and Beverages,14/10/2019,5301318,811.38,Thomas Ridley & Son Ltd
Children & Culture,Children's Social Care,Support Service and Management Costs,Schools Catering,Kitchen Supplies - Food and Beverages,14/10/2019,5301319,"1,855.70",Thomas Ridley & Son Ltd
Children & Culture,Children's Social Care,Support Service and Management Costs,Schools Catering,Kitchen Supplies - Food and Beverages,14/10/2019,5301320,437.20,Thomas Ridley & Son Ltd
Children & Culture,Children's Social Care,Support Service and Management Costs,Schools Catering,Kitchen Supplies - Food and Beverages,14/10/2019,5301321,841.35,Thomas Ridley & Son Ltd
Children & Culture,Children's Social Care,Support Service and Management Costs,Schools Catering,Kitchen Supplies - Food and Beverages,14/10/2019,5301323,415.04,Thomas Ridley & Son Ltd
Children & Culture,Children's Social Care,Support Service and Management Costs,Schools Catering,Kitchen Supplies - Food and Beverages,14/10/2019,5301324,567.90,Thomas Ridley & Son Ltd
Children & Culture,Children's Social Care,Support Service and Management Costs,Schools Catering,Kitchen Supplies - Food and Beverages,14/10/2019,5301325,341.55,Thomas Ridley & Son Ltd
Children & Culture,Children's Social Care,Support Service and Management Costs,Schools Catering,Kitchen Supplies - Food and Beverages,14/10/2019,5301326,411.56,Thomas Ridley & Son Ltd
Children & Culture,Children's Social Care,Support Service and Management Costs,Schools Catering,Kitchen Supplies - Food and Beverages,14/10/2019,5301327,380.51,Thomas Ridley & Son Ltd
Children & Culture,Children's Social Care,Support Service and Management Costs,Schools Catering,Kitchen Supplies - Food and Beverages,14/10/2019,5301328,376.07,Thomas Ridley & Son Ltd
Children & Culture,Children's Social Care,Support Service and Management Costs,Schools Catering,Kitchen Supplies - Food and Beverages,14/10/2019,5301329,393.16,Thomas Ridley & Son Ltd
Children & Culture,Children's Social Care,Support Service and Management Costs,Schools Catering,Kitchen Supplies - Food and Beverages,14/10/2019,5301330,253.58,Thomas Ridley & Son Ltd
Children & Culture,Children's Social Care,Support Service and Management Costs,Schools Catering,Kitchen Supplies - Food and Beverages,14/10/2019,5301331,288.34,Thomas Ridley & Son Ltd
Children & Culture,Children's Social Care,Support Service and Management Costs,Schools Catering,Kitchen Supplies - Food and Beverages,14/10/2019,5301333,455.85,Thomas Ridley & Son Ltd
Children & Culture,Children's Social Care,Support Service and Management Costs,Schools Catering,Kitchen Supplies - Food and Beverages,14/10/2019,5301335,252.91,Thomas Ridley & Son Ltd
Children & Culture,Children's Social Care,Support Service and Management Costs,Schools Catering,Kitchen Supplies - Food and Beverages,14/10/2019,5301336,320.64,Thomas Ridley & Son Ltd
Children & Culture,Children's Social Care,Support Service and Management Costs,Schools Catering,Kitchen Supplies - Food and Beverages,14/10/2019,5301337,258.68,Thomas Ridley & Son Ltd
Children & Culture,Children's Social Care,Support Service and Management Costs,Schools Catering,Kitchen Supplies - Food and Beverages,14/10/2019,5301338,405.16,Thomas Ridley & Son Ltd
Children & Culture,Children's Social Care,Support Service and Management Costs,Schools Catering,Kitchen Supplies - Food and Beverages,14/10/2019,5301340,270.13,Thomas Ridley & Son Ltd
Children & Culture,Children's Social Care,Support Service and Management Costs,Schools Catering,Kitchen Supplies - Food and Beverages,14/10/2019,5301341,260.26,Thomas Ridley & Son Ltd
Children & Culture,Children's Social Care,Support Service and Management Costs,Sch. Meals A/c - P.D.C. Cateen,Kitchen Supplies - Food and Beverages,14/10/2019,5301344,357.81,Thomas Ridley & Son Ltd
Children & Culture,Children's Social Care,Support Service and Management Costs,Schools Catering,Kitchen Supplies - Food and Beverages,14/10/2019,5301345,287.75,Thomas Ridley & Son Ltd
Children & Culture,Children's Social Care,Support Service and Management Costs,Schools Catering,Kitchen Supplies - Food and Beverages,14/10/2019,5301346,904.39,Thomas Ridley & Son Ltd
Children & Culture,Children's Social Care,Support Service and Management Costs,Schools Catering,Kitchen Supplies - Food and Beverages,14/10/2019,5301347,413.75,Thomas Ridley & Son Ltd
Children & Culture,Children's Social Care,Support Service and Management Costs,Schools Catering,Kitchen Supplies - Food and Beverages,14/10/2019,5301349,426.47,Thomas Ridley & Son Ltd
Children & Culture,Children's Social Care,Support Service and Management Costs,Schools Catering,Kitchen Supplies - Food and Beverages,14/10/2019,5301350,454.91,Thomas Ridley & Son Ltd
Children & Culture,Children's Social Care,Support Service and Management Costs,Schools Catering,Kitchen Supplies - Food and Beverages,14/10/2019,5301351,549.01,Thomas Ridley & Son Ltd
Children & Culture,Children's Social Care,Support Service and Management Costs,Schools Catering,Kitchen Supplies - Food and Beverages,14/10/2019,5301352,498.02,Thomas Ridley & Son Ltd
Children & Culture,Children's Social Care,Support Service and Management Costs,Schools Catering,Kitchen Supplies - Food and Beverages,14/10/2019,5301354,389.08,Thomas Ridley & Son Ltd
Children & Culture,Children's Social Care,Support Service and Management Costs,Schools Catering,Kitchen Supplies - Food and Beverages,14/10/2019,5301356,496.57,Thomas Ridley & Son Ltd
Children & Culture,Children's Social Care,Support Service and Management Costs,Schools Catering,Kitchen Supplies - Food and Beverages,14/10/2019,5301357,365.29,Thomas Ridley & Son Ltd
Children & Culture,Children's Social Care,Support Service and Management Costs,Schools Catering,Kitchen Supplies - Food and Beverages,14/10/2019,5301358,735.77,Thomas Ridley & Son Ltd
Children & Culture,Cultural and Related Services,Open Spaces,Mile End Park,Repairs and Maintenance - Responsive - Buildings,14/10/2019,5301433,"5,270.00",JC Coster (Metalworks) Ltd
Children & Culture,Education Services,Other Strategic Functions,Parents Advice Centre,Office Furniture/Equipment,14/10/2019,5301578,"3,000.00",Parama
Children & Culture,Education Services,Other Strategic Functions,Parental Engagement Trading Account,Office Furniture/Equipment,14/10/2019,5301578,"4,500.00",Parama
Children & Culture,Children's Social Care,Support Service and Management Costs,Swanlea,Kitchen Supplies - Food and Beverages,14/10/2019,5301635,505.00,Chicken Joes
Children & Culture,Children's Social Care,Support Service and Management Costs,Sch. Meals A/c - Central Production Unit,Kitchen Supplies - Food and Beverages,14/10/2019,5301636,795.14,Chicken Joes
Children & Culture,Children's Social Care,Support Service and Management Costs,Schools Catering,Kitchen Supplies - Food and Beverages,14/10/2019,5301675,368.50,Thomas Ridley & Son Ltd
Children & Culture,Children's Social Care,Support Service and Management Costs,Schools Catering,Kitchen Supplies - Food and Beverages,14/10/2019,5301680,262.14,Thomas Ridley & Son Ltd
Children & Culture,Children's Social Care,Support Service and Management Costs,Schools Catering,Kitchen Supplies - Food and Beverages,14/10/2019,5301681,582.08,Thomas Ridley & Son Ltd
Children & Culture,Children's Social Care,Support Service and Management Costs,Schools Catering,Kitchen Supplies - Food and Beverages,14/10/2019,5301682,441.40,Thomas Ridley & Son Ltd
Children & Culture,Children's Social Care,Support Service and Management Costs,Schools Catering,Kitchen Supplies - Food and Beverages,14/10/2019,5301683,483.64,Thomas Ridley & Son Ltd
Children & Culture,Children's Social Care,Support Service and Management Costs,Schools Catering,Kitchen Supplies - Food and Beverages,14/10/2019,5301685,316.29,Thomas Ridley & Son Ltd
Children & Culture,Children's Social Care,Support Service and Management Costs,Toby Lane Function,Kitchen Supplies - Food and Beverages,14/10/2019,5301687,391.52,Thomas Ridley & Son Ltd
Children & Culture,Children's Social Care,Support Service and Management Costs,Sch. Meals A/c - Central Production Unit,Kitchen Supplies - Food and Beverages,14/10/2019,5301688,"2,019.53",Thomas Ridley & Son Ltd
Children & Culture,Children's Social Care,Support Service and Management Costs,Schools Catering,Kitchen Supplies - Food and Beverages,14/10/2019,5301689,268.42,Thomas Ridley & Son Ltd
Children & Culture,Children's Social Care,Support Service and Management Costs,Schools Catering,Kitchen Supplies - Food and Beverages,14/10/2019,5301729,264.51,Prescott-Thomas LTD.
Children & Culture,Children's Social Care,Support Service and Management Costs,Schools Catering,Kitchen Supplies - Food and Beverages,14/10/2019,5301750,374.32,Prescott-Thomas LTD.
Children & Culture,Children's Social Care,Support Service and Management Costs,Schools Catering,Kitchen Supplies - Catering Equipment,14/10/2019,5304530,299.50,Nisbets PLC
Children & Culture,Children's Social Care,Other Children's and Family Services,Permanancy and Adoption Support Team 1,Social Care - Generic,14/10/2019,5304534,"1,356.25",Family Action
Children & Culture,Children's Social Care,Family Support Services,CNN Pool: Joint Family Support,Social Care - Homecare,14/10/2019,5304560,-342.00,Medstar Domiciliary Care Servies Ltd
Children & Culture,Children's Social Care,Children's and Young People's Safety,Community Safeguarding,Catering - Hospitality,14/10/2019,5304672,255.00,All Seasons Foods
Children & Culture,Children's Social Care,Support Service and Management Costs,Schools Catering,Kitchen Supplies - Food and Beverages,14/10/2019,5304690,477.44,Thomas Ridley & Son Ltd
Children & Culture,Children's Social Care,Children Looked After,S23 Fam Pl P&V-F/Care,Childrens Act Section 23 - Placement Fee,14/10/2019,5305147,"3,400.00",Qalb Fostering Agency Ltd
Children & Culture,Children's Social Care,Children Looked After,S23 Fam Pl P&V-F/Care,Childrens Act Section 23 - Placement Fee,14/10/2019,5305148,"5,600.00",Qalb Fostering Agency Ltd
Children & Culture,Education Services,Other Strategic Functions,Special Education Needs DSG,Third Party Payments - Payments to Schools,14/10/2019,5305776,"9,178.17",Benjamin UK Ltd
Children & Culture,Children's Social Care,Children Looked After,S23-Resi-P&V/OLA-Boarding Sch,Childrens Act Section 23 - Placement Fee,14/10/2019,5305776,"9,178.17",Benjamin UK Ltd
Children & Culture,Education Services,Early Years,Isle of Dogs. CC,Educational/Training Supplies - Curriculum Visits/Activities,14/10/2019,5306134,442.86,Cosy
Children & Culture,Children's Social Care,Support Service and Management Costs,Schools Catering,Kitchen Supplies - Food and Beverages,14/10/2019,5306370,427.90,William White Meats Ltd
Children & Culture,Children's Social Care,Support Service and Management Costs,Schools Catering,Kitchen Supplies - Food and Beverages,14/10/2019,5306372,454.40,William White Meats Ltd
Children & Culture,Children's Social Care,Support Service and Management Costs,Schools Catering,Kitchen Supplies - Food and Beverages,14/10/2019,5306373,284.10,William White Meats Ltd
Children & Culture,Children's Social Care,Support Service and Management Costs,Schools Catering,Kitchen Supplies - Food and Beverages,14/10/2019,5306374,289.48,William White Meats Ltd
Children & Culture,Children's Social Care,Support Service and Management Costs,Schools Catering,Kitchen Supplies - Food and Beverages,14/10/2019,5306382,290.17,William White Meats Ltd
Children & Culture,Children's Social Care,Support Service and Management Costs,Schools Catering,Kitchen Supplies - Food and Beverages,14/10/2019,5306384,356.61,William White Meats Ltd
Children & Culture,Children's Social Care,Support Service and Management Costs,Schools Catering,Kitchen Supplies - Food and Beverages,14/10/2019,5306385,383.81,William White Meats Ltd
Children & Culture,Children's Social Care,Support Service and Management Costs,Schools Catering,Kitchen Supplies - Food and Beverages,14/10/2019,5306388,472.73,William White Meats Ltd
Children & Culture,Children's Social Care,Support Service and Management Costs,Schools Catering,Kitchen Supplies - Food and Beverages,14/10/2019,5306390,566.99,William White Meats Ltd
Children & Culture,Children's Social Care,Support Service and Management Costs,Schools Catering,Kitchen Supplies - Food and Beverages,14/10/2019,5306393,386.02,William White Meats Ltd
Children & Culture,Children's Social Care,Support Service and Management Costs,Schools Catering,Kitchen Supplies - Food and Beverages,14/10/2019,5306400,311.90,William White Meats Ltd
Children & Culture,Children's Social Care,Support Service and Management Costs,Schools Catering,Kitchen Supplies - Food and Beverages,14/10/2019,5306403,665.38,William White Meats Ltd
Children & Culture,Children's Social Care,Support Service and Management Costs,Schools Catering,Kitchen Supplies - Food and Beverages,14/10/2019,5306404,378.94,William White Meats Ltd
Children & Culture,Children's Social Care,Support Service and Management Costs,Schools Catering,Kitchen Supplies - Food and Beverages,14/10/2019,5306405,263.60,William White Meats Ltd
Children & Culture,Children's Social Care,Support Service and Management Costs,Sch. Meals A/c - Central Production Unit,Kitchen Supplies - Food and Beverages,14/10/2019,5306406,866.15,William White Meats Ltd
Children & Culture,Children's Social Care,Support Service and Management Costs,Schools Catering,Kitchen Supplies - Food and Beverages,14/10/2019,5306410,274.39,William White Meats Ltd
Children & Culture,Children's Social Care,Support Service and Management Costs,Schools Catering,Kitchen Supplies - Food and Beverages,14/10/2019,5306412,607.68,William White Meats Ltd
Children & Culture,Children's Social Care,Support Service and Management Costs,Schools Catering,Kitchen Supplies - Food and Beverages,14/10/2019,5306414,294.30,William White Meats Ltd
Children & Culture,Children's Social Care,Support Service and Management Costs,Schools Catering,Kitchen Supplies - Food and Beverages,14/10/2019,5306417,371.53,William White Meats Ltd
Children & Culture,Children's Social Care,Support Service and Management Costs,Schools Catering,Kitchen Supplies - Food and Beverages,14/10/2019,5306418,511.62,William White Meats Ltd
Children & Culture,Children's Social Care,Support Service and Management Costs,Schools Catering,Kitchen Supplies - Food and Beverages,14/10/2019,5306424,498.56,William White Meats Ltd
Children & Culture,Children's Social Care,Support Service and Management Costs,Schools Catering,Kitchen Supplies - Food and Beverages,14/10/2019,5306429,339.41,William White Meats Ltd
Children & Culture,Children's Social Care,Support Service and Management Costs,Schools Catering,Kitchen Supplies - Food and Beverages,14/10/2019,5306432,"1,100.70",William White Meats Ltd
Children & Culture,Children's Social Care,Support Service and Management Costs,Schools Catering,Kitchen Supplies - Food and Beverages,14/10/2019,5306434,380.61,William White Meats Ltd
Children & Culture,Children's Social Care,Support Service and Management Costs,Schools Catering,Kitchen Supplies - Food and Beverages,14/10/2019,5306435,280.34,William White Meats Ltd
Children & Culture,Children's Social Care,Children Looked After,S23-Other-Mother & Baby Unit,Childrens Act Section 23 - Placement Fee,14/10/2019,5310633,"3,298.00",Jamma Umoja (Residential Services) LTD
Children & Culture,Children's Social Care,Children Looked After,S23 Fam Pl P&V-F/Care,Childrens Act Section 23 - Placement Fee,14/10/2019,5316031,"3,381.43",Fostering Innovations Ltd
Children & Culture,Children's Social Care,Children Looked After,S23 Fam Pl P&V-F/Care,Childrens Act Section 23 - Placement Fee,14/10/2019,5316032,"3,313.80",Fostering Innovations Ltd
Children & Culture,Children's Social Care,Family Support Services,CNN Pool: Joint Family Support,Social Care - Homecare,14/10/2019,5317836,"58,562.60",APASENTH
Children & Culture,Children's Social Care,Children Looked After,S23-Other-Semi-Ind. Unit,Childrens Act Section 23 - Placement Fee,14/10/2019,5317955,270.00,Real Life
Children & Culture,Children's Social Care,Children Looked After,S23-Other-Mother & Baby Unit,Childrens Act Section 23 - Placement Fee,14/10/2019,5317956,"4,857.07",Real Life
Children & Culture,Children's Social Care,Children Looked After,S23-Other-Mother & Baby Unit,Childrens Act Section 23 - Placement Fee,14/10/2019,5317957,640.00,Real Life
Children & Culture,Children's Social Care,Family Support Services,CNN Pool: Joint Family Support,Social Care - Homecare,14/10/2019,5318105,"1,494.00",Medstar Domiciliary Care Servies Ltd
Children & Culture,Children's Social Care,Family Support Services,CNN Pool: Joint Family Support,Social Care - Homecare,14/10/2019,5318106,"1,566.00",Medstar Domiciliary Care Servies Ltd
Children & Culture,Children's Social Care,Family Support Services,CNN Pool: Joint Family Support,Social Care - Homecare,14/10/2019,5318107,648.00,Medstar Domiciliary Care Servies Ltd
Children & Culture,Children's Social Care,Family Support Services,CNN Pool: Joint Family Support,Social Care - Homecare,14/10/2019,5318108,648.00,Medstar Domiciliary Care Servies Ltd
Children & Culture,Children's Social Care,Children Looked After,S23-Other-Semi-Ind. Unit,Childrens Act Section 23 - Placement Fee,14/10/2019,5318123,"4,380.00",Youth reality homes
Children & Culture,Children's Social Care,Children Looked After,S23-Other-Semi-Ind. Unit,Childrens Act Section 23 - Placement Fee,14/10/2019,5318124,"5,180.00",Youth reality homes
Children & Culture,Children's Social Care,Children Looked After,S23-Other-Supported Lodgings,Childrens Act Section 23 - Placement Fee,14/10/2019,5318129,"18,380.00",Youth reality homes
Children & Culture,Children's Social Care,Children Looked After,S23-Other-Semi-Ind. Unit,Childrens Act Section 23 - Placement Fee,14/10/2019,5318132,"5,180.00",Youth reality homes
Children & Culture,Education Services,Other Strategic Functions,High Needs FE Colleges,Third Party Payments - Payments to Schools,14/10/2019,5318151,"1,747.96",Newham Sixth Form College
Children & Culture,Children's Social Care,Services for young people,Youth Service Management,Computing - Purchase of Software,14/10/2019,5318410,"5,100.00",Substance 2005 Ltd
Children & Culture,Cultural and Related Services,Open Spaces,Mile End Park,Rent Charges,14/10/2019,5318411,"6,543.95",The Arch Company Properties Limited
Children & Culture,Cultural and Related Services,Open Spaces,Mile End Park,Rent Charges,14/10/2019,5318412,"10,749.30",The Arch Company Properties Limited
Children & Culture,Cultural and Related Services,Open Spaces,Mile End Park,Rent Charges,14/10/2019,5318413,"2,681.37",The Arch Company Properties Limited
Children & Culture,Children's Social Care,Children Looked After,S23 Fam Pl In-Hse-S/Term F/C,Childrens Act Section 23 - Holiday Grant,14/10/2019,5318570,"1,284.38",Heritage Air Express
Children & Culture,Cultural and Related Services,Open Spaces,Mile End Park,Repairs and Maintenance - Responsive - Buildings,16/10/2019,5304546,"2,075.00",JC Coster (Metalworks) Ltd
Children & Culture,Cultural and Related Services,Open Spaces,Parks & Open Spaces Man&Admin,Repairs and Maintenance - Responsive - Buildings,16/10/2019,5304549,720.00,JC Coster (Metalworks) Ltd
Children & Culture,Education Services,Other Strategic Functions,Safeguarding Service,Education & Training - Non Staff Tuition Fees,16/10/2019,5304550,"2,000.00",Redacted Section 40 FOI Act
Children & Culture,Education Services,Other Strategic Functions,SACRE,Services - Professional Fees - Consultants Fees,16/10/2019,5304551,"4,400.00",Redacted Section 40 FOI Act
Children & Culture,Education Services,Other Strategic Functions,Alternative Provision,Third Party Payments - Contingencies,16/10/2019,5304642,"14,922.28",It's Your Life
Children & Culture,Education Services,Other Strategic Functions,Alternative Provision,Third Party Payments - Contingencies,16/10/2019,5304643,"17,409.33",It's Your Life
Children & Culture,Children's Social Care,Children Looked After,LCS/Allowances-Accom,Leaving Care Financial Assistance - Supp Accom/Hous Rents,16/10/2019,5304646,832.25,HAMLETTS LTD
Children & Culture,Children's Social Care,Children Looked After,LCS/Allowances-Accom,Leaving Care Financial Assistance - Supp Accom/Hous Rents,16/10/2019,5304647,998.70,HAMLETTS LTD
Children & Culture,Children's Social Care,Children Looked After,LCS/Allowances-Accom,Leaving Care Financial Assistance - Supp Accom/Hous Rents,16/10/2019,5304648,"2,097.27",HAMLETTS LTD
Children & Culture,Children's Social Care,Children Looked After,LCS/Allowances-Accom,Leaving Care Financial Assistance - Supp Accom/Hous Rents,16/10/2019,5304649,"4,360.99",HAMLETTS LTD
Children & Culture,Education Services,Early Years,Marner. CC,Fixtures and Fittings - Purchases - General,16/10/2019,5304684,312.00,ESPO
Children & Culture,Children's Social Care,Support Service and Management Costs,Toby Lane Function,Kitchen Supplies - Food and Beverages,16/10/2019,5304695,281.17,Prescott-Thomas LTD.
Children & Culture,Education Services,Other Strategic Functions,High Needs Other Boroughs,Third Party Payments - Payments to Schools,16/10/2019,5305069,"42,275.64",Blanche Neville School
Children & Culture,Cultural and Related Services,Recreation & Sport,Mayors Cup,Recreational Activities,16/10/2019,5305136,792.00,Apollo Event Medical Ltd
Children & Culture,Children's Social Care,Support Service and Management Costs,Schools Catering,Kitchen Supplies - Food and Beverages,16/10/2019,5305798,474.46,Thomas Ridley & Son Ltd
Children & Culture,Children's Social Care,Support Service and Management Costs,Schools Catering,Kitchen Supplies - Food and Beverages,16/10/2019,5305801,299.56,Thomas Ridley & Son Ltd
Children & Culture,Children's Social Care,Support Service and Management Costs,Schools Catering,Kitchen Supplies - Food and Beverages,16/10/2019,5305802,435.01,Thomas Ridley & Son Ltd
Children & Culture,Children's Social Care,Support Service and Management Costs,Schools Catering,Kitchen Supplies - Food and Beverages,16/10/2019,5305803,891.96,Thomas Ridley & Son Ltd
Children & Culture,Children's Social Care,Support Service and Management Costs,Schools Catering,Kitchen Supplies - Food and Beverages,16/10/2019,5305804,302.75,Thomas Ridley & Son Ltd
Children & Culture,Children's Social Care,Support Service and Management Costs,Schools Catering,Kitchen Supplies - Food and Beverages,16/10/2019,5305805,327.49,Thomas Ridley & Son Ltd
Children & Culture,Children's Social Care,Support Service and Management Costs,Sch. Meals A/c - Central Production Unit,Kitchen Supplies - Food and Beverages,16/10/2019,5305806,606.25,Thomas Ridley & Son Ltd
Children & Culture,Children's Social Care,Support Service and Management Costs,Sch. Meals A/c - Central Production Unit,Kitchen Supplies - Food and Beverages,16/10/2019,5305807,"1,629.75",Thomas Ridley & Son Ltd
Children & Culture,Children's Social Care,Support Service and Management Costs,Schools Catering,Kitchen Supplies - Food and Beverages,16/10/2019,5305809,773.95,Thomas Ridley & Son Ltd
Children & Culture,Children's Social Care,Support Service and Management Costs,Schools Catering,Kitchen Supplies - Food and Beverages,16/10/2019,5305812,288.99,Thomas Ridley & Son Ltd
Children & Culture,Children's Social Care,Support Service and Management Costs,Schools Catering,Kitchen Supplies - Food and Beverages,16/10/2019,5305814,433.29,Thomas Ridley & Son Ltd
Children & Culture,Children's Social Care,Support Service and Management Costs,Schools Catering,Kitchen Supplies - Food and Beverages,16/10/2019,5305816,458.32,Thomas Ridley & Son Ltd
Children & Culture,Children's Social Care,Support Service and Management Costs,Schools Catering,Kitchen Supplies - Food and Beverages,16/10/2019,5305818,679.65,Thomas Ridley & Son Ltd
Children & Culture,Children's Social Care,Support Service and Management Costs,Schools Catering,Kitchen Supplies - Food and Beverages,16/10/2019,5305819,337.73,Thomas Ridley & Son Ltd
Children & Culture,Children's Social Care,Support Service and Management Costs,Schools Catering,Kitchen Supplies - Food and Beverages,16/10/2019,5305820,553.39,Thomas Ridley & Son Ltd
Children & Culture,Children's Social Care,Support Service and Management Costs,Schools Catering,Kitchen Supplies - Food and Beverages,16/10/2019,5305821,465.38,Thomas Ridley & Son Ltd
Children & Culture,Children's Social Care,Support Service and Management Costs,"Mulberry Caf�		",Kitchen Supplies - Food and Beverages,16/10/2019,5305823,468.70,Thomas Ridley & Son Ltd
Children & Culture,Children's Social Care,Support Service and Management Costs,Schools Catering,Kitchen Supplies - Food and Beverages,16/10/2019,5305826,326.43,Thomas Ridley & Son Ltd
Children & Culture,Children's Social Care,Support Service and Management Costs,Schools Catering,Kitchen Supplies - Food and Beverages,16/10/2019,5305827,281.57,Thomas Ridley & Son Ltd
Children & Culture,Children's Social Care,Support Service and Management Costs,Sch. Meals A/c - Marner,Kitchen Supplies - Catering Equipment,16/10/2019,5306042,639.98,Nisbets PLC
Children & Culture,Education Services,Other Strategic Functions,High Needs Other Boroughs,Third Party Payments - Payments to Schools,16/10/2019,5306130,"18,730.25",Ickburgh School
Children & Culture,Children's Social Care,Support Service and Management Costs,Welfare Catering,Kitchen Supplies - Food and Beverages,16/10/2019,5306443,260.32,William White Meats Ltd
Children & Culture,Children's Social Care,Support Service and Management Costs,Swanlea,Kitchen Supplies - Food and Beverages,16/10/2019,5306447,272.71,William White Meats Ltd
Children & Culture,Children's Social Care,Support Service and Management Costs,Schools Catering,Kitchen Supplies - Food and Beverages,16/10/2019,5306459,283.98,William White Meats Ltd
Children & Culture,Education Services,Other Strategic Functions,Special Education Needs DSG,Third Party Payments - Payments to Schools,16/10/2019,5306531,480.00,The Royal Society for Blind Children
Children & Culture,Education Services,Other Strategic Functions,Gorsefield Centre,Agency Staff - Associations,16/10/2019,5306566,"1,274.85",Academics ltd
Children & Culture,Children's Social Care,Children Looked After,Virtual School PPG,Agency Staff - Associations,16/10/2019,5306567,"1,274.85",Academics ltd
Children & Culture,Children's Social Care,Children Looked After,Virtual School PPG,Agency Staff - Associations,16/10/2019,5306568,764.82,Academics ltd
Children & Culture,Children's Social Care,Children Looked After,Virtual School PPG,Agency Staff - Associations,16/10/2019,5306569,"1,019.88",Academics ltd
Children & Culture,Children's Social Care,Children Looked After,Virtual School PPG,Agency Staff - Associations,16/10/2019,5306570,764.91,Academics ltd
Children & Culture,Children's Social Care,Children Looked After,Virtual School PPG,Agency Staff - Associations,16/10/2019,5306571,254.97,Academics ltd
Children & Culture,Children's Social Care,Children Looked After,Virtual School PPG,Agency Staff - Associations,16/10/2019,5306572,"1,019.88",Academics ltd
Children & Culture,Children's Social Care,Children Looked After,Virtual School PPG,Agency Staff - Associations,16/10/2019,5306573,"1,019.88",Academics ltd
Children & Culture,Education Services,Other Strategic Functions,Gorsefield Centre,Agency Staff - Associations,16/10/2019,5306574,"1,274.85",Academics ltd
Children & Culture,Children's Social Care,Children Looked After,Virtual School PPG,Third Party Payments - Payments to Schools,16/10/2019,5310150,700.00,Virgo Fidelis Convent Senior School
Children & Culture,No Service Specified,No Division Specified,Capital-Minor Works (SC),Other External Fees - Other External Fees,16/10/2019,5311055,"15,323.50",Controlcare Ltd
Children & Culture,Education Services,Other Strategic Functions,ESW Trading Account,Training Expenses - Staff External Training (UK Based),16/10/2019,5311074,520.00,Association for Education Welfare Manage
Children & Culture,No Service Specified,No Division Specified,Capital-Minor Works (SC),Building Works - Main Works,16/10/2019,5311721,"1,982,594.00",Tower Hamlets Schools LTD
Children & Culture,Children's Social Care,Children Looked After,S23-Other-Semi-Ind. Unit,Childrens Act Section 23 - Placement Fee,16/10/2019,5315613,"22,276.00",SPRING CONSULT UK LTD
Children & Culture,Children's Social Care,Children Looked After,S23-Other-Semi-Ind. Unit,Childrens Act Section 23 - Placement Fee,16/10/2019,5315616,420.00,SPRING CONSULT UK LTD
Children & Culture,Education Services,Secondary Schools,PFI Hldg Account-Grouped Schoo,Repairs and Maintenance - Responsive - Buildings,16/10/2019,5317914,"4,175.56",Tower Hamlets Schools LTD
Children & Culture,Children's Social Care,Children Looked After,S23-Other-Mother & Baby Unit,Childrens Act Section 23 - Placement Fee,16/10/2019,5317952,257.14,Real Life
Children & Culture,Children's Social Care,Support Service and Management Costs,Schools Catering,Kitchen Supplies - Food and Beverages,16/10/2019,5317972,367.77,Thomas Ridley & Son Ltd
Children & Culture,Education Services,Other Strategic Functions,SEN External Travel,Non Staff Transport Costs - Reimbursement,16/10/2019,5318080,280.00,Mile End Car Hire Limited
Children & Culture,Education Services,Other Strategic Functions,SEN External Travel,Non Staff Transport Costs - Reimbursement,16/10/2019,5318081,"2,040.00",Mile End Car Hire Limited
Children & Culture,Education Services,Other Strategic Functions,SEN External Travel,Non Staff Transport Costs - Reimbursement,16/10/2019,5318082,"1,530.00",Mile End Car Hire Limited
Children & Culture,Education Services,Other Strategic Functions,SEN External Travel,Non Staff Transport Costs - Reimbursement,16/10/2019,5318083,"1,675.00",Mile End Car Hire Limited
Children & Culture,Education Services,Other Strategic Functions,SEN External Travel,Non Staff Transport Costs - Reimbursement,16/10/2019,5318084,"2,970.00",Mile End Car Hire Limited
Children & Culture,Education Services,Other Strategic Functions,SEN External Travel,Non Staff Transport Costs - Reimbursement,16/10/2019,5318085,"1,710.00",Mile End Car Hire Limited
Children & Culture,Education Services,Other Strategic Functions,SEN External Travel,Non Staff Transport Costs - Reimbursement,16/10/2019,5318086,"2,880.00",Mile End Car Hire Limited
Children & Culture,Education Services,Other Strategic Functions,SEN External Travel,Non Staff Transport Costs - Reimbursement,16/10/2019,5318087,"2,160.00",Mile End Car Hire Limited
Children & Culture,Children's Social Care,Children Looked After,S23-Other-Semi-Ind. Unit,Childrens Act Section 23 - Placement Fee,16/10/2019,5318125,"4,400.00",Youth reality homes
Children & Culture,Children's Social Care,Children Looked After,S23-Other-Semi-Ind. Unit,Childrens Act Section 23 - Placement Fee,16/10/2019,5318128,"5,980.00",Youth reality homes
Children & Culture,Children's Social Care,Children Looked After,Children Looked After Sect 17,Childrens Act Section 17 - Miscellaneous,16/10/2019,5318142,"1,655.00",Child in Time Ltd
Children & Culture,Children's Social Care,Service Strategy,CS Management IT System,Computing - Maint Agreements - Maintenance,16/10/2019,5318155,"2,800.00",Quicksilva Limited
Children & Culture,Children's Social Care,Services for young people,Youth Service Management,Room Hire,16/10/2019,5318350,280.00,City Of London Corporation
Children & Culture,Children's Social Care,Services for young people,Youth Service Management,Room Hire,16/10/2019,5318352,325.00,City Of London Corporation
Children & Culture,Children's Social Care,Services for young people,Youth Service Management,Room Hire,16/10/2019,5318354,350.00,City Of London Corporation
Children & Culture,Children's Social Care,Services for young people,Youth Service Management,Room Hire,16/10/2019,5318357,280.00,City Of London Corporation
Children & Culture,Children's Social Care,Services for young people,Youth Service Management,Room Hire,16/10/2019,5318359,336.00,City Of London Corporation
Children & Culture,Children's Social Care,Services for young people,Youth Service Management,Room Hire,16/10/2019,5318360,280.00,City Of London Corporation
Children & Culture,Children's Social Care,Children Looked After,S23 Fam Pl P&V-F/Care,Childrens Act Section 23 - Placement Fee,16/10/2019,5318398,"3,600.00",Fostering Innovations Ltd
Children & Culture,Cultural and Related Services,Recreation & Sport,Mayors Cup,Events & Exhibition Supplies,16/10/2019,5318509,316.67,Neils Sports Trophies
Children & Culture,Children's Social Care,Family Support Services,CNN Pool: Joint Family Support,Social Care - Homecare,16/10/2019,5318613,495.00,QALB Centre Short Break Services
Children & Culture,Children's Social Care,Children Looked After,S23-Other-Semi-Ind. Unit,Childrens Act Section 23 - Placement Fee,16/10/2019,5318667,"5,180.00",Youth reality homes
Children & Culture,Children's Social Care,Children Looked After,S23 Fam Pl P&V-F/Care,Childrens Act Section 23 - Placement Fee,16/10/2019,5318669,923.71,Qalb Fostering Agency Ltd
Children & Culture,Education Services,Early Years,Isle of Dogs. CC,Room Hire,16/10/2019,5318674,"1,875.00",St Luke's Mission Initiative
Children & Culture,Children's Social Care,Support Service and Management Costs,"Mulberry Caf�		",Kitchen Supplies - Food and Beverages,16/10/2019,5318688,260.89,Bewley's Tea & Coffee UK Ltd
Children & Culture,Education Services,Early Years,EYS Mainstream Grants,Third Party Payments - Payments to Schools,16/10/2019,5318699,"7,500.00",Early Years Network Tower Hamlets
Children & Culture,No Service Specified,No Division Specified,Capital-Minor Works (SC),Building Works - Main Works,18/10/2019,5293347,"10,000.00",JC Coster (Metalworks) Ltd
Children & Culture,Children's Social Care,Commissioning and Social Work,Advice and Assessment Section 17,Childrens Act Section 17 - Interpreting/Translation,18/10/2019,5296813,255.50,Oncall Interpreters LTD
Children & Culture,Education Services,Early Years,Ocean CC,Repairs and Maintenance - Responsive - Repair & Maintenance,18/10/2019,5301432,"3,750.00",JC Coster (Metalworks) Ltd
Children & Culture,No Service Specified,No Division Specified,Capital-Minor Works (SC),Building Works - Main Works,18/10/2019,5304544,"20,000.00",JC Coster (Metalworks) Ltd
Children & Culture,Cultural and Related Services,Open Spaces,Parks & Open Spaces Man&Admin,Repairs and Maintenance - Responsive - Buildings,18/10/2019,5304639,"7,275.00",J&L Coster (Drainage) Ltd
Children & Culture,Children's Social Care,Children's and Young People's Safety,Child Protect Reviewing Serv.,Meeting Expenses,18/10/2019,5304675,"3,850.00",The Change Agency
Children & Culture,Children's Social Care,Children Looked After,Virtual School PPG,Third Party Payments - Payments to Schools,18/10/2019,5305143,480.00,The Rowans AP Academy
Children & Culture,Children's Social Care,Children's and Young People's Safety,Child Protection Mgt & Admin,Meeting Expenses,18/10/2019,5305726,645.00,Half Moon Young People's Theatre
Children & Culture,Children's Social Care,Support Service and Management Costs,Sch. Meals A/c - Marion Richardson,Kitchen Supplies - Catering Equipment,18/10/2019,5305748,682.50,W V Howe LTD
Children & Culture,Children's Social Care,Support Service and Management Costs,Schools Catering,Kitchen Supplies - Catering Equipment,18/10/2019,5305751,799.60,W V Howe LTD
Children & Culture,Education Services,Other Education and Community Budget,Community Languages,Newspapers and Magazines - General Purchases,18/10/2019,5305796,319.00,ESPO
Children & Culture,Children's Social Care,Support Service and Management Costs,Schools Catering,Kitchen Supplies - Food and Beverages,18/10/2019,5305834,778.66,Thomas Ridley & Son Ltd
Children & Culture,Children's Social Care,Support Service and Management Costs,Schools Catering,Kitchen Supplies - Food and Beverages,18/10/2019,5305835,265.39,Thomas Ridley & Son Ltd
Children & Culture,Children's Social Care,Support Service and Management Costs,Schools Catering,Kitchen Supplies - Food and Beverages,18/10/2019,5305836,"1,075.40",Thomas Ridley & Son Ltd
Children & Culture,Children's Social Care,Support Service and Management Costs,Schools Catering,Kitchen Supplies - Food and Beverages,18/10/2019,5305837,782.95,Thomas Ridley & Son Ltd
Children & Culture,Children's Social Care,Support Service and Management Costs,Schools Catering,Kitchen Supplies - Food and Beverages,18/10/2019,5305838,344.44,Thomas Ridley & Son Ltd
Children & Culture,Children's Social Care,Support Service and Management Costs,Schools Catering,Kitchen Supplies - Food and Beverages,18/10/2019,5305839,448.00,Thomas Ridley & Son Ltd
Children & Culture,Children's Social Care,Support Service and Management Costs,Sch. Meals A/c - Central Production Unit,Kitchen Supplies - Food and Beverages,18/10/2019,5305840,337.07,Thomas Ridley & Son Ltd
Children & Culture,Children's Social Care,Support Service and Management Costs,Schools Catering,Kitchen Supplies - Food and Beverages,18/10/2019,5305841,289.79,Thomas Ridley & Son Ltd
Children & Culture,Children's Social Care,Support Service and Management Costs,Schools Catering,Kitchen Supplies - Food and Beverages,18/10/2019,5305844,339.37,Thomas Ridley & Son Ltd
Children & Culture,Children's Social Care,Support Service and Management Costs,Schools Catering,Kitchen Supplies - Food and Beverages,18/10/2019,5305845,283.86,Thomas Ridley & Son Ltd
Children & Culture,Children's Social Care,Support Service and Management Costs,Schools Catering,Kitchen Supplies - Food and Beverages,18/10/2019,5305846,574.01,Thomas Ridley & Son Ltd
Children & Culture,Children's Social Care,Support Service and Management Costs,Schools Catering,Kitchen Supplies - Food and Beverages,18/10/2019,5305848,664.32,Thomas Ridley & Son Ltd
Children & Culture,Children's Social Care,Support Service and Management Costs,Schools Catering,Kitchen Supplies - Food and Beverages,18/10/2019,5305849,389.37,Thomas Ridley & Son Ltd
Children & Culture,Children's Social Care,Support Service and Management Costs,Schools Catering,Kitchen Supplies - Food and Beverages,18/10/2019,5305850,791.47,Thomas Ridley & Son Ltd
Children & Culture,Children's Social Care,Support Service and Management Costs,Schools Catering,Kitchen Supplies - Food and Beverages,18/10/2019,5305851,342.27,Thomas Ridley & Son Ltd
Children & Culture,Children's Social Care,Support Service and Management Costs,Schools Catering,Kitchen Supplies - Food and Beverages,18/10/2019,5305852,403.83,Thomas Ridley & Son Ltd
Children & Culture,Children's Social Care,Support Service and Management Costs,Schools Catering,Kitchen Supplies - Food and Beverages,18/10/2019,5305894,299.37,Prescott-Thomas LTD.
Children & Culture,Education Services,Other Strategic Functions,BHLPS (Budget Holding Lead Professional Scheme),Uniforms & Clothing,18/10/2019,5306041,"1,624.70",Khalsa
Children & Culture,Children's Social Care,Support Service and Management Costs,Sch. Meals A/c - Bow School,Kitchen Supplies - Food and Beverages,18/10/2019,5306146,"1,142.10",Tiffin Sandwiches
Children & Culture,Children's Social Care,Support Service and Management Costs,Sch. Meals A/c - C.F.S. Upper (Harley Grove),Kitchen Supplies - Food and Beverages,18/10/2019,5306147,789.75,Tiffin Sandwiches
Children & Culture,Children's Social Care,Support Service and Management Costs,Sch. Meals A/c - Morpeth,Kitchen Supplies - Food and Beverages,18/10/2019,5306148,"1,152.86",Tiffin Sandwiches
Children & Culture,Children's Social Care,Support Service and Management Costs,Sch. Meals A/c - St. Paul's Way Comm. Trust,Kitchen Supplies - Food and Beverages,18/10/2019,5306151,647.19,Tiffin Sandwiches
Children & Culture,Children's Social Care,Support Service and Management Costs,"Mulberry Caf�		",Kitchen Supplies - Food and Beverages,18/10/2019,5306153,313.32,Tiffin Sandwiches
Children & Culture,Children's Social Care,Children Looked After,S23 Fam Pl P&V-F/Care,Childrens Act Section 23 - Non-Contact Taxi Costs,18/10/2019,5306185,270.00,Five Rivers Childcare Limited
Children & Culture,Children's Social Care,Children Looked After,S23 Fam Pl P&V-F/Care,Childrens Act Section 23 - Non-Contact Taxi Costs,18/10/2019,5306187,450.00,Five Rivers Childcare Limited
Children & Culture,Children's Social Care,Support Service and Management Costs,Welfare Catering,Kitchen Supplies - Food and Beverages,18/10/2019,5306445,305.18,William White Meats Ltd
Children & Culture,Children's Social Care,Support Service and Management Costs,Schools Catering,Kitchen Supplies - Food and Beverages,18/10/2019,5306454,253.55,William White Meats Ltd
Children & Culture,Children's Social Care,Support Service and Management Costs,Schools Catering,Kitchen Supplies - Food and Beverages,18/10/2019,5306458,332.66,William White Meats Ltd
Children & Culture,Children's Social Care,Support Service and Management Costs,Schools Catering,Kitchen Supplies - Food and Beverages,18/10/2019,5306461,273.78,William White Meats Ltd
Children & Culture,Children's Social Care,Support Service and Management Costs,Schools Catering,Kitchen Supplies - Food and Beverages,18/10/2019,5306463,379.88,William White Meats Ltd
Children & Culture,Children's Social Care,Support Service and Management Costs,Schools Catering,Kitchen Supplies - Food and Beverages,18/10/2019,5306464,496.12,William White Meats Ltd
Children & Culture,Children's Social Care,Support Service and Management Costs,Schools Catering,Kitchen Supplies - Food and Beverages,18/10/2019,5306465,266.22,William White Meats Ltd
Children & Culture,Children's Social Care,Support Service and Management Costs,Schools Catering,Kitchen Supplies - Food and Beverages,18/10/2019,5306466,452.90,William White Meats Ltd
Children & Culture,Children's Social Care,Support Service and Management Costs,Swanlea,Kitchen Supplies - Food and Beverages,18/10/2019,5306468,"1,498.68",William White Meats Ltd
Children & Culture,Children's Social Care,Support Service and Management Costs,Sch. Meals A/c - Central Production Unit,Kitchen Supplies - Food and Beverages,18/10/2019,5306469,"1,822.88",William White Meats Ltd
Children & Culture,Children's Social Care,Children Looked After,Virtual School PPG,Third Party Payments - Payments to Schools,18/10/2019,5306535,700.00,Christchurch Primary School
Children & Culture,Cultural and Related Services,Open Spaces,Victoria Park,Repairs and Maintenance - Responsive - Repair & Maintenance,18/10/2019,5310089,"20,443.50",Rigby Taylor Ltd
Children & Culture,Children's Social Care,Children's and Young People's Safety,Community Safeguarding,Meeting Expenses,18/10/2019,5310110,300.00,RCCG Jubilee Hall
Children & Culture,Children's Social Care,Children's and Young People's Safety,Community Safeguarding,Meeting Expenses,18/10/2019,5310111,300.00,RCCG Jubilee Hall
Children & Culture,Education Services,Other Strategic Functions,Special Education Needs DSG,Services - Professional Fees - Training,18/10/2019,5310140,"4,063.08",UK Behaviour Analysis & Research Group CIC
Children & Culture,Children's Social Care,Children Looked After,Virtual School PPG,Third Party Payments - Payments to Schools,18/10/2019,5310151,525.00,Gable Hall School
Children & Culture,Education Services,Other Strategic Functions,SEN External Travel,Social Care - Day Care,18/10/2019,5310165,"1,470.00",Carebridge Staffing Ltd
Children & Culture,Children's Social Care,Support Service and Management Costs,"Mulberry Caf�		",Kitchen Supplies - Packaging,18/10/2019,5311627,290.31,Tri-Star Packaging Supplies LTD
Children & Culture,Children's Social Care,Children Looked After,Staying Put,Childrens Act Section 23 - Placement Fee,18/10/2019,5311726,-584.30,CAPSTONE FOSTER CARE (SE) LTD
Children & Culture,Children's Social Care,Support Service and Management Costs,Schools Catering,Materials - Cleaning Materials,18/10/2019,5313676,310.16,The Maintenance Supply Co Ltd
Children & Culture,Education Services,Other Strategic Functions,Parents Advice Centre,Catering - Hospitality,18/10/2019,5315347,262.75,LIMONCELLO (CATERING & DELICATESSEN) LTD
Children & Culture,Education Services,Other Strategic Functions,SEN External Travel,Non Staff Transport Costs - Reimbursement,18/10/2019,5318077,940.00,Mile End Car Hire Limited
Children & Culture,Education Services,Other Strategic Functions,SEN External Travel,Non Staff Transport Costs - Reimbursement,18/10/2019,5318078,300.00,Mile End Car Hire Limited
Children & Culture,Education Services,Other Strategic Functions,SEN External Travel,Non Staff Transport Costs - Reimbursement,18/10/2019,5318079,300.00,Mile End Car Hire Limited
Children & Culture,Education Services,Other Strategic Functions,BHLPS (Budget Holding Lead Professional Scheme),Uniforms & Clothing,18/10/2019,5318347,299.60,Khalsa
Children & Culture,Cultural and Related Services,Culture & Heritage,Arts-Park Events,Non Staff Advertising - General,18/10/2019,5318376,"1,985.50",Beta Distribution (South) Ltd t/a London Letterbox Marketing
Children & Culture,Education Services,Services to Young People and Other Community Learners,Further and Higher Education,Education Trust - Grant,18/10/2019,5318552,"4,250.00",City University London
Children & Culture,Education Services,Services to Young People and Other Community Learners,Careers Service - Core,Operational Salaries - Pay & Oncost,18/10/2019,5318576,342.00,Lloyds Bank
Children & Culture,Children's Social Care,Commissioning and Social Work,Advice and Assessment Section 17,Childrens Act Section 17 - Other Placements Bed & Breakfast,18/10/2019,5318615,"1,140.00",Apolonia Property Services (Exodus Housing)
Children & Culture,Children's Social Care,Commissioning and Social Work,Advice and Assessment Section 17,Childrens Act Section 17 - Other Placements Bed & Breakfast,18/10/2019,5318617,"1,064.00",Apolonia Property Services (Exodus Housing)
Children & Culture,Children's Social Care,Commissioning and Social Work,Advice and Assessment Section 17,Childrens Act Section 17 - Other Placements Bed & Breakfast,18/10/2019,5318618,418.00,Apolonia Property Services (Exodus Housing)
Children & Culture,No Service Specified,No Division Specified,Capital-Minor Works (SC),Other External Fees - Other External Fees,18/10/2019,5318660,"11,709.60",Arcus Consulting LLP
Children & Culture,No Service Specified,No Division Specified,Capital-Minor Works (SC),Other External Fees - Other External Fees,18/10/2019,5318661,"7,806.40",Arcus Consulting LLP
Children & Culture,Education Services,Other Strategic Functions,SEN External Travel,Non Staff Transport Costs - Reimbursement,18/10/2019,5321449,"78,132.00",Healthcare and Transport Services Group Ltd
Children & Culture,Children's Social Care,Children Looked After,Virtual School PPG,Third Party Payments - Payments to Schools,18/10/2019,5321493,260.00,Wanstead High School
Children & Culture,Children's Social Care,Children Looked After,Virtual School PPG,Third Party Payments - Payments to Schools,18/10/2019,5321513,800.00,Wethersfield C of E Primary School
Children & Culture,Children's Social Care,Family Support Services,IPST S17 NRPF,Childrens Act Section 17 - Other Placements Bed & Breakfast,18/10/2019,5321525,"1,823.91",Atlantic Lodge
Children & Culture,Children's Social Care,Children's and Young People's Safety,Child Protection Mgt & Admin,Services - Professional Fees - Financial Services Fees,18/10/2019,5321543,"1,232.00",Toynbee Hall
Children & Culture,Children's Social Care,Service Strategy,CSC Childrens Resources M & A,Training Expenses - Staff External Training (UK Based),18/10/2019,5321544,675.00,Curve Solutions
Children & Culture,Education Services,Other Strategic Functions,BHLPS (Budget Holding Lead Professional Scheme),Non Staff Transport Costs - Reimbursement,18/10/2019,5322307,420.00,Mile End Car Hire Limited
Children & Culture,Education Services,Other Education and Community Budget,Community Languages,Training Expenses - Staff External Training (UK Based),18/10/2019,5322335,701.25,Centre for Strategy and Communication
Children & Culture,Education Services,Other Strategic Functions,High Needs Other Boroughs,Third Party Payments - Payments to Schools,18/10/2019,5322337,"2,361.74",Canary Wharf College
Children & Culture,Education Services,Other Strategic Functions,High Needs Academies & Free Schs,Third Party Payments - Payments to Schools,18/10/2019,5322338,"3,987.26",Canary Wharf College
Children & Culture,Education Services,Other Strategic Functions,High Needs Academies & Free Schs,Third Party Payments - Payments to Schools,18/10/2019,5322339,"2,397.70",Canary Wharf College
Children & Culture,Children's Social Care,Family Support Services,CNN Pool: Joint Family Support,Social Care - Homecare,18/10/2019,5322340,576.00,Medstar Domiciliary Care Servies Ltd
Children & Culture,Education Services,Other Strategic Functions,Parents Advice Centre,Catering - Hospitality,18/10/2019,5322378,262.75,LIMONCELLO (CATERING & DELICATESSEN) LTD
Children & Culture,Children's Social Care,Children Looked After,S23-Resi-P&V/OLA-Child Home,Childrens Act Section 23 - Placement Fee,18/10/2019,5322379,"7,534.32",Kartikeya Solutions Limited T/A Unique Children's Home
Children & Culture,Cultural and Related Services,Open Spaces,Victoria Park,Events & Exhibition Supplies,18/10/2019,5322380,500.00,South East Donkeys
Children & Culture,Children's Social Care,Children Looked After,S23 Fam Pl P&V-F/Care,Childrens Act Section 23 - Placement Fee,18/10/2019,5322382,"2,817.86",Fostering Innovations Ltd
Children & Culture,Children's Social Care,Children Looked After,S23 Fam Pl P&V-F/Care,Childrens Act Section 23 - Placement Fee,18/10/2019,5322385,"4,293.37",CAPSTONE FOSTER CARE (SE) LTD
Children & Culture,Education Services,Other Strategic Functions,Special Education Needs DSG,Third Party Payments - Payments to Schools,18/10/2019,5322406,"4,715.00",The Complete Works Ltd
Children & Culture,Children's Social Care,Children Looked After,S23 Fam Pl P&V-F/Care,Childrens Act Section 23 - Placement Fee,18/10/2019,5322606,"2,429.15",Eastern Fostering Services
Children & Culture,Children's Social Care,Children Looked After,S23 Fam Pl P&V-F/Care,Childrens Act Section 23 - Placement Fee,18/10/2019,5322607,"2,429.15",Eastern Fostering Services
Children & Culture,Children's Social Care,Children Looked After,S23 Fam Pl P&V-F/Care,Childrens Act Section 23 - Placement Fee,18/10/2019,5322608,"2,429.15",Eastern Fostering Services
Children & Culture,Children's Social Care,Children Looked After,S23 Fam Pl P&V-F/Care,Childrens Act Section 23 - Placement Fee,18/10/2019,5322609,568.56,Eastern Fostering Services
Children & Culture,Children's Social Care,Children Looked After,S23 Fam Pl P&V-F/Care,Childrens Act Section 23 - Placement Fee,18/10/2019,5322611,500.00,Eastern Fostering Services
Children & Culture,Children's Social Care,Children Looked After,S23 Fam Pl P&V-F/Care,Childrens Act Section 23 - Placement Fee,18/10/2019,5322613,350.00,Eastern Fostering Services
Children & Culture,Children's Social Care,Family Support Services,Short Breaks and Family Support,Third Party Payments - Voluntary Associations,18/10/2019,5322627,"10,405.28",Childrens Specialist Services SENSE
Children & Culture,No Service Specified,No Division Specified,Capital-Minor Works (SC),Building Works - Main Works,21/10/2019,5306049,"19,500.00",JC Coster (Metalworks) Ltd
Children & Culture,Cultural and Related Services,Open Spaces,Mile End Park,Events & Exhibition Supplies,21/10/2019,5306140,"1,000.00",Brass Volcanoes
Children & Culture,Education Services,Other Strategic Functions,Special Education Needs GF,Services - Professional Fees - Consultants Fees,21/10/2019,5306142,"2,400.00",Chrow Solutions Ltd
Children & Culture,Education Services,Other Strategic Functions,Parental Engagement,Comms - Purchase of Equipment,21/10/2019,5306156,392.76,Bell Integration
Children & Culture,Children's Social Care,Children Looked After,S23-Other-Semi-Ind. Unit,Childrens Act Section 23 - Placement Fee,21/10/2019,5306167,"4,624.84",Bright Young Futures
Children & Culture,Children's Social Care,Children Looked After,S23-Other-Semi-Ind. Unit,Childrens Act Section 23 - Placement Fee,21/10/2019,5306168,"8,160.55",Bright Young Futures
Children & Culture,Education Services,Other Education and Community Budget,Community Languages,Newspapers and Magazines - General Purchases,21/10/2019,5306238,308.00,ESPO
Children & Culture,Education Services,Other Education and Community Budget,Community Languages,Stationery,21/10/2019,5306239,334.00,ESPO
Children & Culture,Children's Social Care,Support Service and Management Costs,Schools Catering,Kitchen Supplies - Food and Beverages,21/10/2019,5306252,265.39,Thomas Ridley & Son Ltd
Children & Culture,Children's Social Care,Support Service and Management Costs,Schools Catering,Kitchen Supplies - Food and Beverages,21/10/2019,5306253,344.44,Thomas Ridley & Son Ltd
Children & Culture,Children's Social Care,Support Service and Management Costs,Schools Catering,Kitchen Supplies - Food and Beverages,21/10/2019,5306254,448.00,Thomas Ridley & Son Ltd
Children & Culture,Children's Social Care,Support Service and Management Costs,Schools Catering,Kitchen Supplies - Food and Beverages,21/10/2019,5306255,786.65,Thomas Ridley & Son Ltd
Children & Culture,Children's Social Care,Support Service and Management Costs,Schools Catering,Kitchen Supplies - Food and Beverages,21/10/2019,5306256,"1,075.40",Thomas Ridley & Son Ltd
Children & Culture,Children's Social Care,Support Service and Management Costs,Schools Catering,Kitchen Supplies - Food and Beverages,21/10/2019,5306257,778.66,Thomas Ridley & Son Ltd
Children & Culture,Children's Social Care,Support Service and Management Costs,Schools Catering,Kitchen Supplies - Food and Beverages,21/10/2019,5306264,736.05,Thomas Ridley & Son Ltd
Children & Culture,Children's Social Care,Support Service and Management Costs,Schools Catering,Kitchen Supplies - Food and Beverages,21/10/2019,5306265,435.91,Thomas Ridley & Son Ltd
Children & Culture,Children's Social Care,Support Service and Management Costs,Schools Catering,Kitchen Supplies - Food and Beverages,21/10/2019,5306266,783.66,Thomas Ridley & Son Ltd
Children & Culture,Children's Social Care,Support Service and Management Costs,Schools Catering,Kitchen Supplies - Food and Beverages,21/10/2019,5306267,268.81,Thomas Ridley & Son Ltd
Children & Culture,Children's Social Care,Support Service and Management Costs,Schools Catering,Kitchen Supplies - Food and Beverages,21/10/2019,5306268,636.46,Thomas Ridley & Son Ltd
Children & Culture,Children's Social Care,Support Service and Management Costs,Schools Catering,Kitchen Supplies - Food and Beverages,21/10/2019,5306271,367.11,Thomas Ridley & Son Ltd
Children & Culture,Children's Social Care,Support Service and Management Costs,Schools Catering,Kitchen Supplies - Food and Beverages,21/10/2019,5306275,822.34,Thomas Ridley & Son Ltd
Children & Culture,Children's Social Care,Support Service and Management Costs,Schools Catering,Kitchen Supplies - Food and Beverages,21/10/2019,5306276,336.53,Thomas Ridley & Son Ltd
Children & Culture,Children's Social Care,Support Service and Management Costs,Schools Catering,Kitchen Supplies - Food and Beverages,21/10/2019,5306280,"1,336.25",Thomas Ridley & Son Ltd
Children & Culture,Children's Social Care,Support Service and Management Costs,Schools Catering,Kitchen Supplies - Food and Beverages,21/10/2019,5306281,316.55,Thomas Ridley & Son Ltd
Children & Culture,Children's Social Care,Support Service and Management Costs,Schools Catering,Kitchen Supplies - Food and Beverages,21/10/2019,5306282,869.24,Thomas Ridley & Son Ltd
Children & Culture,Children's Social Care,Support Service and Management Costs,Schools Catering,Kitchen Supplies - Food and Beverages,21/10/2019,5306283,329.75,Thomas Ridley & Son Ltd
Children & Culture,Children's Social Care,Support Service and Management Costs,Schools Catering,Kitchen Supplies - Food and Beverages,21/10/2019,5306284,548.25,Thomas Ridley & Son Ltd
Children & Culture,Children's Social Care,Support Service and Management Costs,Schools Catering,Kitchen Supplies - Food and Beverages,21/10/2019,5306285,453.21,Thomas Ridley & Son Ltd
Children & Culture,Children's Social Care,Support Service and Management Costs,Schools Catering,Kitchen Supplies - Food and Beverages,21/10/2019,5306286,284.38,Thomas Ridley & Son Ltd
Children & Culture,Children's Social Care,Support Service and Management Costs,Schools Catering,Kitchen Supplies - Food and Beverages,21/10/2019,5306287,432.67,Thomas Ridley & Son Ltd
Children & Culture,Children's Social Care,Support Service and Management Costs,Schools Catering,Kitchen Supplies - Food and Beverages,21/10/2019,5306288,313.44,Thomas Ridley & Son Ltd
Children & Culture,Children's Social Care,Support Service and Management Costs,Schools Catering,Kitchen Supplies - Food and Beverages,21/10/2019,5306289,373.55,Thomas Ridley & Son Ltd
Children & Culture,Children's Social Care,Support Service and Management Costs,Schools Catering,Kitchen Supplies - Food and Beverages,21/10/2019,5306290,716.69,Thomas Ridley & Son Ltd
Children & Culture,Children's Social Care,Support Service and Management Costs,Schools Catering,Kitchen Supplies - Food and Beverages,21/10/2019,5306292,294.39,Thomas Ridley & Son Ltd
Children & Culture,Children's Social Care,Support Service and Management Costs,Schools Catering,Kitchen Supplies - Food and Beverages,21/10/2019,5306293,584.95,Thomas Ridley & Son Ltd
Children & Culture,Children's Social Care,Support Service and Management Costs,Schools Catering,Kitchen Supplies - Food and Beverages,21/10/2019,5306295,329.55,Thomas Ridley & Son Ltd
Children & Culture,Children's Social Care,Support Service and Management Costs,Schools Catering,Kitchen Supplies - Food and Beverages,21/10/2019,5306296,302.79,Thomas Ridley & Son Ltd
Children & Culture,Children's Social Care,Support Service and Management Costs,Schools Catering,Kitchen Supplies - Food and Beverages,21/10/2019,5306297,765.86,Thomas Ridley & Son Ltd
Children & Culture,Children's Social Care,Support Service and Management Costs,Welfare Catering,Kitchen Supplies - Food and Beverages,21/10/2019,5306298,919.32,Thomas Ridley & Son Ltd
Children & Culture,Children's Social Care,Support Service and Management Costs,Sch. Meals A/c - Central Production Unit,Kitchen Supplies - Food and Beverages,21/10/2019,5306299,844.85,Thomas Ridley & Son Ltd
Children & Culture,Children's Social Care,Support Service and Management Costs,Schools Catering,Kitchen Supplies - Food and Beverages,21/10/2019,5306302,445.47,Thomas Ridley & Son Ltd
Children & Culture,Children's Social Care,Support Service and Management Costs,Schools Catering,Kitchen Supplies - Food and Beverages,21/10/2019,5306303,461.42,Thomas Ridley & Son Ltd
Children & Culture,Children's Social Care,Support Service and Management Costs,Schools Catering,Kitchen Supplies - Food and Beverages,21/10/2019,5306304,770.54,Thomas Ridley & Son Ltd
Children & Culture,Children's Social Care,Support Service and Management Costs,Schools Catering,Kitchen Supplies - Food and Beverages,21/10/2019,5306307,345.42,Thomas Ridley & Son Ltd
Children & Culture,Children's Social Care,Support Service and Management Costs,Schools Catering,Kitchen Supplies - Food and Beverages,21/10/2019,5306309,281.43,Thomas Ridley & Son Ltd
Children & Culture,Children's Social Care,Support Service and Management Costs,Schools Catering,Kitchen Supplies - Food and Beverages,21/10/2019,5306311,346.66,Thomas Ridley & Son Ltd
Children & Culture,Children's Social Care,Support Service and Management Costs,Schools Catering,Kitchen Supplies - Food and Beverages,21/10/2019,5306312,258.58,Thomas Ridley & Son Ltd
Children & Culture,Children's Social Care,Support Service and Management Costs,Sch. Meals A/c - P.D.C. Cateen,Kitchen Supplies - Food and Beverages,21/10/2019,5306316,502.68,Thomas Ridley & Son Ltd
Children & Culture,Children's Social Care,Support Service and Management Costs,Schools Catering,Kitchen Supplies - Food and Beverages,21/10/2019,5306317,348.95,Thomas Ridley & Son Ltd
Children & Culture,Children's Social Care,Support Service and Management Costs,Swanlea,Kitchen Supplies - Food and Beverages,21/10/2019,5306318,886.39,Thomas Ridley & Son Ltd
Children & Culture,Children's Social Care,Support Service and Management Costs,Schools Catering,Kitchen Supplies - Food and Beverages,21/10/2019,5306319,317.84,Thomas Ridley & Son Ltd
Children & Culture,Children's Social Care,Support Service and Management Costs,Schools Catering,Kitchen Supplies - Food and Beverages,21/10/2019,5306320,273.30,Thomas Ridley & Son Ltd
Children & Culture,Children's Social Care,Support Service and Management Costs,Schools Catering,Kitchen Supplies - Food and Beverages,21/10/2019,5306321,419.51,Thomas Ridley & Son Ltd
Children & Culture,Children's Social Care,Support Service and Management Costs,Schools Catering,Kitchen Supplies - Food and Beverages,21/10/2019,5306323,756.76,Thomas Ridley & Son Ltd
Children & Culture,Children's Social Care,Support Service and Management Costs,Schools Catering,Kitchen Supplies - Food and Beverages,21/10/2019,5306324,478.66,Thomas Ridley & Son Ltd
Children & Culture,Children's Social Care,Support Service and Management Costs,Schools Catering,Kitchen Supplies - Food and Beverages,21/10/2019,5306325,362.49,Thomas Ridley & Son Ltd
Children & Culture,Children's Social Care,Support Service and Management Costs,Schools Catering,Kitchen Supplies - Food and Beverages,21/10/2019,5306326,270.03,Thomas Ridley & Son Ltd
Children & Culture,Children's Social Care,Support Service and Management Costs,Schools Catering,Kitchen Supplies - Food and Beverages,21/10/2019,5306327,325.59,Thomas Ridley & Son Ltd
Children & Culture,Children's Social Care,Support Service and Management Costs,Schools Catering,Kitchen Supplies - Food and Beverages,21/10/2019,5306329,506.50,Thomas Ridley & Son Ltd
Children & Culture,Children's Social Care,Support Service and Management Costs,Schools Catering,Kitchen Supplies - Food and Beverages,21/10/2019,5306330,355.52,Thomas Ridley & Son Ltd
Children & Culture,Children's Social Care,Support Service and Management Costs,Schools Catering,Kitchen Supplies - Food and Beverages,21/10/2019,5306332,320.85,Thomas Ridley & Son Ltd
Children & Culture,Cultural and Related Services,Open Spaces,Mile End Park,Repairs and Maintenance - Responsive - Buildings,21/10/2019,5306475,950.00,JC Coster (Metalworks) Ltd
Children & Culture,Children's Social Care,Support Service and Management Costs,Swanlea,Kitchen Supplies - Food and Beverages,21/10/2019,5306588,596.98,Chicken Joes
Children & Culture,Children's Social Care,Support Service and Management Costs,Sch. Meals A/c - Central Production Unit,Kitchen Supplies - Food and Beverages,21/10/2019,5306590,872.56,Chicken Joes
Children & Culture,Children's Social Care,Children Looked After,Virtual School PPG,Third Party Payments - Payments to Schools,21/10/2019,5306624,480.00,Barking Abbey School
Children & Culture,Children's Social Care,Support Service and Management Costs,Schools Catering,Kitchen Supplies - Food and Beverages,21/10/2019,5306671,267.80,Prescott-Thomas LTD.
Children & Culture,Children's Social Care,Support Service and Management Costs,Schools Catering,Kitchen Supplies - Food and Beverages,21/10/2019,5306688,433.89,Prescott-Thomas LTD.
Children & Culture,Children's Social Care,Children Looked After,S23-Resi-P&V/OLA-Child Respite,Childrens Act Section 23 - Placement Fee,21/10/2019,5310154,"15,353.01",Hexagon Care Services
Children & Culture,Children's Social Care,Children Looked After,S23-Resi-P&V/OLA-Child Home,Childrens Act Section 23 - Placement Fee,21/10/2019,5310155,"1,736.64",Hexagon Care Services
Children & Culture,Environmental and Regulatory Services,Regulatory Services,Thames Tideway Project,Grounds Maintenance - Contract - Horticultural Maintenance,21/10/2019,5310185,"1,512.75",Amethyst Horticulture Ltd
Children & Culture,Children's Social Care,Support Service and Management Costs,Schools Catering,Kitchen Supplies - Food and Beverages,21/10/2019,5310219,383.22,Thomas Ridley & Son Ltd
Children & Culture,Children's Social Care,Support Service and Management Costs,Schools Catering,Kitchen Supplies - Food and Beverages,21/10/2019,5310220,485.90,Thomas Ridley & Son Ltd
Children & Culture,Children's Social Care,Support Service and Management Costs,Schools Catering,Kitchen Supplies - Food and Beverages,21/10/2019,5310221,523.93,Thomas Ridley & Son Ltd
Children & Culture,Children's Social Care,Support Service and Management Costs,Schools Catering,Kitchen Supplies - Food and Beverages,21/10/2019,5310222,268.07,Thomas Ridley & Son Ltd
Children & Culture,Children's Social Care,Support Service and Management Costs,Sch. Meals A/c - Central Production Unit,Kitchen Supplies - Food and Beverages,21/10/2019,5310224,"1,223.02",Thomas Ridley & Son Ltd
Children & Culture,Children's Social Care,Support Service and Management Costs,Schools Catering,Kitchen Supplies - Food and Beverages,21/10/2019,5310226,401.89,Thomas Ridley & Son Ltd
Children & Culture,Children's Social Care,Children Looked After,S23-Other-Mother & Baby Unit,Childrens Act Section 23 - Placement Fee,21/10/2019,5310634,"3,769.14",Jamma Umoja (Residential Services) LTD
Children & Culture,Children's Social Care,Children Looked After,S23-Other-Mother & Baby Unit,Childrens Act Section 23 - Placement Fee,21/10/2019,5310635,"6,596.00",Jamma Umoja (Residential Services) LTD
Children & Culture,Children's Social Care,Children's and Young People's Safety,Child Protection Mgt & Admin,Meeting Expenses,21/10/2019,5310988,496.17,the royal foundation of st katharine
Children & Culture,Education Services,Other Strategic Functions,Special Education Needs DSG,Third Party Payments - Payments to Schools,21/10/2019,5311258,"5,668.19",Riverhouse Montessori Nursery
Children & Culture,Cultural and Related Services,Recreation & Sport,Mayors Cup,Recreational Activities,21/10/2019,5311366,"1,440.00",INNER LONDON AMATURE FOOTBALL LEAGUE
Children & Culture,Children's Social Care,Support Service and Management Costs,Schools Catering,Kitchen Supplies - Food and Beverages,21/10/2019,5311505,345.20,William White Meats Ltd
Children & Culture,Children's Social Care,Support Service and Management Costs,Schools Catering,Kitchen Supplies - Food and Beverages,21/10/2019,5311510,294.03,William White Meats Ltd
Children & Culture,Children's Social Care,Support Service and Management Costs,Schools Catering,Kitchen Supplies - Food and Beverages,21/10/2019,5311511,510.48,William White Meats Ltd
Children & Culture,Children's Social Care,Support Service and Management Costs,Schools Catering,Kitchen Supplies - Food and Beverages,21/10/2019,5311512,910.24,William White Meats Ltd
Children & Culture,Children's Social Care,Support Service and Management Costs,Schools Catering,Kitchen Supplies - Food and Beverages,21/10/2019,5311514,316.00,William White Meats Ltd
Children & Culture,Children's Social Care,Support Service and Management Costs,Schools Catering,Kitchen Supplies - Food and Beverages,21/10/2019,5311516,255.18,William White Meats Ltd
Children & Culture,Children's Social Care,Support Service and Management Costs,Schools Catering,Kitchen Supplies - Food and Beverages,21/10/2019,5311518,510.15,William White Meats Ltd
Children & Culture,Children's Social Care,Support Service and Management Costs,Schools Catering,Kitchen Supplies - Food and Beverages,21/10/2019,5311520,487.34,William White Meats Ltd
Children & Culture,Children's Social Care,Support Service and Management Costs,Schools Catering,Kitchen Supplies - Food and Beverages,21/10/2019,5311524,610.00,William White Meats Ltd
Children & Culture,Children's Social Care,Support Service and Management Costs,Schools Catering,Kitchen Supplies - Food and Beverages,21/10/2019,5311527,524.31,William White Meats Ltd
Children & Culture,Children's Social Care,Support Service and Management Costs,Schools Catering,Kitchen Supplies - Food and Beverages,21/10/2019,5311531,913.35,William White Meats Ltd
Children & Culture,Children's Social Care,Support Service and Management Costs,Schools Catering,Kitchen Supplies - Food and Beverages,21/10/2019,5311532,257.44,William White Meats Ltd
Children & Culture,Children's Social Care,Support Service and Management Costs,Schools Catering,Kitchen Supplies - Food and Beverages,21/10/2019,5311533,468.35,William White Meats Ltd
Children & Culture,Children's Social Care,Support Service and Management Costs,Schools Catering,Kitchen Supplies - Food and Beverages,21/10/2019,5311535,366.22,William White Meats Ltd
Children & Culture,Children's Social Care,Support Service and Management Costs,Schools Catering,Kitchen Supplies - Food and Beverages,21/10/2019,5311537,469.14,William White Meats Ltd
Children & Culture,Children's Social Care,Support Service and Management Costs,Schools Catering,Kitchen Supplies - Food and Beverages,21/10/2019,5311545,266.95,William White Meats Ltd
Children & Culture,Children's Social Care,Support Service and Management Costs,Schools Catering,Kitchen Supplies - Food and Beverages,21/10/2019,5311547,363.34,William White Meats Ltd
Children & Culture,Children's Social Care,Support Service and Management Costs,Schools Catering,Kitchen Supplies - Food and Beverages,21/10/2019,5311548,304.26,William White Meats Ltd
Children & Culture,Children's Social Care,Support Service and Management Costs,Schools Catering,Kitchen Supplies - Food and Beverages,21/10/2019,5311550,486.99,William White Meats Ltd
Children & Culture,Children's Social Care,Support Service and Management Costs,Schools Catering,Kitchen Supplies - Food and Beverages,21/10/2019,5311552,446.31,William White Meats Ltd
Children & Culture,Children's Social Care,Support Service and Management Costs,Schools Catering,Kitchen Supplies - Food and Beverages,21/10/2019,5311554,277.71,William White Meats Ltd
Children & Culture,Children's Social Care,Support Service and Management Costs,Schools Catering,Kitchen Supplies - Food and Beverages,21/10/2019,5311556,816.43,William White Meats Ltd
Children & Culture,Children's Social Care,Support Service and Management Costs,Schools Catering,Kitchen Supplies - Food and Beverages,21/10/2019,5311558,702.30,William White Meats Ltd
Children & Culture,Children's Social Care,Support Service and Management Costs,Schools Catering,Kitchen Supplies - Food and Beverages,21/10/2019,5311562,380.38,William White Meats Ltd
Children & Culture,Children's Social Care,Support Service and Management Costs,Schools Catering,Kitchen Supplies - Food and Beverages,21/10/2019,5311563,275.96,William White Meats Ltd
Children & Culture,Children's Social Care,Support Service and Management Costs,Schools Catering,Kitchen Supplies - Food and Beverages,21/10/2019,5311567,354.53,William White Meats Ltd
Children & Culture,Children's Social Care,Support Service and Management Costs,Sch. Meals A/c - Central Production Unit,Kitchen Supplies - Food and Beverages,21/10/2019,5311570,871.40,William White Meats Ltd
Children & Culture,Children's Social Care,Support Service and Management Costs,Schools Catering,Kitchen Supplies - Food and Beverages,21/10/2019,5311572,382.80,William White Meats Ltd
Children & Culture,Children's Social Care,Support Service and Management Costs,Schools Catering,Kitchen Supplies - Food and Beverages,21/10/2019,5311573,254.16,William White Meats Ltd
Children & Culture,Children's Social Care,Support Service and Management Costs,Schools Catering,Kitchen Supplies - Food and Beverages,21/10/2019,5311578,"1,244.37",William White Meats Ltd
Children & Culture,Children's Social Care,Children Looked After,S23 Fam Pl P&V-F/Care,Childrens Act Section 23 - Placement Fee,21/10/2019,5311666,"3,805.99",COMPASS FOSTERING LONDON LIMITED
Children & Culture,Children's Social Care,Support Service and Management Costs,Schools Catering,Materials - Cleaning Materials,21/10/2019,5311682,398.53,The Maintenance Supply Co Ltd
Children & Culture,Children's Social Care,Support Service and Management Costs,Building Cleaning,Materials - Cleaning Materials,21/10/2019,5313683,"1,701.42",The Maintenance Supply Co Ltd
Children & Culture,Children's Social Care,Children Looked After,S23 Fam Pl P&V-F/Care,Childrens Act Section 23 - Placement Fee,21/10/2019,5314892,"3,636.06",Five Rivers Childcare Limited
Children & Culture,Children's Social Care,Children Looked After,Leaving Care-UASC,Leaving Care Financial Assistance - Reg Plan Maint L-Allow,21/10/2019,5318380,290.00,Heartwood Outreach Services Ltd
Children & Culture,Children's Social Care,Services for young people,Youth Service Management,Room Hire,21/10/2019,5318596,280.00,City Of London Corporation
Children & Culture,Children's Social Care,Commissioning and Social Work,Advice and Assessment Section 17,Childrens Act Section 17 - Other Placements Bed & Breakfast,21/10/2019,5318616,960.00,Apolonia Property Services (Exodus Housing)
Children & Culture,Education Services,Services to Young People and Other Community Learners,Further and Higher Education,Education Trust - Grant,21/10/2019,5322424,"1,000.00",ISLAND ADVICE CENTRE
Children & Culture,Education Services,Other Strategic Functions,Special Education Needs DSG,Third Party Payments - Payments to Schools,21/10/2019,5322559,"19,652.30",Cambian Autism Services Ltd
Children & Culture,Children's Social Care,Children Looked After,S23-Resi-P&V/OLA-Boarding Sch,Childrens Act Section 23 - Placement Fee,21/10/2019,5322559,"45,855.38",Cambian Autism Services Ltd
Children & Culture,Children's Social Care,Service Strategy,FSP Sect 17 - Team 4,Childrens Act Section 17 - Interpreting/Translation,21/10/2019,5322711,"2,958.64",Bostico International Ltd
Children & Culture,Children's Social Care,Service Strategy,FSP Sect 17 - Team 5,Childrens Act Section 17 - Other Childcare Support,21/10/2019,5322792,575.00,Toucan Nursery
Children & Culture,Children's Social Care,Support Service and Management Costs,Schools Catering,Materials - Cleaning Materials,21/10/2019,5322821,254.20,The Maintenance Supply Co Ltd
Children & Culture,Children's Social Care,Support Service and Management Costs,Schools Catering,Materials - Cleaning Materials,21/10/2019,5322825,326.34,The Maintenance Supply Co Ltd
Children & Culture,Children's Social Care,Support Service and Management Costs,Schools Catering,Materials - Cleaning Materials,21/10/2019,5322826,337.46,The Maintenance Supply Co Ltd
Children & Culture,Children's Social Care,Support Service and Management Costs,Schools Catering,Materials - Cleaning Materials,21/10/2019,5322827,255.40,The Maintenance Supply Co Ltd
Children & Culture,Children's Social Care,Support Service and Management Costs,Schools Catering,Materials - Cleaning Materials,21/10/2019,5322856,400.63,The Maintenance Supply Co Ltd
Children & Culture,Children's Social Care,Support Service and Management Costs,Schools Catering,Materials - Cleaning Materials,21/10/2019,5322868,255.77,The Maintenance Supply Co Ltd
Children & Culture,Children's Social Care,Support Service and Management Costs,Schools Catering,Materials - Cleaning Materials,21/10/2019,5322873,620.19,The Maintenance Supply Co Ltd
Children & Culture,Children's Social Care,Support Service and Management Costs,Schools Catering,Materials - Cleaning Materials,21/10/2019,5322876,276.92,The Maintenance Supply Co Ltd
Children & Culture,Cultural and Related Services,Recreation & Sport,Football Development Programme,Recreational Activities,21/10/2019,5322943,604.08,Kekoa Coaching
Children & Culture,Education Services,Early Years,SSEYCG Workforce Dev't,Subscriptions - Associations,23/10/2019,5245756,315.00,Friends of Tower Hamlets Cemetery Park
Children & Culture,Education Services,Early Years,Mary Sambrook,Services - Professional Fees - Security Fees,23/10/2019,5306522,"10,170.48",Manpower Direct UK
Children & Culture,Cultural and Related Services,Open Spaces,Mile End Park,Repairs and Maintenance - Responsive - Buildings,23/10/2019,5310082,"1,680.00",JC Coster (Metalworks) Ltd
Children & Culture,Education Services,Early Years,Mowlem CC,Fixtures and Fittings - Purchases - General,23/10/2019,5310084,"1,240.00",JC Coster (Metalworks) Ltd
Children & Culture,Children's Social Care,Other Children's and Family Services,Permanancy and Adoption Support Team 1,Subscriptions - Associations,23/10/2019,5310105,"4,200.80",Link Maker Systems Ltd
Children & Culture,Education Services,Other Strategic Functions,Appeals Panel,Services - Professional Fees - Consultants Fees,23/10/2019,5310168,"2,080.00",Educationappeals Dotcom LTD
Children & Culture,Children's Social Care,Support Service and Management Costs,Schools Catering,Kitchen Supplies - Food and Beverages,23/10/2019,5310227,792.51,Thomas Ridley & Son Ltd
Children & Culture,Children's Social Care,Support Service and Management Costs,Schools Catering,Kitchen Supplies - Food and Beverages,23/10/2019,5310228,262.55,Thomas Ridley & Son Ltd
Children & Culture,Children's Social Care,Support Service and Management Costs,Schools Catering,Kitchen Supplies - Food and Beverages,23/10/2019,5310229,445.07,Thomas Ridley & Son Ltd
Children & Culture,Children's Social Care,Support Service and Management Costs,Schools Catering,Kitchen Supplies - Food and Beverages,23/10/2019,5310232,382.42,Thomas Ridley & Son Ltd
Children & Culture,Children's Social Care,Support Service and Management Costs,Swanlea,Kitchen Supplies - Food and Beverages,23/10/2019,5310234,"1,199.49",Thomas Ridley & Son Ltd
Children & Culture,Children's Social Care,Support Service and Management Costs,Schools Catering,Kitchen Supplies - Food and Beverages,23/10/2019,5310236,313.53,Thomas Ridley & Son Ltd
Children & Culture,Children's Social Care,Support Service and Management Costs,Schools Catering,Kitchen Supplies - Food and Beverages,23/10/2019,5310237,325.92,Thomas Ridley & Son Ltd
Children & Culture,Children's Social Care,Support Service and Management Costs,Schools Catering,Kitchen Supplies - Food and Beverages,23/10/2019,5310238,454.17,Thomas Ridley & Son Ltd
Children & Culture,Children's Social Care,Support Service and Management Costs,Schools Catering,Kitchen Supplies - Food and Beverages,23/10/2019,5310239,375.85,Thomas Ridley & Son Ltd
Children & Culture,Children's Social Care,Support Service and Management Costs,Schools Catering,Kitchen Supplies - Food and Beverages,23/10/2019,5310242,"1,698.75",Thomas Ridley & Son Ltd
Children & Culture,Children's Social Care,Support Service and Management Costs,Schools Catering,Kitchen Supplies - Food and Beverages,23/10/2019,5310243,377.60,Thomas Ridley & Son Ltd
Children & Culture,Children's Social Care,Support Service and Management Costs,Schools Catering,Kitchen Supplies - Food and Beverages,23/10/2019,5310244,891.33,Thomas Ridley & Son Ltd
Children & Culture,Children's Social Care,Support Service and Management Costs,Schools Catering,Kitchen Supplies - Food and Beverages,23/10/2019,5310245,360.96,Thomas Ridley & Son Ltd
Children & Culture,Children's Social Care,Support Service and Management Costs,Schools Catering,Kitchen Supplies - Food and Beverages,23/10/2019,5310246,316.76,Thomas Ridley & Son Ltd
Children & Culture,Children's Social Care,Support Service and Management Costs,Schools Catering,Kitchen Supplies - Food and Beverages,23/10/2019,5310247,"1,540.61",Thomas Ridley & Son Ltd
Children & Culture,Children's Social Care,Support Service and Management Costs,Schools Catering,Kitchen Supplies - Food and Beverages,23/10/2019,5310248,472.79,Thomas Ridley & Son Ltd
Children & Culture,Children's Social Care,Support Service and Management Costs,Schools Catering,Kitchen Supplies - Food and Beverages,23/10/2019,5310249,549.80,Thomas Ridley & Son Ltd
Children & Culture,Children's Social Care,Support Service and Management Costs,Schools Catering,Kitchen Supplies - Food and Beverages,23/10/2019,5310250,309.28,Thomas Ridley & Son Ltd
Children & Culture,Children's Social Care,Support Service and Management Costs,Schools Catering,Kitchen Supplies - Food and Beverages,23/10/2019,5310251,614.03,Thomas Ridley & Son Ltd
Children & Culture,Children's Social Care,Support Service and Management Costs,Schools Catering,Kitchen Supplies - Food and Beverages,23/10/2019,5310252,340.72,Thomas Ridley & Son Ltd
Children & Culture,Children's Social Care,Support Service and Management Costs,Schools Catering,Kitchen Supplies - Food and Beverages,23/10/2019,5310253,504.66,Thomas Ridley & Son Ltd
Children & Culture,Children's Social Care,Support Service and Management Costs,Schools Catering,Kitchen Supplies - Food and Beverages,23/10/2019,5310254,721.46,Thomas Ridley & Son Ltd
Children & Culture,Children's Social Care,Support Service and Management Costs,Sch. Meals A/c - Central Production Unit,Kitchen Supplies - Food and Beverages,23/10/2019,5310255,"1,021.65",Thomas Ridley & Son Ltd
Children & Culture,No Service Specified,No Division Specified,Capital-Minor Works (SC),Building Works - Main Works,23/10/2019,5310606,400.00,Environtec Ltd
Children & Culture,Children's Social Care,Children Looked After,Virtual School PPG,Services - Professional Fees - Consultants Fees,23/10/2019,5310610,"1,012.00",The Transformed You Community Interest Company
Children & Culture,Children's Social Care,Children Looked After,S23 Fam Pl P&V-F/Care,Childrens Act Section 23 - Placement Fee,23/10/2019,5310611,508.77,The Transformed You Community Interest Company
Children & Culture,Children's Social Care,Support Service and Management Costs,Schools Catering,Kitchen Supplies - Food and Beverages,23/10/2019,5310669,352.01,Thomas Ridley & Son Ltd
Children & Culture,Children's Social Care,Support Service and Management Costs,Schools Catering,Kitchen Supplies - Food and Beverages,23/10/2019,5310670,614.16,Thomas Ridley & Son Ltd
Children & Culture,Children's Social Care,Support Service and Management Costs,Schools Catering,Kitchen Supplies - Food and Beverages,23/10/2019,5310672,640.31,Thomas Ridley & Son Ltd
Children & Culture,Children's Social Care,Support Service and Management Costs,Schools Catering,Kitchen Supplies - Food and Beverages,23/10/2019,5310674,621.62,Thomas Ridley & Son Ltd
Children & Culture,Children's Social Care,Support Service and Management Costs,Schools Catering,Kitchen Supplies - Food and Beverages,23/10/2019,5310675,319.29,Thomas Ridley & Son Ltd
Children & Culture,Children's Social Care,Support Service and Management Costs,Schools Catering,Kitchen Supplies - Food and Beverages,23/10/2019,5310677,299.22,Thomas Ridley & Son Ltd
Children & Culture,Children's Social Care,Support Service and Management Costs,Schools Catering,Kitchen Supplies - Food and Beverages,23/10/2019,5310678,471.79,Thomas Ridley & Son Ltd
Children & Culture,Children's Social Care,Support Service and Management Costs,Schools Catering,Kitchen Supplies - Food and Beverages,23/10/2019,5310679,347.15,Thomas Ridley & Son Ltd
Children & Culture,Children's Social Care,Support Service and Management Costs,Schools Catering,Kitchen Supplies - Food and Beverages,23/10/2019,5310681,303.03,Thomas Ridley & Son Ltd
Children & Culture,Children's Social Care,Support Service and Management Costs,Schools Catering,Kitchen Supplies - Food and Beverages,23/10/2019,5310682,564.00,Thomas Ridley & Son Ltd
Children & Culture,Children's Social Care,Support Service and Management Costs,Schools Catering,Kitchen Supplies - Food and Beverages,23/10/2019,5310683,281.21,Thomas Ridley & Son Ltd
Children & Culture,Children's Social Care,Support Service and Management Costs,Schools Catering,Kitchen Supplies - Food and Beverages,23/10/2019,5310685,321.04,Thomas Ridley & Son Ltd
Children & Culture,Children's Social Care,Support Service and Management Costs,Welfare Catering,Kitchen Supplies - Food and Beverages,23/10/2019,5310686,708.53,Thomas Ridley & Son Ltd
Children & Culture,Children's Social Care,Support Service and Management Costs,Schools Catering,Kitchen Supplies - Food and Beverages,23/10/2019,5310688,815.68,Thomas Ridley & Son Ltd
Children & Culture,Children's Social Care,Support Service and Management Costs,Schools Catering,Kitchen Supplies - Food and Beverages,23/10/2019,5310691,537.84,Thomas Ridley & Son Ltd
Children & Culture,Children's Social Care,Support Service and Management Costs,Schools Catering,Kitchen Supplies - Food and Beverages,23/10/2019,5310693,391.94,Thomas Ridley & Son Ltd
Children & Culture,Children's Social Care,Support Service and Management Costs,Schools Catering,Kitchen Supplies - Food and Beverages,23/10/2019,5310695,465.01,Thomas Ridley & Son Ltd
Children & Culture,Children's Social Care,Support Service and Management Costs,Schools Catering,Kitchen Supplies - Food and Beverages,23/10/2019,5310696,332.91,Thomas Ridley & Son Ltd
Children & Culture,Children's Social Care,Support Service and Management Costs,Schools Catering,Kitchen Supplies - Food and Beverages,23/10/2019,5310697,901.66,Thomas Ridley & Son Ltd
Children & Culture,Children's Social Care,Support Service and Management Costs,Schools Catering,Kitchen Supplies - Food and Beverages,23/10/2019,5310698,370.67,Thomas Ridley & Son Ltd
Children & Culture,Children's Social Care,Support Service and Management Costs,Schools Catering,Kitchen Supplies - Food and Beverages,23/10/2019,5310699,589.91,Thomas Ridley & Son Ltd
Children & Culture,Children's Social Care,Support Service and Management Costs,Schools Catering,Kitchen Supplies - Food and Beverages,23/10/2019,5310700,450.09,Thomas Ridley & Son Ltd
Children & Culture,Children's Social Care,Support Service and Management Costs,"Mulberry Caf�		",Kitchen Supplies - Food and Beverages,23/10/2019,5310701,254.36,Thomas Ridley & Son Ltd
Children & Culture,Children's Social Care,Support Service and Management Costs,Schools Catering,Kitchen Supplies - Food and Beverages,23/10/2019,5310703,278.43,Thomas Ridley & Son Ltd
Children & Culture,Children's Social Care,Support Service and Management Costs,Schools Catering,Kitchen Supplies - Food and Beverages,23/10/2019,5310708,263.98,Prescott-Thomas LTD.
Children & Culture,Children's Social Care,Children Looked After,S23 Fam Pl P&V-F/Care,Childrens Act Section 23 - Placement Fee,23/10/2019,5311049,"3,261.30",St Christopher's Fellowship
Children & Culture,Children's Social Care,Children Looked After,S23 Fam Pl P&V-F/Care,Childrens Act Section 23 - Placement Fee,23/10/2019,5311050,"4,727.10",St Christopher's Fellowship
Children & Culture,Education Services,Other Strategic Functions,Property & Asset Management,Agency Staff - Structural Surveys,23/10/2019,5311066,"4,150.00",Thomson FM
Children & Culture,Children's Social Care,Support Service and Management Costs,Schools Catering,Kitchen Supplies - Food and Beverages,23/10/2019,5311536,279.07,William White Meats Ltd
Children & Culture,Children's Social Care,Support Service and Management Costs,Schools Catering,Kitchen Supplies - Food and Beverages,23/10/2019,5311580,448.45,William White Meats Ltd
Children & Culture,Children's Social Care,Support Service and Management Costs,Swanlea,Kitchen Supplies - Food and Beverages,23/10/2019,5311590,250.25,William White Meats Ltd
Children & Culture,Children's Social Care,Support Service and Management Costs,Schools Catering,Kitchen Supplies - Food and Beverages,23/10/2019,5311608,306.35,William White Meats Ltd
Children & Culture,Children's Social Care,Support Service and Management Costs,Welfare Catering,Kitchen Supplies - Food and Beverages,23/10/2019,5311724,412.38,Raj Foods LTD
Children & Culture,Children's Social Care,Support Service and Management Costs,Welfare Catering,Kitchen Supplies - Food and Beverages,23/10/2019,5311725,555.14,Raj Foods LTD
Children & Culture,Cultural and Related Services,Culture & Heritage,Arts-Park Events,Events & Exhibition Supplies,23/10/2019,5311734,"25,000.00",Walk The Plank Pyrotechnics
Children & Culture,Children's Social Care,Children Looked After,S23 Fam Pl P&V-F/Care,Childrens Act Section 23 - Placement Fee,23/10/2019,5313697,"3,407.10",Affinity Fostering Services Ltd
Children & Culture,Children's Social Care,Children Looked After,S23 Fam Pl P&V-F/Care,Childrens Act Section 23 - Placement Fee,23/10/2019,5313698,"6,642.90",Affinity Fostering Services Ltd
Children & Culture,Children's Social Care,Children Looked After,S23 Fam Pl P&V-F/Care,Childrens Act Section 23 - Placement Fee,23/10/2019,5313699,"3,236.70",Affinity Fostering Services Ltd
Children & Culture,Children's Social Care,Children Looked After,S23 Fam Pl P&V-F/Care,Childrens Act Section 23 - Placement Fee,23/10/2019,5313700,"3,407.10",Affinity Fostering Services Ltd
Children & Culture,Education Services,Services to Young People and Other Community Learners,Further and Higher Education,Education Trust - Grant,23/10/2019,5315972,"1,500.00",Tavistock & Portman NHS Trust
Children & Culture,Education Services,Other Strategic Functions,Governor Service Trading Account,Training Expenses - Staff External Training (UK Based),23/10/2019,5315990,399.00,Carlton Training Limited
Children & Culture,Education Services,Early Years,Children Centre Central Team,Third Party Payments - Voluntary Associations,23/10/2019,5317863,"16,319.75",SOCIAL ACTION FOR HEALTH
Children & Culture,Education Services,Early Years,Isle of Dogs. CC,Educational/Training Supplies - Curriculum Visits/Activities,23/10/2019,5317926,740.00,Wesco UK
Children & Culture,Children's Social Care,Commissioning and Social Work,Independant Social Worker and Public Law Outline,Services - Professional Fees - Financial Services Fees,23/10/2019,5318325,"4,326.70",Think Giraffe Consultancy ltd
Children & Culture,Children's Social Care,Services for young people,Youth Service Management,Room Hire,23/10/2019,5318362,280.00,City Of London Corporation
Children & Culture,Education Services,Early Years,Children Centre Central Team,Computing - Purchase of Software,23/10/2019,5318435,304.26,Specialist Computer Centres PLC
Children & Culture,Children's Social Care,Family Support Services,CNN Pool: Joint Family Support,Social Care - Homecare,23/10/2019,5318614,825.00,QALB Centre Short Break Services
Children & Culture,Cultural and Related Services,Recreation & Sport,Mayors Cup,Recreational Activities,23/10/2019,5321646,"1,250.00",ELSA
Children & Culture,Children's Social Care,Family Support Services,CNN Pool: Joint Family Support,Social Care - Homecare,23/10/2019,5322564,"2,329.00",QALB Centre Short Break Services
Children & Culture,Children's Social Care,Children Looked After,S23 Fam Pl P&V-F/Care,Childrens Act Section 23 - Placement Fee,23/10/2019,5322610,"3,324.10",Eastern Fostering Services
Children & Culture,Education Services,Other Strategic Functions,Central Pupil Database Project,Services - Professional Fees - Consultants Fees,23/10/2019,5322636,"4,508.00",Agilisys Professional Services
Children & Culture,Children's Social Care,Children Looked After,LCS/Allowances-Accom,Leaving Care Financial Assistance - Supp Accom/Hous Rents,23/10/2019,5322749,"1,031.32",HAMLETTS LTD
Children & Culture,Cultural and Related Services,Culture & Heritage,Event Fund,Third Party Payments - Voluntary Associations,23/10/2019,5323071,400.00,Poplar HARCA LTD
Children & Culture,Cultural and Related Services,Culture & Heritage,Event Fund,Third Party Payments - Voluntary Associations,23/10/2019,5323072,400.00,RAINBOW FILM SOCIETY
Children & Culture,Children's Social Care,Family Support Services,CNN Pool: Joint Family Support,Social Care - Homecare,23/10/2019,5323136,775.50,QALB Centre Short Break Services
Children & Culture,Children's Social Care,Family Support Services,CNN Pool: Joint Family Support,Social Care - Homecare,23/10/2019,5323137,"1,617.00",QALB Centre Short Break Services
Children & Culture,Children's Social Care,Family Support Services,CNN Pool: Joint Family Support,Social Care - Homecare,23/10/2019,5323138,"3,264.00",QALB Centre Short Break Services
Children & Culture,Children's Social Care,Family Support Services,CNN Pool: Joint Family Support,Social Care - Homecare,23/10/2019,5323139,"2,999.75",QALB Centre Short Break Services
Children & Culture,Children's Social Care,Family Support Services,CNN Pool: Joint Family Support,Social Care - Homecare,23/10/2019,5323140,561.00,QALB Centre Short Break Services
Children & Culture,Education Services,Other Strategic Functions,Music Trading Account,Third Party Payments - Voluntary Associations,23/10/2019,5323155,672.50,Redacted Section 40 FOI Act
Children & Culture,Education Services,Early Years,Overland CC,Services - Professional Fees - Translation Fees,23/10/2019,5323163,268.00,Oncall Interpreters LTD
Children & Culture,Children's Social Care,Family Support Services,CNN Pool: Joint Family Support,Services - Professional Fees - Translation Fees,23/10/2019,5323170,391.50,Oncall Interpreters LTD
Children & Culture,Education Services,Other Strategic Functions,Music Trading Account,Payments to Private Contractors - General Contractors,23/10/2019,5323172,"1,059.00",ABRSM
Children & Culture,Children's Social Care,Support Service and Management Costs,Schools Catering,Kitchen Supplies - Food and Beverages,23/10/2019,5323261,-345.00,Thomas Ridley & Son Ltd
Children & Culture,Children's Social Care,Commissioning and Social Work,Independant Social Worker and Public Law Outline,Services - Professional Fees - Financial Services Fees,23/10/2019,5323290,296.00,EF Focus Ltd
